{"text_format":"1","workbook":"xlsx","n_sheets":7,"sheets":["Configuració","Calendari anual","Calendari de curs","Calendari setmana completa","Calendari setmana laboral","Taules","Documentació"],"not_rendered":{"charts":0,"images":8,"macros":1,"external_links":0,"defined_names":36,"comments":0,"pivot_tables":0},"unopened":[],"bounds":{"document_bytes":16777216,"sheet_cells":100000,"rows_first":2000,"rows_last":500,"rows_between":2000,"halvings":0,"cell_chars":16384,"cell_head_chars":4096},"cells_cut":0,"cells_raw":0,"read":"whole","date_system":"1900"}

{"sheet":"Configuració","index":0,"n_rows":0,"n_cols":0,"rows_kept":0,"cut":false,"hidden":false,"merged":[]}

{"sheet":"Calendari anual","index":1,"n_rows":14,"n_cols":41,"rows_kept":14,"cut":false,"hidden":false,"merged":[]}
[]
[null,{"$f":"Any","v":2017},{"$f":"INDEX(rgDies,1,2)","v":"Dl"},{"$f":"INDEX(rgDies,2,2)","v":"Dt"},{"$f":"INDEX(rgDies,3,2)","v":"Dc"},{"$f":"INDEX(rgDies,4,2)","v":"Dj"},{"$f":"INDEX(rgDies,5,2)","v":"Dv"},{"$f":"INDEX(rgDies,6,2)","v":"Ds"},{"$f":"INDEX(rgDies,7,2)","v":"Dg"},{"$f":"INDEX(rgDies,1,2)","v":"Dl"},{"$f":"INDEX(rgDies,2,2)","v":"Dt"},{"$f":"INDEX(rgDies,3,2)","v":"Dc"},{"$f":"INDEX(rgDies,4,2)","v":"Dj"},{"$f":"INDEX(rgDies,5,2)","v":"Dv"},{"$f":"INDEX(rgDies,6,2)","v":"Ds"},{"$f":"INDEX(rgDies,7,2)","v":"Dg"},{"$f":"INDEX(rgDies,1,2)","v":"Dl"},{"$f":"INDEX(rgDies,2,2)","v":"Dt"},{"$f":"INDEX(rgDies,3,2)","v":"Dc"},{"$f":"INDEX(rgDies,4,2)","v":"Dj"},{"$f":"INDEX(rgDies,5,2)","v":"Dv"},{"$f":"INDEX(rgDies,6,2)","v":"Ds"},{"$f":"INDEX(rgDies,7,2)","v":"Dg"},{"$f":"INDEX(rgDies,1,2)","v":"Dl"},{"$f":"INDEX(rgDies,2,2)","v":"Dt"},{"$f":"INDEX(rgDies,3,2)","v":"Dc"},{"$f":"INDEX(rgDies,4,2)","v":"Dj"},{"$f":"INDEX(rgDies,5,2)","v":"Dv"},{"$f":"INDEX(rgDies,6,2)","v":"Ds"},{"$f":"INDEX(rgDies,7,2)","v":"Dg"},{"$f":"INDEX(rgDies,1,2)","v":"Dl"},{"$f":"INDEX(rgDies,2,2)","v":"Dt"},{"$f":"INDEX(rgDies,3,2)","v":"Dc"},{"$f":"INDEX(rgDies,4,2)","v":"Dj"},{"$f":"INDEX(rgDies,5,2)","v":"Dv"},{"$f":"INDEX(rgDies,6,2)","v":"Ds"},{"$f":"INDEX(rgDies,7,2)","v":"Dg"},{"$f":"INDEX(rgDies,1,2)","v":"Dl"},{"$f":"INDEX(rgDies,2,2)","v":"Dt"}]
[null,{"$f":"Taules!K3","v":"Gener"},{"$f":"IF(WEEKDAY(DATE(Any,AO3,1),2)=1,1,\"\")","v":""},{"$f":"IF(C3=\"\",IF(WEEKDAY(DATE(Any,AO3,1),2)=2,1,\"\"),C3+1)","v":""},{"$f":"IF(D3=\"\",IF(WEEKDAY(DATE(Any,AO3,1),2)=3,1,\"\"),D3+1)","v":""},{"$f":"IF(E3=\"\",IF(WEEKDAY(DATE(Any,AO3,1),2)=4,1,\"\"),E3+1)","v":""},{"$f":"IF(F3=\"\",IF(WEEKDAY(DATE(Any,AO3,1),2)=5,1,\"\"),F3+1)","v":""},{"$f":"IF(G3=\"\",IF(WEEKDAY(DATE(Any,AO3,1),2)=6,1,\"\"),G3+1)","v":""},{"$f":"IF(H3=\"\",IF(WEEKDAY(DATE(Any,AO3,1),2)=7,1,\"\"),H3+1)","v":1},{"$f":"I3+1","v":2},3,4,5,6,7,8,9,10,11,12,13,14,15,16,17,18,19,20,21,22,{"$f":"IF(MONTH(DATE(Any,AO3,AD3+1))=AO3,AD3+1,\"\")","v":23},{"$f":"IF(AE3=\"\",\"\",IF(MONTH(DATE(Any,AO3,AE3+1))=AO3,AE3+1,\"\"))","v":24},{"$f":"IF(AF3=\"\",\"\",IF(MONTH(DATE(Any,AO3,AF3+1))=AO3,AF3+1,\"\"))","v":25},{"$f":"IF(AG3=\"\",\"\",IF(MONTH(DATE(Any,AO3,AG3+1))=AO3,AG3+1,\"\"))","v":26},{"$f":"IF(AH3=\"\",\"\",IF(MONTH(DATE(Any,AO3,AH3+1))=AO3,AH3+1,\"\"))","v":27},{"$f":"IF(AI3=\"\",\"\",IF(MONTH(DATE(Any,AO3,AI3+1))=AO3,AI3+1,\"\"))","v":28},{"$f":"IF(AJ3=\"\",\"\",IF(MONTH(DATE(Any,AO3,AJ3+1))=AO3,AJ3+1,\"\"))","v":29},{"$f":"IF(AK3=\"\",\"\",IF(MONTH(DATE(Any,AO3,AK3+1))=AO3,AK3+1,\"\"))","v":30},{"$f":"IF(AL3=\"\",\"\",IF(MONTH(DATE(Any,AO3,AL3+1))=AO3,AL3+1,\"\"))","v":31},null,1]
[null,{"$f":"Taules!K4","v":"Febrer"},"","",1,2,3,4,5,6,7,8,9,10,11,12,13,14,15,16,17,18,19,20,21,22,23,24,25,26,27,28,"","","","","","","",null,2]
[null,{"$f":"Taules!K5","v":"Març"},"","",1,2,3,4,5,6,7,8,9,10,11,12,13,14,15,16,17,18,19,20,21,22,23,24,25,26,27,28,29,30,31,"","","","",null,3]
[null,{"$f":"Taules!K6","v":"Abril"},"","","","","",1,2,3,4,5,6,7,8,9,10,11,12,13,14,15,16,17,18,19,20,21,22,23,24,25,26,27,28,29,30,"","",null,4]
[null,{"$f":"Taules!K7","v":"Maig"},1,2,3,4,5,6,7,8,9,10,11,12,13,14,15,16,17,18,19,20,21,22,23,24,25,26,27,28,29,30,31,"","","","","","",null,5]
[null,{"$f":"Taules!K8","v":"Juny"},"","","",1,2,3,4,5,6,7,8,9,10,11,12,13,14,15,16,17,18,19,20,21,22,23,24,25,26,27,28,29,30,"","","","",null,6]
[null,{"$f":"Taules!K9","v":"Juliol"},"","","","","",1,2,3,4,5,6,7,8,9,10,11,12,13,14,15,16,17,18,19,20,21,22,23,24,25,26,27,28,29,30,31,"",null,7]
[null,{"$f":"Taules!K10","v":"Agost"},"",1,2,3,4,5,6,7,8,9,10,11,12,13,14,15,16,17,18,19,20,21,22,23,24,25,26,27,28,29,30,31,"","","","","",null,8]
[null,{"$f":"Taules!K11","v":"Setembre"},"","","","",1,2,3,4,5,6,7,8,9,10,11,12,13,14,15,16,17,18,19,20,21,22,23,24,25,26,27,28,29,30,"","","",null,9]
[null,{"$f":"Taules!K12","v":"Octubre"},"","","","","","",1,2,3,4,5,6,7,8,9,10,11,12,13,14,15,16,17,18,19,20,21,22,23,24,25,26,27,28,29,30,31,null,10]
[null,{"$f":"Taules!K13","v":"Novembre"},"","",1,2,3,4,5,6,7,8,9,10,11,12,13,14,15,16,17,18,19,20,21,{"$f":"Y13+1","v":22},{"$f":"Z13+1","v":23},{"$f":"AA13+1","v":24},{"$f":"AB13+1","v":25},{"$f":"AC13+1","v":26},27,28,29,30,"","","","","",null,11]
[null,{"$f":"Taules!K14","v":"Desembre"},"","","","",1,2,3,4,5,6,7,8,9,10,11,12,13,14,15,16,17,18,19,20,21,22,23,24,25,26,27,28,29,30,31,"","",null,12]

{"sheet":"Calendari de curs","index":2,"n_rows":14,"n_cols":48,"rows_kept":14,"cut":false,"hidden":false,"merged":[]}
[]
[null,{"$f":"RIGHT(Any-1,2)&\"-\"&RIGHT(Any,2)","v":"16-17"},{"$f":"INDEX(rgDies,1,2)","v":"Dl"},{"$f":"INDEX(rgDies,2,2)","v":"Dt"},{"$f":"INDEX(rgDies,3,2)","v":"Dc"},{"$f":"INDEX(rgDies,4,2)","v":"Dj"},{"$f":"INDEX(rgDies,5,2)","v":"Dv"},{"$f":"INDEX(rgDies,6,2)","v":"Ds"},{"$f":"INDEX(rgDies,7,2)","v":"Dg"},{"$f":"INDEX(rgDies,1,2)","v":"Dl"},{"$f":"INDEX(rgDies,2,2)","v":"Dt"},{"$f":"INDEX(rgDies,3,2)","v":"Dc"},{"$f":"INDEX(rgDies,4,2)","v":"Dj"},{"$f":"INDEX(rgDies,5,2)","v":"Dv"},{"$f":"INDEX(rgDies,6,2)","v":"Ds"},{"$f":"INDEX(rgDies,7,2)","v":"Dg"},{"$f":"INDEX(rgDies,1,2)","v":"Dl"},{"$f":"INDEX(rgDies,2,2)","v":"Dt"},{"$f":"INDEX(rgDies,3,2)","v":"Dc"},{"$f":"INDEX(rgDies,4,2)","v":"Dj"},{"$f":"INDEX(rgDies,5,2)","v":"Dv"},{"$f":"INDEX(rgDies,6,2)","v":"Ds"},{"$f":"INDEX(rgDies,7,2)","v":"Dg"},{"$f":"INDEX(rgDies,1,2)","v":"Dl"},{"$f":"INDEX(rgDies,2,2)","v":"Dt"},{"$f":"INDEX(rgDies,3,2)","v":"Dc"},{"$f":"INDEX(rgDies,4,2)","v":"Dj"},{"$f":"INDEX(rgDies,5,2)","v":"Dv"},{"$f":"INDEX(rgDies,6,2)","v":"Ds"},{"$f":"INDEX(rgDies,7,2)","v":"Dg"},{"$f":"INDEX(rgDies,1,2)","v":"Dl"},{"$f":"INDEX(rgDies,2,2)","v":"Dt"},{"$f":"INDEX(rgDies,3,2)","v":"Dc"},{"$f":"INDEX(rgDies,4,2)","v":"Dj"},{"$f":"INDEX(rgDies,5,2)","v":"Dv"},{"$f":"INDEX(rgDies,6,2)","v":"Ds"},{"$f":"INDEX(rgDies,7,2)","v":"Dg"},{"$f":"INDEX(rgDies,1,2)","v":"Dl"},{"$f":"INDEX(rgDies,2,2)","v":"Dt"}]
[null,{"$f":"CHOOSE(AU3,Taules!K3,Taules!K4,Taules!K5,Taules!K6,Taules!K7,Taules!K8,Taules!K9,Taules!K10,Taules!K11,Taules!K12,Taules!K13,Taules!K14)","v":"Setembre"},{"$f":"IF(WEEKDAY(DATE(AV3,AU3,1),2)=1,1,\"\")","v":""},{"$f":"IF(C3=\"\",IF(WEEKDAY(DATE($AV3,$AU3,1),2)=2,1,\"\"),C3+1)","v":""},{"$f":"IF(D3=\"\",IF(WEEKDAY(DATE($AV3,$AU3,1),2)=3,1,\"\"),D3+1)","v":""},{"$f":"IF(E3=\"\",IF(WEEKDAY(DATE($AV3,$AU3,1),2)=4,1,\"\"),E3+1)","v":1},{"$f":"IF(F3=\"\",IF(WEEKDAY(DATE($AV3,$AU3,1),2)=5,1,\"\"),F3+1)","v":2},{"$f":"IF(G3=\"\",IF(WEEKDAY(DATE($AV3,$AU3,1),2)=6,1,\"\"),G3+1)","v":3},{"$f":"IF(H3=\"\",IF(WEEKDAY(DATE($AV3,$AU3,1),2)=7,1,\"\"),H3+1)","v":4},{"$f":"I3+1","v":5},6,7,8,9,10,11,12,13,14,15,16,17,18,19,20,21,22,23,24,25,{"$f":"IF(MONTH(DATE(AV3,AU3,AD3+1))=AU3,AD3+1,\"\")","v":26},{"$f":"IF(AE3=\"\",\"\",IF(MONTH(DATE(AV3,AU3,AE3+1))=AU3,AE3+1,\"\"))","v":27},{"$f":"IF(AF3=\"\",\"\",IF(MONTH(DATE(AV3,AU3,AF3+1))=AU3,AF3+1,\"\"))","v":28},{"$f":"IF(AG3=\"\",\"\",IF(MONTH(DATE(AV3,AU3,AG3+1))=AU3,AG3+1,\"\"))","v":29},{"$f":"IF(AH3=\"\",\"\",IF(MONTH(DATE(AV3,AU3,AH3+1))=AU3,AH3+1,\"\"))","v":30},{"$f":"IF(AI3=\"\",\"\",IF(MONTH(DATE(AV3,AU3,AI3+1))=AU3,AI3+1,\"\"))","v":""},{"$f":"IF(AJ3=\"\",\"\",IF(MONTH(DATE(AV3,AU3,AJ3+1))=AU3,AJ3+1,\"\"))","v":""},{"$f":"IF(AK3=\"\",\"\",IF(MONTH(DATE(AV3,AU3,AK3+1))=AU3,AK3+1,\"\"))","v":""},{"$f":"IF(AL3=\"\",\"\",IF(MONTH(DATE(AV3,AU3,AL3+1))=AU3,AL3+1,\"\"))","v":""},null,"Començar el:",null,null,null,null,null,{"$f":"Mes","v":9},{"$f":"2000+LEFT($B$2,2)","v":2016}]
[null,{"$f":"CHOOSE(AU4,Taules!K3,Taules!K4,Taules!K5,Taules!K6,Taules!K7,Taules!K8,Taules!K9,Taules!K10,Taules!K11,Taules!K12,Taules!K13,Taules!K14)","v":"Octubre"},"","","","","",1,2,{"$f":"I4+1","v":3},4,5,6,7,8,9,10,11,12,13,14,15,16,17,18,19,20,21,22,23,24,25,26,27,28,29,30,31,"",null,null,null,null,null,null,null,{"$f":"MOD(AU3,12)+1","v":10},{"$f":"IF(AU4>AU3,AV3,AV3+1)","v":2016}]
[null,{"$f":"CHOOSE(AU5,Taules!K3,Taules!K4,Taules!K5,Taules!K6,Taules!K7,Taules!K8,Taules!K9,Taules!K10,Taules!K11,Taules!K12,Taules!K13,Taules!K14)","v":"Novembre"},"",1,2,3,4,5,6,{"$f":"I5+1","v":7},8,9,10,11,12,13,14,15,16,17,18,19,20,21,22,23,24,25,26,27,28,29,30,"","","","","","",null,null,null,null,null,null,null,{"$f":"MOD(AU4,12)+1","v":11},{"$f":"IF(AU5>AU4,AV4,AV4+1)","v":2016}]
[null,{"$f":"CHOOSE(AU6,Taules!K3,Taules!K4,Taules!K5,Taules!K6,Taules!K7,Taules!K8,Taules!K9,Taules!K10,Taules!K11,Taules!K12,Taules!K13,Taules!K14)","v":"Desembre"},"","","",1,2,3,4,{"$f":"I6+1","v":5},6,7,8,9,10,11,12,13,14,15,16,17,18,19,20,21,22,23,24,25,26,27,28,29,30,31,"","","",null,null,null,null,null,null,null,{"$f":"MOD(AU5,12)+1","v":12},2016]
[null,{"$f":"CHOOSE(AU7,Taules!K3,Taules!K4,Taules!K5,Taules!K6,Taules!K7,Taules!K8,Taules!K9,Taules!K10,Taules!K11,Taules!K12,Taules!K13,Taules!K14)","v":"Gener"},"","","","","","",1,{"$f":"I7+1","v":2},3,4,5,6,7,8,9,10,11,12,13,14,15,16,17,18,19,20,21,22,23,24,25,26,27,28,29,30,31,null,null,null,null,null,null,null,{"$f":"MOD(AU6,12)+1","v":1},2017]
[null,{"$f":"CHOOSE(AU8,Taules!K3,Taules!K4,Taules!K5,Taules!K6,Taules!K7,Taules!K8,Taules!K9,Taules!K10,Taules!K11,Taules!K12,Taules!K13,Taules!K14)","v":"Febrer"},"","",1,2,3,4,5,{"$f":"I8+1","v":6},7,8,9,10,11,12,13,14,15,16,17,18,19,20,21,22,23,24,25,26,27,28,"","","","","","","",null,null,null,null,null,null,null,{"$f":"MOD(AU7,12)+1","v":2},2017]
[null,{"$f":"CHOOSE(AU9,Taules!K3,Taules!K4,Taules!K5,Taules!K6,Taules!K7,Taules!K8,Taules!K9,Taules!K10,Taules!K11,Taules!K12,Taules!K13,Taules!K14)","v":"Març"},"","",1,2,3,4,5,{"$f":"I9+1","v":6},7,8,9,10,11,12,13,14,15,16,17,18,19,20,21,22,23,24,25,26,27,28,29,30,31,"","","","",null,null,null,null,null,null,null,3,2017]
[null,{"$f":"CHOOSE(AU10,Taules!K3,Taules!K4,Taules!K5,Taules!K6,Taules!K7,Taules!K8,Taules!K9,Taules!K10,Taules!K11,Taules!K12,Taules!K13,Taules!K14)","v":"Abril"},"","","","","",1,2,{"$f":"I10+1","v":3},4,5,6,7,8,9,10,11,12,13,14,15,16,17,18,19,20,21,22,23,24,25,26,27,28,29,30,"","",null,null,null,null,null,null,null,4,2017]
[null,{"$f":"CHOOSE(AU11,Taules!K3,Taules!K4,Taules!K5,Taules!K6,Taules!K7,Taules!K8,Taules!K9,Taules!K10,Taules!K11,Taules!K12,Taules!K13,Taules!K14)","v":"Maig"},1,2,3,4,5,6,7,{"$f":"I11+1","v":8},9,10,11,12,13,14,15,16,17,18,19,20,21,22,23,24,25,26,27,28,29,30,31,"","","","","","",null,null,null,null,null,null,null,5,2017]
[null,{"$f":"CHOOSE(AU12,Taules!K3,Taules!K4,Taules!K5,Taules!K6,Taules!K7,Taules!K8,Taules!K9,Taules!K10,Taules!K11,Taules!K12,Taules!K13,Taules!K14)","v":"Juny"},"","","",1,2,3,4,{"$f":"I12+1","v":5},6,7,8,9,10,11,12,13,14,15,16,17,18,19,20,21,22,23,24,25,26,27,28,29,30,"","","","",null,null,null,null,null,null,null,6,2017]
[null,{"$f":"CHOOSE(AU13,Taules!K3,Taules!K4,Taules!K5,Taules!K6,Taules!K7,Taules!K8,Taules!K9,Taules!K10,Taules!K11,Taules!K12,Taules!K13,Taules!K14)","v":"Juliol"},"","","","","",1,2,{"$f":"I13+1","v":3},4,5,6,7,8,9,10,11,12,13,14,15,16,17,18,19,20,21,22,23,24,25,26,27,28,29,30,31,"",null,null,null,null,null,null,null,7,2017]
[null,{"$f":"CHOOSE(AU14,Taules!K3,Taules!K4,Taules!K5,Taules!K6,Taules!K7,Taules!K8,Taules!K9,Taules!K10,Taules!K11,Taules!K12,Taules!K13,Taules!K14)","v":"Agost"},"",1,2,3,4,5,6,{"$f":"I14+1","v":7},8,9,10,11,12,13,14,15,16,17,18,19,20,21,22,23,24,25,26,27,28,29,30,31,"","","","","",null,null,null,null,null,null,null,8,2017]

{"sheet":"Calendari setmana completa","index":3,"n_rows":39,"n_cols":50,"rows_kept":39,"cut":false,"hidden":false,"merged":[[33,49,35,49],[33,42,35,42],[33,35,35,35],[33,28,35,28],[33,21,35,21],[33,14,35,14],[33,7,35,7],[38,43,40,49],[36,29,37,33],[36,34,37,35],[36,36,37,40],[36,41,37,42],[38,29,40,35],[38,36,40,42],[36,7,37,7],[36,14,37,14],[38,22,40,28],[33,43,35,48],[33,36,35,41],[33,29,35,34],[33,22,35,27],[23,1,25,6],[23,7,25,7],[23,8,25,13],[23,14,25,14],[23,15,25,20],[23,21,25,21],[38,8,40,13],[38,1,40,6],[38,14,40,14],[38,7,40,7],[33,15,35,20],[33,8,35,13],[33,1,35,6],[36,1,37,6],[28,15,30,20],[28,8,30,13],[28,1,30,6],[28,14,30,14],[28,7,30,7],[31,1,32,6],[31,7,32,7],[36,8,37,13],[38,15,40,21],[28,43,30,48],[28,36,30,41],[28,29,30,34],[28,22,30,27],[28,49,30,49],[28,42,30,42],[28,35,30,35],[28,28,30,28],[28,21,30,21],[23,22,25,27],[23,28,25,28],[23,29,25,34],[1,8,8,42],[26,8,27,13],[21,36,22,41],[11,35,12,35],[11,29,12,34],[16,29,17,34],[16,35,17,35],[21,14,22,14],[21,8,22,13],[21,21,22,21],[21,15,22,20],[26,22,27,27],[26,15,27,20],[26,28,27,28],[26,21,27,21],[23,36,25,41],[23,42,25,42],[26,43,27,48],[10,29,10,35],[10,36,10,42],[10,43,10,49],[16,42,17,42],[16,36,17,41],[21,29,22,34],[21,42,22,42],[13,49,15,49],[26,35,27,35],[21,35,22,35],[23,35,25,35],[18,43,20,48],[18,49,20,49],[23,43,25,48],[23,49,25,49],[31,49,32,49],[31,43,32,48],[31,28,32,28],[31,22,32,27],[31,35,32,35],[31,29,32,34],[11,8,12,13],[11,36,12,41],[31,42,32,42],[31,36,32,41],[31,14,32,14],[31,8,32,13],[31,21,32,21],[31,15,32,20],[16,21,17,21],[16,15,17,20],[26,42,27,42],[26,36,27,41],[16,8,17,13],[16,14,17,14],[16,22,17,27],[21,49,22,49],[21,43,22,48],[26,49,27,49],[21,1,22,6],[16,49,17,49],[16,43,17,48],[11,15,12,20],[11,21,12,21],[16,28,17,28],[13,15,15,20],[13,21,15,21],[13,22,15,27],[13,28,15,28],[13,29,15,34],[13,35,15,35],[13,36,15,41],[13,42,15,42],[13,43,15,48],[16,1,17,6],[16,7,17,7],[13,1,15,6],[13,7,15,7],[13,8,15,13],[13,14,15,14],[18,29,20,34],[18,35,20,35],[18,7,20,7],[10,1,10,7],[10,8,10,14],[10,15,10,21],[10,22,10,28],[11,42,12,42],[11,28,12,28],[11,22,12,27],[11,49,12,49],[11,43,12,48],[11,7,12,7],[11,1,12,6],[11,14,12,14],[1,1,1,7],[1,43,1,49],[36,43,37,47],[36,48,37,49],[36,15,37,19],[36,20,37,21],[36,22,37,26],[36,27,37,28],[26,1,27,6],[26,7,27,7],[21,7,22,7],[21,28,22,28],[21,22,22,27],[26,14,27,14],[26,29,27,34],[18,36,20,41],[18,42,20,42],[18,1,20,6],[18,8,20,13],[18,14,20,14],[18,15,20,20],[18,21,20,21],[18,22,20,27],[18,28,20,28]]}
[]
[null,{"$f":"INDEX(rgMesos,MesAnt)&\" - \"&AnyAnt","v":"Agost - 2017"},null,null,null,null,null,null,{"$f":"INDEX(rgMesos,Mes)& \" - \" & Any","v":"Setembre - 2017"},null,null,null,null,null,null,null,null,null,null,null,null,null,null,null,null,null,null,null,null,null,null,null,null,null,null,null,null,null,null,null,null,null,null,{"$f":"INDEX(rgMesos,MesSeg)&\" - \"&AnySeg","v":"Octubre - 2017"}]
[null,{"$f":"INDEX(rgDies,1,3)","v":"Dll"},{"$f":"INDEX(rgDies,2,3)","v":"Dmt"},{"$f":"INDEX(rgDies,3,3)","v":"Dmc"},{"$f":"INDEX(rgDies,4,3)","v":"Djs"},{"$f":"INDEX(rgDies,5,3)","v":"Dvd"},{"$f":"INDEX(rgDies,6,3)","v":"Dss"},{"$f":"INDEX(rgDies,7,3)","v":"Dmg"},null,null,null,null,null,null,null,null,null,null,null,null,null,null,null,null,null,null,null,null,null,null,null,null,null,null,null,null,null,null,null,null,null,null,null,{"$f":"INDEX(rgDies,1,3)","v":"Dll"},{"$f":"INDEX(rgDies,2,3)","v":"Dmt"},{"$f":"INDEX(rgDies,3,3)","v":"Dmc"},{"$f":"INDEX(rgDies,4,3)","v":"Djs"},{"$f":"INDEX(rgDies,5,3)","v":"Dvd"},{"$f":"INDEX(rgDies,6,3)","v":"Dss"},{"$f":"INDEX(rgDies,7,3)","v":"Dmg"}]
[null,{"$f":"IF(WEEKDAY(DATE(AnyAnt,MesAnt,1),2)=1,1,\"\")","v":""},{"$f":"IF(B4=\"\",IF(WEEKDAY(DATE(AnyAnt,MesAnt,1),2)=2,1,\"\"),B4+1)","v":1},{"$f":"IF(C4=\"\",IF(WEEKDAY(DATE(AnyAnt,MesAnt,1),2)=3,1,\"\"),C4+1)","v":2},{"$f":"IF(D4=\"\",IF(WEEKDAY(DATE(AnyAnt,MesAnt,1),2)=4,1,\"\"),D4+1)","v":3},{"$f":"IF(E4=\"\",IF(WEEKDAY(DATE(AnyAnt,MesAnt,1),2)=5,1,\"\"),E4+1)","v":4},{"$f":"IF(F4=\"\",IF(WEEKDAY(DATE(AnyAnt,MesAnt,1),2)=6,1,\"\"),F4+1)","v":5},{"$f":"IF(G4=\"\",IF(WEEKDAY(DATE(AnyAnt,MesAnt,1),2)=7,1,\"\"),G4+1)","v":6},null,null,null,null,null,null,null,null,null,null,null,null,null,null,null,null,null,null,null,null,null,null,null,null,null,null,null,null,null,null,null,null,null,null,null,{"$f":"IF(WEEKDAY(DATE(AnySeg,MesSeg,1),2)=1,1,\"\")","v":""},{"$f":"IF(AR4=\"\",IF(WEEKDAY(DATE(AnySeg,MesSeg,1),2)=2,1,\"\"),AR4+1)","v":""},{"$f":"IF(AS4=\"\",IF(WEEKDAY(DATE(AnySeg,MesSeg,1),2)=3,1,\"\"),AS4+1)","v":""},{"$f":"IF(AT4=\"\",IF(WEEKDAY(DATE(AnySeg,MesSeg,1),2)=4,1,\"\"),AT4+1)","v":""},{"$f":"IF(AU4=\"\",IF(WEEKDAY(DATE(AnySeg,MesSeg,1),2)=5,1,\"\"),AU4+1)","v":""},{"$f":"IF(AV4=\"\",IF(WEEKDAY(DATE(AnySeg,MesSeg,1),2)=6,1,\"\"),AV4+1)","v":""},{"$f":"IF(AW4=\"\",IF(WEEKDAY(DATE(AnySeg,MesSeg,1),2)=7,1,\"\"),AW4+1)","v":1}]
[null,{"$f":"H4+1","v":7},{"$f":"B5+1","v":8},9,10,11,12,13,null,null,null,null,null,null,null,null,null,null,null,null,null,null,null,null,null,null,null,null,null,null,null,null,null,null,null,null,null,null,null,null,null,null,null,{"$f":"AX4+1","v":2},{"$f":"AR5+1","v":3},4,5,6,7,8]
[null,{"$f":"H5+1","v":14},{"$f":"B6+1","v":15},16,17,18,19,20,null,null,null,null,null,null,null,null,null,null,null,null,null,null,null,null,null,null,null,null,null,null,null,null,null,null,null,null,null,null,null,null,null,null,null,{"$f":"AX5+1","v":9},{"$f":"AR6+1","v":10},11,12,13,14,15]
[null,{"$f":"H6+1","v":21},{"$f":"B7+1","v":22},23,24,25,26,27,null,null,null,null,null,null,null,null,null,null,null,null,null,null,null,null,null,null,null,null,null,null,null,null,null,null,null,null,null,null,null,null,null,null,null,{"$f":"AX6+1","v":16},{"$f":"AR7+1","v":17},18,19,20,21,22]
[null,{"$f":"IF(MONTH(DATE(AnyAnt,MesAnt,H7+1))=MesAnt,H7+1,\"\")","v":28},{"$f":"IF(B8=\"\",\"\",IF(MONTH(DATE(AnyAnt,MesAnt,B8+1))=MesAnt,B8+1,\"\"))","v":29},30,31,"","","",null,null,null,null,null,null,null,null,null,null,null,null,null,null,null,null,null,null,null,null,null,null,null,null,null,null,null,null,null,null,null,null,null,null,null,{"$f":"IF(MONTH(DATE(AnySeg,MesSeg,AX7+1))=MesSeg,AX7+1,\"\")","v":23},{"$f":"IF(AR8=\"\",\"\",IF(MONTH(DATE(AnySeg,MesSeg,AR8+1))=MesSeg,AR8+1,\"\"))","v":24},25,26,27,28,29]
[null,{"$f":"IF(H8=\"\",\"\",IF(MONTH(DATE(AnyAnt,MesAnt,H8+1))=MesAnt,H8+1,\"\"))","v":""},{"$f":"IF(B9=\"\",\"\",IF(MONTH(DATE(AnyAnt,MesAnt,B9+1))=MesAnt,B9+1,\"\"))","v":""},null,null,null,null,null,null,null,null,null,null,null,null,null,null,null,null,null,null,null,null,null,null,null,null,null,null,null,null,null,null,null,null,null,null,null,null,null,null,null,null,{"$f":"IF(AX8=\"\",\"\",IF(MONTH(DATE(AnySeg,MesSeg,AX8+1))=MesSeg,AX8+1,\"\"))","v":30},{"$f":"IF(AR9=\"\",\"\",IF(MONTH(DATE(AnySeg,MesSeg,AR9+1))=MesSeg,AR9+1,\"\"))","v":31}]
[]
[null,{"$f":"INDEX(rgDies,1,1)","v":"Dilluns"},null,null,null,null,null,null,{"$f":"INDEX(rgDies,2,1)","v":"Dimarts"},null,null,null,null,null,null,{"$f":"INDEX(rgDies,3,1)","v":"Dimecres"},null,null,null,null,null,null,{"$f":"INDEX(rgDies,4,1)","v":"Dijous"},null,null,null,null,null,null,{"$f":"INDEX(rgDies,5,1)","v":"Divendres"},null,null,null,null,null,null,{"$f":"INDEX(rgDies,6,1)","v":"Dissabte"},null,null,null,null,null,null,{"$f":"INDEX(rgDies,7,1)","v":"Diumenge"}]
[null,{"$f":"IF(OR(ISERROR(VLOOKUP(H12&\"/\"&Mes,Festes,2,FALSE)),Mostrar_Festes=FALSE),\"\",VLOOKUP(H12&\"/\"&Mes,Festes,2,FALSE))","v":""},null,null,null,null,null,{"$f":"IF(WEEKDAY(DATE(Any,Mes,1),2)=1,1,\"\")","v":""},{"$f":"IF(OR(ISERROR(VLOOKUP(O12&\"/\"&Mes,Festes,2,FALSE)),Mostrar_Festes=FALSE),\"\",VLOOKUP(O12&\"/\"&Mes,Festes,2,FALSE))","v":""},null,null,null,null,null,{"$f":"IF(H12=\"\",IF(WEEKDAY(DATE(Any,Mes,1),2)=2,1,\"\"),H12+1)","v":""},{"$f":"IF(OR(ISERROR(VLOOKUP(V12&\"/\"&Mes,Festes,2,FALSE)),Mostrar_Festes=FALSE),\"\",VLOOKUP(V12&\"/\"&Mes,Festes,2,FALSE))","v":""},null,null,null,null,null,{"$f":"IF(O12=\"\",IF(WEEKDAY(DATE(Any,Mes,1),2)=3,1,\"\"),O12+1)","v":""},{"$f":"IF(OR(ISERROR(VLOOKUP(AC12&\"/\"&Mes,Festes,2,FALSE)),Mostrar_Festes=FALSE),\"\",VLOOKUP(AC12&\"/\"&Mes,Festes,2,FALSE))","v":""},null,null,null,null,null,{"$f":"IF(V12=\"\",IF(WEEKDAY(DATE(Any,Mes,1),2)=4,1,\"\"),V12+1)","v":""},{"$f":"IF(OR(ISERROR(VLOOKUP(AJ12&\"/\"&Mes,Festes,2,FALSE)),Mostrar_Festes=FALSE),\"\",VLOOKUP(AJ12&\"/\"&Mes,Festes,2,FALSE))","v":""},null,null,null,null,null,{"$f":"IF(AC12=\"\",IF(WEEKDAY(DATE(Any,Mes,1),2)=5,1,\"\"),AC12+1)","v":1},{"$f":"IF(OR(ISERROR(VLOOKUP(AQ12&\"/\"&Mes,Festes,2,FALSE)),Mostrar_Festes=FALSE),\"\",VLOOKUP(AQ12&\"/\"&Mes,Festes,2,FALSE))","v":""},null,null,null,null,null,{"$f":"IF(AJ12=\"\",IF(WEEKDAY(DATE(Any,Mes,1),2)=6,1,\"\"),AJ12+1)","v":2},{"$f":"IF(OR(ISERROR(VLOOKUP(AX12&\"/\"&Mes,Festes,2,FALSE)),Mostrar_Festes=FALSE),\"\",VLOOKUP(AX12&\"/\"&Mes,Festes,2,FALSE))","v":""},null,null,null,null,null,{"$f":"IF(AQ12=\"\",IF(WEEKDAY(DATE(Any,Mes,1),2)=7,1,\"\"),AQ12+1)","v":3}]
[]
[null,{"$f":"IF(OR(ISERROR(VLOOKUP(H12&\"/\"&Mes,Festes,2,FALSE)),Mostrar_Festes=FALSE),\"\",VLOOKUP(H12&\"/\"&Mes,Festes,4,FALSE))","v":""},null,null,null,null,null,{"$f":"IF(OR(ISERROR(VLOOKUP(H12&\"/\"&Mes,Fases,2,FALSE)),Mostrar_Llunes=FALSE),\"\",VLOOKUP(H12&\"/\"&Mes,Fases,2,FALSE))","v":""},{"$f":"IF(OR(ISERROR(VLOOKUP(O12&\"/\"&Mes,Festes,2,FALSE)),Mostrar_Festes=FALSE),\"\",VLOOKUP(O12&\"/\"&Mes,Festes,4,FALSE))","v":""},null,null,null,null,null,{"$f":"IF(OR(ISERROR(VLOOKUP(O12&\"/\"&Mes,Fases,2,FALSE)),Mostrar_Llunes=FALSE),\"\",VLOOKUP(O12&\"/\"&Mes,Fases,2,FALSE))","v":""},{"$f":"IF(OR(ISERROR(VLOOKUP(V12&\"/\"&Mes,Festes,2,FALSE)),Mostrar_Festes=FALSE),\"\",VLOOKUP(V12&\"/\"&Mes,Festes,4,FALSE))","v":""},null,null,null,null,null,{"$f":"IF(OR(ISERROR(VLOOKUP(V12&\"/\"&Mes,Fases,2,FALSE)),Mostrar_Llunes=FALSE),\"\",VLOOKUP(V12&\"/\"&Mes,Fases,2,FALSE))","v":""},{"$f":"IF(OR(ISERROR(VLOOKUP(AC12&\"/\"&Mes,Festes,2,FALSE)),Mostrar_Festes=FALSE),\"\",VLOOKUP(AC12&\"/\"&Mes,Festes,4,FALSE))","v":""},null,null,null,null,null,{"$f":"IF(OR(ISERROR(VLOOKUP(AC12&\"/\"&Mes,Fases,2,FALSE)),Mostrar_Llunes=FALSE),\"\",VLOOKUP(AC12&\"/\"&Mes,Fases,2,FALSE))","v":""},{"$f":"IF(OR(ISERROR(VLOOKUP(AJ12&\"/\"&Mes,Festes,2,FALSE)),Mostrar_Festes=FALSE),\"\",VLOOKUP(AJ12&\"/\"&Mes,Festes,4,FALSE))","v":""},null,null,null,null,null,{"$f":"IF(OR(ISERROR(VLOOKUP(AJ12&\"/\"&Mes,Fases,2,FALSE)),Mostrar_Llunes=FALSE),\"\",VLOOKUP(AJ12&\"/\"&Mes,Fases,2,FALSE))","v":""},{"$f":"IF(OR(ISERROR(VLOOKUP(AQ12&\"/\"&Mes,Festes,2,FALSE)),Mostrar_Festes=FALSE),\"\",VLOOKUP(AQ12&\"/\"&Mes,Festes,4,FALSE))","v":""},null,null,null,null,null,{"$f":"IF(OR(ISERROR(VLOOKUP(AQ12&\"/\"&Mes,Fases,2,FALSE)),Mostrar_Llunes=FALSE),\"\",VLOOKUP(AQ12&\"/\"&Mes,Fases,2,FALSE))","v":""},{"$f":"IF(OR(ISERROR(VLOOKUP(AX12&\"/\"&Mes,Festes,2,FALSE)),Mostrar_Festes=FALSE),\"\",VLOOKUP(AX12&\"/\"&Mes,Festes,4,FALSE))","v":""},null,null,null,null,null,{"$f":"IF(OR(ISERROR(VLOOKUP(AX12&\"/\"&Mes,Fases,2,FALSE)),Mostrar_Llunes=FALSE),\"\",VLOOKUP(AX12&\"/\"&Mes,Fases,2,FALSE))","v":""}]
[]
[]
[null,{"$f":"IF(OR(ISERROR(VLOOKUP(H17&\"/\"&Mes,Festes,2,FALSE)),Mostrar_Festes=FALSE),\"\",VLOOKUP(H17&\"/\"&Mes,Festes,2,FALSE))","v":""},null,null,null,null,null,{"$f":"AX12+1","v":4},{"$f":"IF(OR(ISERROR(VLOOKUP(O17&\"/\"&Mes,Festes,2,FALSE)),Mostrar_Festes=FALSE),\"\",VLOOKUP(O17&\"/\"&Mes,Festes,2,FALSE))","v":""},null,null,null,null,null,{"$f":"H17+1","v":5},{"$f":"IF(OR(ISERROR(VLOOKUP(V17&\"/\"&Mes,Festes,2,FALSE)),Mostrar_Festes=FALSE),\"\",VLOOKUP(V17&\"/\"&Mes,Festes,2,FALSE))","v":""},null,null,null,null,null,{"$f":"O17+1","v":6},{"$f":"IF(OR(ISERROR(VLOOKUP(AC17&\"/\"&Mes,Festes,2,FALSE)),Mostrar_Festes=FALSE),\"\",VLOOKUP(AC17&\"/\"&Mes,Festes,2,FALSE))","v":""},null,null,null,null,null,{"$f":"V17+1","v":7},{"$f":"IF(OR(ISERROR(VLOOKUP(AJ17&\"/\"&Mes,Festes,2,FALSE)),Mostrar_Festes=FALSE),\"\",VLOOKUP(AJ17&\"/\"&Mes,Festes,2,FALSE))","v":""},null,null,null,null,null,{"$f":"AC17+1","v":8},{"$f":"IF(OR(ISERROR(VLOOKUP(AQ17&\"/\"&Mes,Festes,2,FALSE)),Mostrar_Festes=FALSE),\"\",VLOOKUP(AQ17&\"/\"&Mes,Festes,2,FALSE))","v":""},null,null,null,null,null,{"$f":"AJ17+1","v":9},{"$f":"IF(OR(ISERROR(VLOOKUP(AX17&\"/\"&Mes,Festes,2,FALSE)),Mostrar_Festes=FALSE),\"\",VLOOKUP(AX17&\"/\"&Mes,Festes,2,FALSE))","v":""},null,null,null,null,null,{"$f":"AQ17+1","v":10}]
[]
[null,{"$f":"IF(OR(ISERROR(VLOOKUP(H17&\"/\"&Mes,Festes,2,FALSE)),Mostrar_Festes=FALSE),\"\",VLOOKUP(H17&\"/\"&Mes,Festes,4,FALSE))","v":""},null,null,null,null,null,{"$f":"IF(OR(ISERROR(VLOOKUP(H17&\"/\"&Mes,Fases,2,FALSE)),Mostrar_Llunes=FALSE),\"\",VLOOKUP(H17&\"/\"&Mes,Fases,2,FALSE))","v":""},{"$f":"IF(OR(ISERROR(VLOOKUP(O17&\"/\"&Mes,Festes,2,FALSE)),Mostrar_Festes=FALSE),\"\",VLOOKUP(O17&\"/\"&Mes,Festes,4,FALSE))","v":""},null,null,null,null,null,{"$f":"IF(OR(ISERROR(VLOOKUP(O17&\"/\"&Mes,Fases,2,FALSE)),Mostrar_Llunes=FALSE),\"\",VLOOKUP(O17&\"/\"&Mes,Fases,2,FALSE))","v":""},{"$f":"IF(OR(ISERROR(VLOOKUP(V17&\"/\"&Mes,Festes,2,FALSE)),Mostrar_Festes=FALSE),\"\",VLOOKUP(V17&\"/\"&Mes,Festes,4,FALSE))","v":""},null,null,null,null,null,{"$f":"IF(OR(ISERROR(VLOOKUP(V17&\"/\"&Mes,Fases,2,FALSE)),Mostrar_Llunes=FALSE),\"\",VLOOKUP(V17&\"/\"&Mes,Fases,2,FALSE))","v":"\u0099"},{"$f":"IF(OR(ISERROR(VLOOKUP(AC17&\"/\"&Mes,Festes,2,FALSE)),Mostrar_Festes=FALSE),\"\",VLOOKUP(AC17&\"/\"&Mes,Festes,4,FALSE))","v":""},null,null,null,null,null,{"$f":"IF(OR(ISERROR(VLOOKUP(AC17&\"/\"&Mes,Fases,2,FALSE)),Mostrar_Llunes=FALSE),\"\",VLOOKUP(AC17&\"/\"&Mes,Fases,2,FALSE))","v":""},{"$f":"IF(OR(ISERROR(VLOOKUP(AJ17&\"/\"&Mes,Festes,2,FALSE)),Mostrar_Festes=FALSE),\"\",VLOOKUP(AJ17&\"/\"&Mes,Festes,4,FALSE))","v":""},null,null,null,null,null,{"$f":"IF(OR(ISERROR(VLOOKUP(AJ17&\"/\"&Mes,Fases,2,FALSE)),Mostrar_Llunes=FALSE),\"\",VLOOKUP(AJ17&\"/\"&Mes,Fases,2,FALSE))","v":""},{"$f":"IF(OR(ISERROR(VLOOKUP(AQ17&\"/\"&Mes,Festes,2,FALSE)),Mostrar_Festes=FALSE),\"\",VLOOKUP(AQ17&\"/\"&Mes,Festes,4,FALSE))","v":""},null,null,null,null,null,{"$f":"IF(OR(ISERROR(VLOOKUP(AQ17&\"/\"&Mes,Fases,2,FALSE)),Mostrar_Llunes=FALSE),\"\",VLOOKUP(AQ17&\"/\"&Mes,Fases,2,FALSE))","v":""},{"$f":"IF(OR(ISERROR(VLOOKUP(AX17&\"/\"&Mes,Festes,2,FALSE)),Mostrar_Festes=FALSE),\"\",VLOOKUP(AX17&\"/\"&Mes,Festes,4,FALSE))","v":""},null,null,null,null,null,{"$f":"IF(OR(ISERROR(VLOOKUP(AX17&\"/\"&Mes,Fases,2,FALSE)),Mostrar_Llunes=FALSE),\"\",VLOOKUP(AX17&\"/\"&Mes,Fases,2,FALSE))","v":""}]
[]
[]
[null,{"$f":"IF(OR(ISERROR(VLOOKUP(H22&\"/\"&Mes,Festes,2,FALSE)),Mostrar_Festes=FALSE),\"\",VLOOKUP(H22&\"/\"&Mes,Festes,2,FALSE))","v":"Diada Nacional de Catalunya"},null,null,null,null,null,{"$f":"AX17+1","v":11},{"$f":"IF(OR(ISERROR(VLOOKUP(O22&\"/\"&Mes,Festes,2,FALSE)),Mostrar_Festes=FALSE),\"\",VLOOKUP(O22&\"/\"&Mes,Festes,2,FALSE))","v":""},null,null,null,null,null,{"$f":"H22+1","v":12},{"$f":"IF(OR(ISERROR(VLOOKUP(V22&\"/\"&Mes,Festes,2,FALSE)),Mostrar_Festes=FALSE),\"\",VLOOKUP(V22&\"/\"&Mes,Festes,2,FALSE))","v":""},null,null,null,null,null,{"$f":"O22+1","v":13},{"$f":"IF(OR(ISERROR(VLOOKUP(AC22&\"/\"&Mes,Festes,2,FALSE)),Mostrar_Festes=FALSE),\"\",VLOOKUP(AC22&\"/\"&Mes,Festes,2,FALSE))","v":""},null,null,null,null,null,{"$f":"V22+1","v":14},{"$f":"IF(OR(ISERROR(VLOOKUP(AJ22&\"/\"&Mes,Festes,2,FALSE)),Mostrar_Festes=FALSE),\"\",VLOOKUP(AJ22&\"/\"&Mes,Festes,2,FALSE))","v":""},null,null,null,null,null,{"$f":"AC22+1","v":15},{"$f":"IF(OR(ISERROR(VLOOKUP(AQ22&\"/\"&Mes,Festes,2,FALSE)),Mostrar_Festes=FALSE),\"\",VLOOKUP(AQ22&\"/\"&Mes,Festes,2,FALSE))","v":""},null,null,null,null,null,{"$f":"AJ22+1","v":16},{"$f":"IF(OR(ISERROR(VLOOKUP(AX22&\"/\"&Mes,Festes,2,FALSE)),Mostrar_Festes=FALSE),\"\",VLOOKUP(AX22&\"/\"&Mes,Festes,2,FALSE))","v":""},null,null,null,null,null,{"$f":"AQ22+1","v":17}]
[]
[null,{"$f":"IF(OR(ISERROR(VLOOKUP(H22&\"/\"&Mes,Festes,2,FALSE)),Mostrar_Festes=FALSE),\"\",VLOOKUP(H22&\"/\"&Mes,Festes,4,FALSE))","v":"La Diada"},null,null,null,null,null,{"$f":"IF(OR(ISERROR(VLOOKUP(H22&\"/\"&Mes,Fases,2,FALSE)),Mostrar_Llunes=FALSE),\"\",VLOOKUP(H22&\"/\"&Mes,Fases,2,FALSE))","v":""},{"$f":"IF(OR(ISERROR(VLOOKUP(O22&\"/\"&Mes,Festes,2,FALSE)),Mostrar_Festes=FALSE),\"\",VLOOKUP(O22&\"/\"&Mes,Festes,4,FALSE))","v":""},null,null,null,null,null,{"$f":"IF(OR(ISERROR(VLOOKUP(O22&\"/\"&Mes,Fases,2,FALSE)),Mostrar_Llunes=FALSE),\"\",VLOOKUP(O22&\"/\"&Mes,Fases,2,FALSE))","v":""},{"$f":"IF(OR(ISERROR(VLOOKUP(V22&\"/\"&Mes,Festes,2,FALSE)),Mostrar_Festes=FALSE),\"\",VLOOKUP(V22&\"/\"&Mes,Festes,4,FALSE))","v":""},null,null,null,null,null,{"$f":"IF(OR(ISERROR(VLOOKUP(V22&\"/\"&Mes,Fases,2,FALSE)),Mostrar_Llunes=FALSE),\"\",VLOOKUP(V22&\"/\"&Mes,Fases,2,FALSE))","v":"\u0083"},{"$f":"IF(OR(ISERROR(VLOOKUP(AC22&\"/\"&Mes,Festes,2,FALSE)),Mostrar_Festes=FALSE),\"\",VLOOKUP(AC22&\"/\"&Mes,Festes,4,FALSE))","v":""},null,null,null,null,null,{"$f":"IF(OR(ISERROR(VLOOKUP(AC22&\"/\"&Mes,Fases,2,FALSE)),Mostrar_Llunes=FALSE),\"\",VLOOKUP(AC22&\"/\"&Mes,Fases,2,FALSE))","v":""},{"$f":"IF(OR(ISERROR(VLOOKUP(AJ22&\"/\"&Mes,Festes,2,FALSE)),Mostrar_Festes=FALSE),\"\",VLOOKUP(AJ22&\"/\"&Mes,Festes,4,FALSE))","v":""},null,null,null,null,null,{"$f":"IF(OR(ISERROR(VLOOKUP(AJ22&\"/\"&Mes,Fases,2,FALSE)),Mostrar_Llunes=FALSE),\"\",VLOOKUP(AJ22&\"/\"&Mes,Fases,2,FALSE))","v":""},{"$f":"IF(OR(ISERROR(VLOOKUP(AQ22&\"/\"&Mes,Festes,2,FALSE)),Mostrar_Festes=FALSE),\"\",VLOOKUP(AQ22&\"/\"&Mes,Festes,4,FALSE))","v":""},null,null,null,null,null,{"$f":"IF(OR(ISERROR(VLOOKUP(AQ22&\"/\"&Mes,Fases,2,FALSE)),Mostrar_Llunes=FALSE),\"\",VLOOKUP(AQ22&\"/\"&Mes,Fases,2,FALSE))","v":""},{"$f":"IF(OR(ISERROR(VLOOKUP(AX22&\"/\"&Mes,Festes,2,FALSE)),Mostrar_Festes=FALSE),\"\",VLOOKUP(AX22&\"/\"&Mes,Festes,4,FALSE))","v":""},null,null,null,null,null,{"$f":"IF(OR(ISERROR(VLOOKUP(AX22&\"/\"&Mes,Fases,2,FALSE)),Mostrar_Llunes=FALSE),\"\",VLOOKUP(AX22&\"/\"&Mes,Fases,2,FALSE))","v":""}]
[]
[]
[null,{"$f":"IF(OR(ISERROR(VLOOKUP(H27&\"/\"&Mes,Festes,2,FALSE)),Mostrar_Festes=FALSE),\"\",VLOOKUP(H27&\"/\"&Mes,Festes,2,FALSE))","v":""},null,null,null,null,null,{"$f":"AX22+1","v":18},{"$f":"IF(OR(ISERROR(VLOOKUP(O27&\"/\"&Mes,Festes,2,FALSE)),Mostrar_Festes=FALSE),\"\",VLOOKUP(O27&\"/\"&Mes,Festes,2,FALSE))","v":""},null,null,null,null,null,{"$f":"H27+1","v":19},{"$f":"IF(OR(ISERROR(VLOOKUP(V27&\"/\"&Mes,Festes,2,FALSE)),Mostrar_Festes=FALSE),\"\",VLOOKUP(V27&\"/\"&Mes,Festes,2,FALSE))","v":""},null,null,null,null,null,{"$f":"O27+1","v":20},{"$f":"IF(OR(ISERROR(VLOOKUP(AC27&\"/\"&Mes,Festes,2,FALSE)),Mostrar_Festes=FALSE),\"\",VLOOKUP(AC27&\"/\"&Mes,Festes,2,FALSE))","v":""},null,null,null,null,null,{"$f":"V27+1","v":21},{"$f":"IF(OR(ISERROR(VLOOKUP(AJ27&\"/\"&Mes,Festes,2,FALSE)),Mostrar_Festes=FALSE),\"\",VLOOKUP(AJ27&\"/\"&Mes,Festes,2,FALSE))","v":""},null,null,null,null,null,{"$f":"AC27+1","v":22},{"$f":"IF(OR(ISERROR(VLOOKUP(AQ27&\"/\"&Mes,Festes,2,FALSE)),Mostrar_Festes=FALSE),\"\",VLOOKUP(AQ27&\"/\"&Mes,Festes,2,FALSE))","v":""},null,null,null,null,null,{"$f":"AJ27+1","v":23},{"$f":"IF(OR(ISERROR(VLOOKUP(AX27&\"/\"&Mes,Festes,2,FALSE)),Mostrar_Festes=FALSE),\"\",VLOOKUP(AX27&\"/\"&Mes,Festes,2,FALSE))","v":""},null,null,null,null,null,{"$f":"AQ27+1","v":24}]
[]
[null,{"$f":"IF(OR(ISERROR(VLOOKUP(H27&\"/\"&Mes,Festes,2,FALSE)),Mostrar_Festes=FALSE),\"\",VLOOKUP(H27&\"/\"&Mes,Festes,4,FALSE))","v":""},null,null,null,null,null,{"$f":"IF(OR(ISERROR(VLOOKUP(H27&\"/\"&Mes,Fases,2,FALSE)),Mostrar_Llunes=FALSE),\"\",VLOOKUP(H27&\"/\"&Mes,Fases,2,FALSE))","v":""},{"$f":"IF(OR(ISERROR(VLOOKUP(O27&\"/\"&Mes,Festes,2,FALSE)),Mostrar_Festes=FALSE),\"\",VLOOKUP(O27&\"/\"&Mes,Festes,4,FALSE))","v":""},null,null,null,null,null,{"$f":"IF(OR(ISERROR(VLOOKUP(O27&\"/\"&Mes,Fases,2,FALSE)),Mostrar_Llunes=FALSE),\"\",VLOOKUP(O27&\"/\"&Mes,Fases,2,FALSE))","v":""},{"$f":"IF(OR(ISERROR(VLOOKUP(V27&\"/\"&Mes,Festes,2,FALSE)),Mostrar_Festes=FALSE),\"\",VLOOKUP(V27&\"/\"&Mes,Festes,4,FALSE))","v":""},null,null,null,null,null,{"$f":"IF(OR(ISERROR(VLOOKUP(V27&\"/\"&Mes,Fases,2,FALSE)),Mostrar_Llunes=FALSE),\"\",VLOOKUP(V27&\"/\"&Mes,Fases,2,FALSE))","v":"\u0098"},{"$f":"IF(OR(ISERROR(VLOOKUP(AC27&\"/\"&Mes,Festes,2,FALSE)),Mostrar_Festes=FALSE),\"\",VLOOKUP(AC27&\"/\"&Mes,Festes,4,FALSE))","v":""},null,null,null,null,null,{"$f":"IF(OR(ISERROR(VLOOKUP(AC27&\"/\"&Mes,Fases,2,FALSE)),Mostrar_Llunes=FALSE),\"\",VLOOKUP(AC27&\"/\"&Mes,Fases,2,FALSE))","v":""},{"$f":"IF(OR(ISERROR(VLOOKUP(AJ27&\"/\"&Mes,Festes,2,FALSE)),Mostrar_Festes=FALSE),\"\",VLOOKUP(AJ27&\"/\"&Mes,Festes,4,FALSE))","v":""},null,null,null,null,null,{"$f":"IF(OR(ISERROR(VLOOKUP(AJ27&\"/\"&Mes,Fases,2,FALSE)),Mostrar_Llunes=FALSE),\"\",VLOOKUP(AJ27&\"/\"&Mes,Fases,2,FALSE))","v":""},{"$f":"IF(OR(ISERROR(VLOOKUP(AQ27&\"/\"&Mes,Festes,2,FALSE)),Mostrar_Festes=FALSE),\"\",VLOOKUP(AQ27&\"/\"&Mes,Festes,4,FALSE))","v":""},null,null,null,null,null,{"$f":"IF(OR(ISERROR(VLOOKUP(AQ27&\"/\"&Mes,Fases,2,FALSE)),Mostrar_Llunes=FALSE),\"\",VLOOKUP(AQ27&\"/\"&Mes,Fases,2,FALSE))","v":""},{"$f":"IF(OR(ISERROR(VLOOKUP(AX27&\"/\"&Mes,Festes,2,FALSE)),Mostrar_Festes=FALSE),\"\",VLOOKUP(AX27&\"/\"&Mes,Festes,4,FALSE))","v":""},null,null,null,null,null,{"$f":"IF(OR(ISERROR(VLOOKUP(AX27&\"/\"&Mes,Fases,2,FALSE)),Mostrar_Llunes=FALSE),\"\",VLOOKUP(AX27&\"/\"&Mes,Fases,2,FALSE))","v":""}]
[]
[]
[null,{"$f":"IF(OR(ISERROR(VLOOKUP(H32&\"/\"&Mes,Festes,2,FALSE)),Mostrar_Festes=FALSE),\"\",VLOOKUP(H32&\"/\"&Mes,Festes,2,FALSE))","v":""},null,null,null,null,null,{"$f":"IF(MONTH(DATE(Any,Mes,AX27+1))=Mes,AX27+1,\"\")","v":25},{"$f":"IF(OR(ISERROR(VLOOKUP(O32&\"/\"&Mes,Festes,2,FALSE)),Mostrar_Festes=FALSE),\"\",VLOOKUP(O32&\"/\"&Mes,Festes,2,FALSE))","v":""},null,null,null,null,null,{"$f":"IF(H32=\"\",\"\",IF(MONTH(DATE(Any,Mes,H32+1))=Mes,H32+1,\"\"))","v":26},{"$f":"IF(OR(ISERROR(VLOOKUP(V32&\"/\"&Mes,Festes,2,FALSE)),Mostrar_Festes=FALSE),\"\",VLOOKUP(V32&\"/\"&Mes,Festes,2,FALSE))","v":""},null,null,null,null,null,{"$f":"IF(O32=\"\",\"\",IF(MONTH(DATE(Any,Mes,O32+1))=Mes,O32+1,\"\"))","v":27},{"$f":"IF(OR(ISERROR(VLOOKUP(AC32&\"/\"&Mes,Festes,2,FALSE)),Mostrar_Festes=FALSE),\"\",VLOOKUP(AC32&\"/\"&Mes,Festes,2,FALSE))","v":""},null,null,null,null,null,{"$f":"IF(V32=\"\",\"\",IF(MONTH(DATE(Any,Mes,V32+1))=Mes,V32+1,\"\"))","v":28},{"$f":"IF(OR(ISERROR(VLOOKUP(AJ32&\"/\"&Mes,Festes,2,FALSE)),Mostrar_Festes=FALSE),\"\",VLOOKUP(AJ32&\"/\"&Mes,Festes,2,FALSE))","v":""},null,null,null,null,null,{"$f":"IF(AC32=\"\",\"\",IF(MONTH(DATE(Any,Mes,AC32+1))=Mes,AC32+1,\"\"))","v":29},{"$f":"IF(OR(ISERROR(VLOOKUP(AQ32&\"/\"&Mes,Festes,2,FALSE)),Mostrar_Festes=FALSE),\"\",VLOOKUP(AQ32&\"/\"&Mes,Festes,2,FALSE))","v":""},null,null,null,null,null,{"$f":"IF(AJ32=\"\",\"\",IF(MONTH(DATE(Any,Mes,AJ32+1))=Mes,AJ32+1,\"\"))","v":30},{"$f":"IF(OR(ISERROR(VLOOKUP(AX32&\"/\"&Mes,Festes,2,FALSE)),Mostrar_Festes=FALSE),\"\",VLOOKUP(AX32&\"/\"&Mes,Festes,2,FALSE))","v":""},null,null,null,null,null,{"$f":"IF(AQ32=\"\",\"\",IF(MONTH(DATE(Any,Mes,AQ32+1))=Mes,AQ32+1,\"\"))","v":""}]
[]
[null,{"$f":"IF(OR(ISERROR(VLOOKUP(H32&\"/\"&Mes,Festes,2,FALSE)),Mostrar_Festes=FALSE),\"\",VLOOKUP(H32&\"/\"&Mes,Festes,4,FALSE))","v":""},null,null,null,null,null,{"$f":"IF(OR(ISERROR(VLOOKUP(H32&\"/\"&Mes,Fases,2,FALSE)),Mostrar_Llunes=FALSE),\"\",VLOOKUP(H32&\"/\"&Mes,Fases,2,FALSE))","v":""},{"$f":"IF(OR(ISERROR(VLOOKUP(O32&\"/\"&Mes,Festes,2,FALSE)),Mostrar_Festes=FALSE),\"\",VLOOKUP(O32&\"/\"&Mes,Festes,4,FALSE))","v":""},null,null,null,null,null,{"$f":"IF(OR(ISERROR(VLOOKUP(O32&\"/\"&Mes,Fases,2,FALSE)),Mostrar_Llunes=FALSE),\"\",VLOOKUP(O32&\"/\"&Mes,Fases,2,FALSE))","v":""},{"$f":"IF(OR(ISERROR(VLOOKUP(V32&\"/\"&Mes,Festes,2,FALSE)),Mostrar_Festes=FALSE),\"\",VLOOKUP(V32&\"/\"&Mes,Festes,4,FALSE))","v":""},null,null,null,null,null,{"$f":"IF(OR(ISERROR(VLOOKUP(V32&\"/\"&Mes,Fases,2,FALSE)),Mostrar_Llunes=FALSE),\"\",VLOOKUP(V32&\"/\"&Mes,Fases,2,FALSE))","v":"\u0082"},{"$f":"IF(OR(ISERROR(VLOOKUP(AC32&\"/\"&Mes,Festes,2,FALSE)),Mostrar_Festes=FALSE),\"\",VLOOKUP(AC32&\"/\"&Mes,Festes,4,FALSE))","v":""},null,null,null,null,null,{"$f":"IF(OR(ISERROR(VLOOKUP(AC32&\"/\"&Mes,Fases,2,FALSE)),Mostrar_Llunes=FALSE),\"\",VLOOKUP(AC32&\"/\"&Mes,Fases,2,FALSE))","v":""},{"$f":"IF(OR(ISERROR(VLOOKUP(AJ32&\"/\"&Mes,Festes,2,FALSE)),Mostrar_Festes=FALSE),\"\",VLOOKUP(AJ32&\"/\"&Mes,Festes,4,FALSE))","v":""},null,null,null,null,null,{"$f":"IF(OR(ISERROR(VLOOKUP(AJ32&\"/\"&Mes,Fases,2,FALSE)),Mostrar_Llunes=FALSE),\"\",VLOOKUP(AJ32&\"/\"&Mes,Fases,2,FALSE))","v":""},{"$f":"IF(OR(ISERROR(VLOOKUP(AQ32&\"/\"&Mes,Festes,2,FALSE)),Mostrar_Festes=FALSE),\"\",VLOOKUP(AQ32&\"/\"&Mes,Festes,4,FALSE))","v":""},null,null,null,null,null,{"$f":"IF(OR(ISERROR(VLOOKUP(AQ32&\"/\"&Mes,Fases,2,FALSE)),Mostrar_Llunes=FALSE),\"\",VLOOKUP(AQ32&\"/\"&Mes,Fases,2,FALSE))","v":""},{"$f":"IF(OR(ISERROR(VLOOKUP(AX32&\"/\"&Mes,Festes,2,FALSE)),Mostrar_Festes=FALSE),\"\",VLOOKUP(AX32&\"/\"&Mes,Festes,4,FALSE))","v":""},null,null,null,null,null,{"$f":"IF(OR(ISERROR(VLOOKUP(AX32&\"/\"&Mes,Fases,2,FALSE)),Mostrar_Llunes=FALSE),\"\",VLOOKUP(AX32&\"/\"&Mes,Fases,2,FALSE))","v":""}]
[]
[]
[null,{"$f":"IF(OR(ISERROR(VLOOKUP(H37&\"/\"&Mes,Festes,2,FALSE)),Mostrar_Festes=FALSE),\"\",VLOOKUP(H37&\"/\"&Mes,Festes,2,FALSE))","v":""},null,null,null,null,null,{"$f":"IF(AX32=\"\",\"\",IF(MONTH(DATE(Any,Mes,AX32+1))=Mes,AX32+1,\"\"))","v":""},{"$f":"IF(OR(ISERROR(VLOOKUP(O37&\"/\"&Mes,Festes,2,FALSE)),Mostrar_Festes=FALSE),\"\",VLOOKUP(O37&\"/\"&Mes,Festes,2,FALSE))","v":""},null,null,null,null,null,{"$f":"IF(H37=\"\",\"\",IF(MONTH(DATE(Any,Mes,H37+1))=Mes,H37+1,\"\"))","v":""},{"$f":"IF(ISERROR(VLOOKUP(U37&\"/\"&Mes,Festes,2,FALSE)),\"\",VLOOKUP(U37&\"/\"&Mes,Festes,2,FALSE))","v":""},null,null,null,null,null,null,{"$f":"IF(ISERROR(VLOOKUP(AB37&\"/\"&Mes,Festes,2,FALSE)),\"\",VLOOKUP(AB37&\"/\"&Mes,Festes,2,FALSE))","v":""},null,null,null,null,null,null,{"$f":"IF(ISERROR(VLOOKUP(AI37&\"/\"&Mes,Festes,2,FALSE)),\"\",VLOOKUP(AI37&\"/\"&Mes,Festes,2,FALSE))","v":""},null,null,null,null,null,null,{"$f":"IF(ISERROR(VLOOKUP(AP37&\"/\"&Mes,Festes,2,FALSE)),\"\",VLOOKUP(AP37&\"/\"&Mes,Festes,2,FALSE))","v":""},null,null,null,null,null,null,{"$f":"IF(ISERROR(VLOOKUP(AW37&\"/\"&Mes,Festes,2,FALSE)),\"\",VLOOKUP(AW37&\"/\"&Mes,Festes,2,FALSE))","v":""}]
[]
[null,{"$f":"IF(OR(ISERROR(VLOOKUP(H37&\"/\"&Mes,Festes,2,FALSE)),Mostrar_Festes=FALSE),\"\",VLOOKUP(H37&\"/\"&Mes,Festes,4,FALSE))","v":""},null,null,null,null,null,{"$f":"IF(OR(ISERROR(VLOOKUP(H37&\"/\"&Mes,Fases,2,FALSE)),Mostrar_Llunes=FALSE),\"\",VLOOKUP(H37&\"/\"&Mes,Fases,2,FALSE))","v":""},{"$f":"IF(OR(ISERROR(VLOOKUP(O37&\"/\"&Mes,Festes,2,FALSE)),Mostrar_Festes=FALSE),\"\",VLOOKUP(O37&\"/\"&Mes,Festes,4,FALSE))","v":""},null,null,null,null,null,{"$f":"IF(OR(ISERROR(VLOOKUP(O37&\"/\"&Mes,Fases,2,FALSE)),Mostrar_Llunes=FALSE),\"\",VLOOKUP(O37&\"/\"&Mes,Fases,2,FALSE))","v":""}]

{"sheet":"Calendari setmana laboral","index":4,"n_rows":39,"n_cols":50,"rows_kept":39,"cut":false,"hidden":false,"merged":[[38,22,40,28],[1,8,8,28],[1,1,1,7],[33,15,35,21],[38,1,40,7],[38,8,40,14],[38,15,40,21],[26,14,27,14],[23,1,25,7],[23,8,25,14],[26,1,27,6],[26,7,27,7],[16,7,17,7],[16,8,17,13],[21,1,22,6],[21,7,22,7],[36,14,37,14],[36,8,37,13],[36,7,37,7],[33,1,35,7],[33,8,35,14],[28,1,30,7],[28,8,30,14],[31,1,32,6],[36,1,37,6],[33,43,35,49],[33,29,35,35],[33,36,35,42],[28,36,30,42],[26,49,27,49],[26,43,27,48],[31,29,32,34],[36,48,37,49],[26,28,27,28],[26,21,27,21],[26,22,27,27],[31,42,32,42],[31,7,32,7],[26,8,27,13],[31,36,32,41],[31,14,32,14],[31,8,32,13],[26,36,27,41],[38,43,40,49],[36,29,37,33],[36,34,37,35],[36,36,37,40],[36,41,37,42],[38,29,40,35],[38,36,40,42],[36,43,37,47],[1,29,1,35],[28,43,30,49],[26,29,27,34],[26,35,27,35],[21,42,22,42],[23,36,25,42],[11,36,12,41],[26,42,27,42],[23,43,25,49],[11,49,12,49],[28,29,30,35],[21,43,22,48],[18,29,20,35],[23,29,25,35],[10,43,10,49],[10,36,10,42],[23,15,25,21],[23,22,25,28],[26,15,27,20],[36,15,37,19],[36,20,37,21],[36,22,37,26],[36,27,37,28],[28,15,30,21],[28,22,30,28],[33,22,35,28],[31,21,32,21],[31,15,32,20],[18,36,20,42],[13,43,15,49],[16,43,17,48],[13,36,15,42],[21,28,22,28],[21,22,22,27],[21,36,22,41],[16,42,17,42],[16,36,17,41],[16,49,17,49],[18,1,20,7],[18,8,20,14],[18,15,20,21],[21,8,22,13],[21,21,22,21],[21,15,22,20],[21,14,22,14],[18,22,20,28],[10,1,10,7],[10,15,10,21],[10,22,10,28],[11,21,12,21],[16,28,17,28],[13,1,15,7],[13,8,15,14],[13,15,15,21],[11,15,12,20],[11,8,12,13],[16,22,17,27],[16,14,17,14],[16,21,17,21],[16,15,17,20],[13,22,15,28],[10,29,10,35],[11,42,12,42],[31,49,32,49],[31,43,32,48],[31,28,32,28],[31,22,32,27],[31,35,32,35],[11,14,12,14],[11,1,12,6],[16,1,17,6],[16,29,17,34],[11,7,12,7],[13,29,15,35],[11,28,12,28],[11,22,12,27],[11,35,12,35],[11,29,12,34],[10,8,10,14],[21,35,22,35],[21,29,22,34],[16,35,17,35],[11,43,12,48],[18,43,20,49],[21,49,22,49]]}
[]
[null,{"$f":"INDEX(rgMesos,MesAnt)&\" - \"&AnyAnt","v":"Agost - 2017"},null,null,null,null,null,null,{"$f":"INDEX(rgMesos,Mes)& \" - \" & Any","v":"Setembre - 2017"},null,null,null,null,null,null,null,null,null,null,null,null,null,null,null,null,null,null,null,null,{"$f":"INDEX(rgMesos,MesSeg)&\" - \"&AnySeg","v":"Octubre - 2017"}]
[null,{"$f":"INDEX(rgDies,1,3)","v":"Dll"},{"$f":"INDEX(rgDies,2,3)","v":"Dmt"},{"$f":"INDEX(rgDies,3,3)","v":"Dmc"},{"$f":"INDEX(rgDies,4,3)","v":"Djs"},{"$f":"INDEX(rgDies,5,3)","v":"Dvd"},{"$f":"INDEX(rgDies,6,3)","v":"Dss"},{"$f":"INDEX(rgDies,7,3)","v":"Dmg"},null,null,null,null,null,null,null,null,null,null,null,null,null,null,null,null,null,null,null,null,null,{"$f":"INDEX(rgDies,1,3)","v":"Dll"},{"$f":"INDEX(rgDies,2,3)","v":"Dmt"},{"$f":"INDEX(rgDies,3,3)","v":"Dmc"},{"$f":"INDEX(rgDies,4,3)","v":"Djs"},{"$f":"INDEX(rgDies,5,3)","v":"Dvd"},{"$f":"INDEX(rgDies,6,3)","v":"Dss"},{"$f":"INDEX(rgDies,7,3)","v":"Dmg"}]
[null,{"$f":"IF(WEEKDAY(DATE(AnyAnt,MesAnt,1),2)=1,1,\"\")","v":""},{"$f":"IF(B4=\"\",IF(WEEKDAY(DATE(AnyAnt,MesAnt,1),2)=2,1,\"\"),B4+1)","v":1},{"$f":"IF(C4=\"\",IF(WEEKDAY(DATE(AnyAnt,MesAnt,1),2)=3,1,\"\"),C4+1)","v":2},{"$f":"IF(D4=\"\",IF(WEEKDAY(DATE(AnyAnt,MesAnt,1),2)=4,1,\"\"),D4+1)","v":3},{"$f":"IF(E4=\"\",IF(WEEKDAY(DATE(AnyAnt,MesAnt,1),2)=5,1,\"\"),E4+1)","v":4},{"$f":"IF(F4=\"\",IF(WEEKDAY(DATE(AnyAnt,MesAnt,1),2)=6,1,\"\"),F4+1)","v":5},{"$f":"IF(G4=\"\",IF(WEEKDAY(DATE(AnyAnt,MesAnt,1),2)=7,1,\"\"),G4+1)","v":6},null,null,null,null,null,null,null,null,null,null,null,null,null,null,null,null,null,null,null,null,null,{"$f":"IF(WEEKDAY(DATE(AnySeg,MesSeg,1),2)=1,1,\"\")","v":""},{"$f":"IF(AD4=\"\",IF(WEEKDAY(DATE(AnySeg,MesSeg,1),2)=2,1,\"\"),AD4+1)","v":""},{"$f":"IF(AE4=\"\",IF(WEEKDAY(DATE(AnySeg,MesSeg,1),2)=3,1,\"\"),AE4+1)","v":""},{"$f":"IF(AF4=\"\",IF(WEEKDAY(DATE(AnySeg,MesSeg,1),2)=4,1,\"\"),AF4+1)","v":""},{"$f":"IF(AG4=\"\",IF(WEEKDAY(DATE(AnySeg,MesSeg,1),2)=5,1,\"\"),AG4+1)","v":""},{"$f":"IF(AH4=\"\",IF(WEEKDAY(DATE(AnySeg,MesSeg,1),2)=6,1,\"\"),AH4+1)","v":""},{"$f":"IF(AI4=\"\",IF(WEEKDAY(DATE(AnySeg,MesSeg,1),2)=7,1,\"\"),AI4+1)","v":1}]
[null,{"$f":"H4+1","v":7},{"$f":"B5+1","v":8},9,10,11,12,13,null,null,null,null,null,null,null,null,null,null,null,null,null,null,null,null,null,null,null,null,null,{"$f":"AJ4+1","v":2},{"$f":"AD5+1","v":3},4,5,6,7,8]
[null,{"$f":"H5+1","v":14},15,16,17,18,19,20,null,null,null,null,null,null,null,null,null,null,null,null,null,null,null,null,null,null,null,null,null,{"$f":"AJ5+1","v":9},10,11,12,13,14,15]
[null,{"$f":"H6+1","v":21},22,23,24,25,26,27,null,null,null,null,null,null,null,null,null,null,null,null,null,null,null,null,null,null,null,null,null,{"$f":"AJ6+1","v":16},17,18,19,20,21,22]
[null,{"$f":"IF(MONTH(DATE(AnyAnt,MesAnt,H7+1))=MesAnt,H7+1,\"\")","v":28},{"$f":"IF(B8=\"\",\"\",IF(MONTH(DATE(AnyAnt,MesAnt,B8+1))=MesAnt,B8+1,\"\"))","v":29},30,31,"","","",null,null,null,null,null,null,null,null,null,null,null,null,null,null,null,null,null,null,null,null,null,{"$f":"IF(MONTH(DATE(AnySeg,MesSeg,AJ7+1))=MesSeg,AJ7+1,\"\")","v":23},{"$f":"IF(AD8=\"\",\"\",IF(MONTH(DATE(AnySeg,MesSeg,AD8+1))=MesSeg,AD8+1,\"\"))","v":24},25,26,27,28,29]
[null,{"$f":"IF(H8=\"\",\"\",IF(MONTH(DATE(AnyAnt,MesAnt,H8+1))=MesAnt,H8+1,\"\"))","v":""},{"$f":"IF(B9=\"\",\"\",IF(MONTH(DATE(AnyAnt,MesAnt,B9+1))=MesAnt,B9+1,\"\"))","v":""},null,null,null,null,null,null,null,null,null,null,null,null,null,null,null,null,null,null,null,null,null,null,null,null,null,null,{"$f":"IF(AJ8=\"\",\"\",IF(MONTH(DATE(AnySeg,MesSeg,AJ8+1))=MesSeg,AJ8+1,\"\"))","v":30},{"$f":"IF(AD9=\"\",\"\",IF(MONTH(DATE(AnySeg,MesSeg,AD9+1))=MesSeg,AD9+1,\"\"))","v":31}]
[]
[null,{"$f":"INDEX(rgDies,1,1)","v":"Dilluns"},null,null,null,null,null,null,{"$f":"INDEX(rgDies,2,1)","v":"Dimarts"},null,null,null,null,null,null,{"$f":"INDEX(rgDies,3,1)","v":"Dimecres"},null,null,null,null,null,null,{"$f":"INDEX(rgDies,4,1)","v":"Dijous"},null,null,null,null,null,null,{"$f":"INDEX(rgDies,5,1)","v":"Divendres"},null,null,null,null,null,null,"Dissabte   ",null,null,null,null,null,null,"Diumenge   "]
[null,{"$f":"IF(OR(ISERROR(VLOOKUP(H12&\"/\"&Mes,Festes,2,FALSE)),Mostrar_Festes=FALSE),\"\",VLOOKUP(H12&\"/\"&Mes,Festes,2,FALSE))","v":""},null,null,null,null,null,{"$f":"IF(WEEKDAY(DATE(Any,Mes,1),2)=1,1,\"\")","v":""},{"$f":"IF(OR(ISERROR(VLOOKUP(O12&\"/\"&Mes,Festes,2,FALSE)),Mostrar_Festes=FALSE),\"\",VLOOKUP(O12&\"/\"&Mes,Festes,2,FALSE))","v":""},null,null,null,null,null,{"$f":"IF(H12=\"\",IF(WEEKDAY(DATE(Any,Mes,1),2)=2,1,\"\"),H12+1)","v":""},{"$f":"IF(OR(ISERROR(VLOOKUP(V12&\"/\"&Mes,Festes,2,FALSE)),Mostrar_Festes=FALSE),\"\",VLOOKUP(V12&\"/\"&Mes,Festes,2,FALSE))","v":""},null,null,null,null,null,{"$f":"IF(O12=\"\",IF(WEEKDAY(DATE(Any,Mes,1),2)=3,1,\"\"),O12+1)","v":""},{"$f":"IF(OR(ISERROR(VLOOKUP(AC12&\"/\"&Mes,Festes,2,FALSE)),Mostrar_Festes=FALSE),\"\",VLOOKUP(AC12&\"/\"&Mes,Festes,2,FALSE))","v":""},null,null,null,null,null,{"$f":"IF(V12=\"\",IF(WEEKDAY(DATE(Any,Mes,1),2)=4,1,\"\"),V12+1)","v":""},{"$f":"IF(OR(ISERROR(VLOOKUP(AJ12&\"/\"&Mes,Festes,2,FALSE)),Mostrar_Festes=FALSE),\"\",VLOOKUP(AJ12&\"/\"&Mes,Festes,2,FALSE))","v":""},null,null,null,null,null,{"$f":"IF(AC12=\"\",IF(WEEKDAY(DATE(Any,Mes,1),2)=5,1,\"\"),AC12+1)","v":1},{"$f":"IF(OR(ISERROR(VLOOKUP(AQ12&\"/\"&Mes,Festes,2,FALSE)),Mostrar_Festes=FALSE),\"\",VLOOKUP(AQ12&\"/\"&Mes,Festes,2,FALSE))","v":""},null,null,null,null,null,{"$f":"IF(AJ12=\"\",IF(WEEKDAY(DATE(Any,Mes,1),2)=6,1,\"\"),AJ12+1)","v":2},{"$f":"IF(OR(ISERROR(VLOOKUP(AX12&\"/\"&Mes,Festes,2,FALSE)),Mostrar_Festes=FALSE),\"\",VLOOKUP(AX12&\"/\"&Mes,Festes,2,FALSE))","v":""},null,null,null,null,null,{"$f":"IF(AQ12=\"\",IF(WEEKDAY(DATE(Any,Mes,1),2)=7,1,\"\"),AQ12+1)","v":3}]
[]
[null,{"$f":"IF(OR(ISERROR(VLOOKUP(H12&\"/\"&Mes,Festes,2,FALSE)),Mostrar_Festes=FALSE),\"\",VLOOKUP(H12&\"/\"&Mes,Festes,4,FALSE))","v":""},null,null,null,null,null,null,{"$f":"IF(OR(ISERROR(VLOOKUP(O12&\"/\"&Mes,Festes,2,FALSE)),Mostrar_Festes=FALSE),\"\",VLOOKUP(O12&\"/\"&Mes,Festes,4,FALSE))","v":""},null,null,null,null,null,null,{"$f":"IF(OR(ISERROR(VLOOKUP(V12&\"/\"&Mes,Festes,2,FALSE)),Mostrar_Festes=FALSE),\"\",VLOOKUP(V12&\"/\"&Mes,Festes,4,FALSE))","v":""},null,null,null,null,null,null,{"$f":"IF(OR(ISERROR(VLOOKUP(AC12&\"/\"&Mes,Festes,2,FALSE)),Mostrar_Festes=FALSE),\"\",VLOOKUP(AC12&\"/\"&Mes,Festes,4,FALSE))","v":""},null,null,null,null,null,null,{"$f":"IF(OR(ISERROR(VLOOKUP(AJ12&\"/\"&Mes,Festes,2,FALSE)),Mostrar_Festes=FALSE),\"\",VLOOKUP(AJ12&\"/\"&Mes,Festes,4,FALSE))","v":""}]
[]
[]
[null,{"$f":"IF(OR(ISERROR(VLOOKUP(H17&\"/\"&Mes,Festes,2,FALSE)),Mostrar_Festes=FALSE),\"\",VLOOKUP(H17&\"/\"&Mes,Festes,2,FALSE))","v":""},null,null,null,null,null,{"$f":"AX12+1","v":4},{"$f":"IF(OR(ISERROR(VLOOKUP(O17&\"/\"&Mes,Festes,2,FALSE)),Mostrar_Festes=FALSE),\"\",VLOOKUP(O17&\"/\"&Mes,Festes,2,FALSE))","v":""},null,null,null,null,null,{"$f":"H17+1","v":5},{"$f":"IF(OR(ISERROR(VLOOKUP(V17&\"/\"&Mes,Festes,2,FALSE)),Mostrar_Festes=FALSE),\"\",VLOOKUP(V17&\"/\"&Mes,Festes,2,FALSE))","v":""},null,null,null,null,null,{"$f":"O17+1","v":6},{"$f":"IF(OR(ISERROR(VLOOKUP(AC17&\"/\"&Mes,Festes,2,FALSE)),Mostrar_Festes=FALSE),\"\",VLOOKUP(AC17&\"/\"&Mes,Festes,2,FALSE))","v":""},null,null,null,null,null,{"$f":"V17+1","v":7},{"$f":"IF(OR(ISERROR(VLOOKUP(AJ17&\"/\"&Mes,Festes,2,FALSE)),Mostrar_Festes=FALSE),\"\",VLOOKUP(AJ17&\"/\"&Mes,Festes,2,FALSE))","v":""},null,null,null,null,null,{"$f":"AC17+1","v":8},{"$f":"IF(OR(ISERROR(VLOOKUP(AQ17&\"/\"&Mes,Festes,2,FALSE)),Mostrar_Festes=FALSE),\"\",VLOOKUP(AQ17&\"/\"&Mes,Festes,2,FALSE))","v":""},null,null,null,null,null,{"$f":"AJ17+1","v":9},{"$f":"IF(OR(ISERROR(VLOOKUP(AX17&\"/\"&Mes,Festes,2,FALSE)),Mostrar_Festes=FALSE),\"\",VLOOKUP(AX17&\"/\"&Mes,Festes,2,FALSE))","v":""},null,null,null,null,null,{"$f":"AQ17+1","v":10}]
[]
[null,{"$f":"IF(OR(ISERROR(VLOOKUP(H17&\"/\"&Mes,Festes,2,FALSE)),Mostrar_Festes=FALSE),\"\",VLOOKUP(H17&\"/\"&Mes,Festes,4,FALSE))","v":""},null,null,null,null,null,null,{"$f":"IF(OR(ISERROR(VLOOKUP(O17&\"/\"&Mes,Festes,2,FALSE)),Mostrar_Festes=FALSE),\"\",VLOOKUP(O17&\"/\"&Mes,Festes,4,FALSE))","v":""},null,null,null,null,null,null,{"$f":"IF(OR(ISERROR(VLOOKUP(V17&\"/\"&Mes,Festes,2,FALSE)),Mostrar_Festes=FALSE),\"\",VLOOKUP(V17&\"/\"&Mes,Festes,4,FALSE))","v":""},null,null,null,null,null,null,{"$f":"IF(OR(ISERROR(VLOOKUP(AC17&\"/\"&Mes,Festes,2,FALSE)),Mostrar_Festes=FALSE),\"\",VLOOKUP(AC17&\"/\"&Mes,Festes,4,FALSE))","v":""},null,null,null,null,null,null,{"$f":"IF(OR(ISERROR(VLOOKUP(AJ17&\"/\"&Mes,Festes,2,FALSE)),Mostrar_Festes=FALSE),\"\",VLOOKUP(AJ17&\"/\"&Mes,Festes,4,FALSE))","v":""}]
[]
[]
[null,{"$f":"IF(OR(ISERROR(VLOOKUP(H22&\"/\"&Mes,Festes,2,FALSE)),Mostrar_Festes=FALSE),\"\",VLOOKUP(H22&\"/\"&Mes,Festes,2,FALSE))","v":"Diada Nacional de Catalunya"},null,null,null,null,null,{"$f":"AX17+1","v":11},{"$f":"IF(OR(ISERROR(VLOOKUP(O22&\"/\"&Mes,Festes,2,FALSE)),Mostrar_Festes=FALSE),\"\",VLOOKUP(O22&\"/\"&Mes,Festes,2,FALSE))","v":""},null,null,null,null,null,{"$f":"H22+1","v":12},{"$f":"IF(OR(ISERROR(VLOOKUP(V22&\"/\"&Mes,Festes,2,FALSE)),Mostrar_Festes=FALSE),\"\",VLOOKUP(V22&\"/\"&Mes,Festes,2,FALSE))","v":""},null,null,null,null,null,{"$f":"O22+1","v":13},{"$f":"IF(OR(ISERROR(VLOOKUP(AC22&\"/\"&Mes,Festes,2,FALSE)),Mostrar_Festes=FALSE),\"\",VLOOKUP(AC22&\"/\"&Mes,Festes,2,FALSE))","v":""},null,null,null,null,null,{"$f":"V22+1","v":14},{"$f":"IF(OR(ISERROR(VLOOKUP(AJ22&\"/\"&Mes,Festes,2,FALSE)),Mostrar_Festes=FALSE),\"\",VLOOKUP(AJ22&\"/\"&Mes,Festes,2,FALSE))","v":""},null,null,null,null,null,{"$f":"AC22+1","v":15},{"$f":"IF(OR(ISERROR(VLOOKUP(AQ22&\"/\"&Mes,Festes,2,FALSE)),Mostrar_Festes=FALSE),\"\",VLOOKUP(AQ22&\"/\"&Mes,Festes,2,FALSE))","v":""},null,null,null,null,null,{"$f":"AJ22+1","v":16},{"$f":"IF(OR(ISERROR(VLOOKUP(AX22&\"/\"&Mes,Festes,2,FALSE)),Mostrar_Festes=FALSE),\"\",VLOOKUP(AX22&\"/\"&Mes,Festes,2,FALSE))","v":""},null,null,null,null,null,{"$f":"AQ22+1","v":17}]
[]
[null,{"$f":"IF(OR(ISERROR(VLOOKUP(H22&\"/\"&Mes,Festes,2,FALSE)),Mostrar_Festes=FALSE),\"\",VLOOKUP(H22&\"/\"&Mes,Festes,4,FALSE))","v":"La Diada"},null,null,null,null,null,null,{"$f":"IF(OR(ISERROR(VLOOKUP(O22&\"/\"&Mes,Festes,2,FALSE)),Mostrar_Festes=FALSE),\"\",VLOOKUP(O22&\"/\"&Mes,Festes,4,FALSE))","v":""},null,null,null,null,null,null,{"$f":"IF(OR(ISERROR(VLOOKUP(V22&\"/\"&Mes,Festes,2,FALSE)),Mostrar_Festes=FALSE),\"\",VLOOKUP(V22&\"/\"&Mes,Festes,4,FALSE))","v":""},null,null,null,null,null,null,{"$f":"IF(OR(ISERROR(VLOOKUP(AC22&\"/\"&Mes,Festes,2,FALSE)),Mostrar_Festes=FALSE),\"\",VLOOKUP(AC22&\"/\"&Mes,Festes,4,FALSE))","v":""},null,null,null,null,null,null,{"$f":"IF(OR(ISERROR(VLOOKUP(AJ22&\"/\"&Mes,Festes,2,FALSE)),Mostrar_Festes=FALSE),\"\",VLOOKUP(AJ22&\"/\"&Mes,Festes,4,FALSE))","v":""}]
[]
[]
[null,{"$f":"IF(OR(ISERROR(VLOOKUP(H27&\"/\"&Mes,Festes,2,FALSE)),Mostrar_Festes=FALSE),\"\",VLOOKUP(H27&\"/\"&Mes,Festes,2,FALSE))","v":""},null,null,null,null,null,{"$f":"AX22+1","v":18},{"$f":"IF(OR(ISERROR(VLOOKUP(O27&\"/\"&Mes,Festes,2,FALSE)),Mostrar_Festes=FALSE),\"\",VLOOKUP(O27&\"/\"&Mes,Festes,2,FALSE))","v":""},null,null,null,null,null,{"$f":"H27+1","v":19},{"$f":"IF(OR(ISERROR(VLOOKUP(V27&\"/\"&Mes,Festes,2,FALSE)),Mostrar_Festes=FALSE),\"\",VLOOKUP(V27&\"/\"&Mes,Festes,2,FALSE))","v":""},null,null,null,null,null,{"$f":"O27+1","v":20},{"$f":"IF(OR(ISERROR(VLOOKUP(AC27&\"/\"&Mes,Festes,2,FALSE)),Mostrar_Festes=FALSE),\"\",VLOOKUP(AC27&\"/\"&Mes,Festes,2,FALSE))","v":""},null,null,null,null,null,{"$f":"V27+1","v":21},{"$f":"IF(OR(ISERROR(VLOOKUP(AJ27&\"/\"&Mes,Festes,2,FALSE)),Mostrar_Festes=FALSE),\"\",VLOOKUP(AJ27&\"/\"&Mes,Festes,2,FALSE))","v":""},null,null,null,null,null,{"$f":"AC27+1","v":22},{"$f":"IF(OR(ISERROR(VLOOKUP(AQ27&\"/\"&Mes,Festes,2,FALSE)),Mostrar_Festes=FALSE),\"\",VLOOKUP(AQ27&\"/\"&Mes,Festes,2,FALSE))","v":""},null,null,null,null,null,{"$f":"AJ27+1","v":23},{"$f":"IF(OR(ISERROR(VLOOKUP(AX27&\"/\"&Mes,Festes,2,FALSE)),Mostrar_Festes=FALSE),\"\",VLOOKUP(AX27&\"/\"&Mes,Festes,2,FALSE))","v":""},null,null,null,null,null,{"$f":"AQ27+1","v":24}]
[]
[null,{"$f":"IF(OR(ISERROR(VLOOKUP(H27&\"/\"&Mes,Festes,2,FALSE)),Mostrar_Festes=FALSE),\"\",VLOOKUP(H27&\"/\"&Mes,Festes,4,FALSE))","v":""},null,null,null,null,null,null,{"$f":"IF(OR(ISERROR(VLOOKUP(O27&\"/\"&Mes,Festes,2,FALSE)),Mostrar_Festes=FALSE),\"\",VLOOKUP(O27&\"/\"&Mes,Festes,4,FALSE))","v":""},null,null,null,null,null,null,{"$f":"IF(OR(ISERROR(VLOOKUP(V27&\"/\"&Mes,Festes,2,FALSE)),Mostrar_Festes=FALSE),\"\",VLOOKUP(V27&\"/\"&Mes,Festes,4,FALSE))","v":""},null,null,null,null,null,null,{"$f":"IF(OR(ISERROR(VLOOKUP(AC27&\"/\"&Mes,Festes,2,FALSE)),Mostrar_Festes=FALSE),\"\",VLOOKUP(AC27&\"/\"&Mes,Festes,4,FALSE))","v":""},null,null,null,null,null,null,{"$f":"IF(OR(ISERROR(VLOOKUP(AJ27&\"/\"&Mes,Festes,2,FALSE)),Mostrar_Festes=FALSE),\"\",VLOOKUP(AJ27&\"/\"&Mes,Festes,4,FALSE))","v":""}]
[]
[]
[null,{"$f":"IF(OR(ISERROR(VLOOKUP(H32&\"/\"&Mes,Festes,2,FALSE)),Mostrar_Festes=FALSE),\"\",VLOOKUP(H32&\"/\"&Mes,Festes,2,FALSE))","v":""},null,null,null,null,null,{"$f":"IF(MONTH(DATE(Any,Mes,AX27+1))=Mes,AX27+1,\"\")","v":25},{"$f":"IF(OR(ISERROR(VLOOKUP(O32&\"/\"&Mes,Festes,2,FALSE)),Mostrar_Festes=FALSE),\"\",VLOOKUP(O32&\"/\"&Mes,Festes,2,FALSE))","v":""},null,null,null,null,null,{"$f":"IF(H32=\"\",\"\",IF(MONTH(DATE(Any,Mes,H32+1))=Mes,H32+1,\"\"))","v":26},{"$f":"IF(OR(ISERROR(VLOOKUP(V32&\"/\"&Mes,Festes,2,FALSE)),Mostrar_Festes=FALSE),\"\",VLOOKUP(V32&\"/\"&Mes,Festes,2,FALSE))","v":""},null,null,null,null,null,{"$f":"IF(O32=\"\",\"\",IF(MONTH(DATE(Any,Mes,O32+1))=Mes,O32+1,\"\"))","v":27},{"$f":"IF(OR(ISERROR(VLOOKUP(AC32&\"/\"&Mes,Festes,2,FALSE)),Mostrar_Festes=FALSE),\"\",VLOOKUP(AC32&\"/\"&Mes,Festes,2,FALSE))","v":""},null,null,null,null,null,{"$f":"IF(V32=\"\",\"\",IF(MONTH(DATE(Any,Mes,V32+1))=Mes,V32+1,\"\"))","v":28},{"$f":"IF(OR(ISERROR(VLOOKUP(AJ32&\"/\"&Mes,Festes,2,FALSE)),Mostrar_Festes=FALSE),\"\",VLOOKUP(AJ32&\"/\"&Mes,Festes,2,FALSE))","v":""},null,null,null,null,null,{"$f":"IF(AC32=\"\",\"\",IF(MONTH(DATE(Any,Mes,AC32+1))=Mes,AC32+1,\"\"))","v":29},{"$f":"IF(OR(ISERROR(VLOOKUP(AQ32&\"/\"&Mes,Festes,2,FALSE)),Mostrar_Festes=FALSE),\"\",VLOOKUP(AQ32&\"/\"&Mes,Festes,2,FALSE))","v":""},null,null,null,null,null,{"$f":"IF(AJ32=\"\",\"\",IF(MONTH(DATE(Any,Mes,AJ32+1))=Mes,AJ32+1,\"\"))","v":30},{"$f":"IF(OR(ISERROR(VLOOKUP(AX32&\"/\"&Mes,Festes,2,FALSE)),Mostrar_Festes=FALSE),\"\",VLOOKUP(AX32&\"/\"&Mes,Festes,2,FALSE))","v":""},null,null,null,null,null,{"$f":"IF(AQ32=\"\",\"\",IF(MONTH(DATE(Any,Mes,AQ32+1))=Mes,AQ32+1,\"\"))","v":""}]
[]
[null,{"$f":"IF(OR(ISERROR(VLOOKUP(H32&\"/\"&Mes,Festes,2,FALSE)),Mostrar_Festes=FALSE),\"\",VLOOKUP(H32&\"/\"&Mes,Festes,4,FALSE))","v":""},null,null,null,null,null,null,{"$f":"IF(OR(ISERROR(VLOOKUP(O32&\"/\"&Mes,Festes,2,FALSE)),Mostrar_Festes=FALSE),\"\",VLOOKUP(O32&\"/\"&Mes,Festes,4,FALSE))","v":""},null,null,null,null,null,null,{"$f":"IF(OR(ISERROR(VLOOKUP(V32&\"/\"&Mes,Festes,2,FALSE)),Mostrar_Festes=FALSE),\"\",VLOOKUP(V32&\"/\"&Mes,Festes,4,FALSE))","v":""},null,null,null,null,null,null,{"$f":"IF(OR(ISERROR(VLOOKUP(AC32&\"/\"&Mes,Festes,2,FALSE)),Mostrar_Festes=FALSE),\"\",VLOOKUP(AC32&\"/\"&Mes,Festes,4,FALSE))","v":""},null,null,null,null,null,null,{"$f":"IF(OR(ISERROR(VLOOKUP(AJ32&\"/\"&Mes,Festes,2,FALSE)),Mostrar_Festes=FALSE),\"\",VLOOKUP(AJ32&\"/\"&Mes,Festes,4,FALSE))","v":""}]
[]
[]
[null,{"$f":"IF(OR(ISERROR(VLOOKUP(H37&\"/\"&Mes,Festes,2,FALSE)),Mostrar_Festes=FALSE),\"\",VLOOKUP(H37&\"/\"&Mes,Festes,2,FALSE))","v":""},null,null,null,null,null,{"$f":"IF(AX32=\"\",\"\",IF(MONTH(DATE(Any,Mes,AX32+1))=Mes,AX32+1,\"\"))","v":""},{"$f":"IF(OR(ISERROR(VLOOKUP(O37&\"/\"&Mes,Festes,2,FALSE)),Mostrar_Festes=FALSE),\"\",VLOOKUP(O37&\"/\"&Mes,Festes,2,FALSE))","v":""},null,null,null,null,null,{"$f":"IF(H37=\"\",\"\",IF(MONTH(DATE(Any,Mes,H37+1))=Mes,H37+1,\"\"))","v":""},{"$f":"IF(ISERROR(VLOOKUP(U37&\"/\"&Mes,Festes,2,FALSE)),\"\",VLOOKUP(U37&\"/\"&Mes,Festes,2,FALSE))","v":""},null,null,null,null,null,null,{"$f":"IF(ISERROR(VLOOKUP(AB37&\"/\"&Mes,Festes,2,FALSE)),\"\",VLOOKUP(AB37&\"/\"&Mes,Festes,2,FALSE))","v":""},null,null,null,null,null,null,{"$f":"IF(ISERROR(VLOOKUP(AI37&\"/\"&Mes,Festes,2,FALSE)),\"\",VLOOKUP(AI37&\"/\"&Mes,Festes,2,FALSE))","v":""},null,null,null,null,null,null,{"$f":"IF(ISERROR(VLOOKUP(AP37&\"/\"&Mes,Festes,2,FALSE)),\"\",VLOOKUP(AP37&\"/\"&Mes,Festes,2,FALSE))","v":""},null,null,null,null,null,null,{"$f":"IF(ISERROR(VLOOKUP(AW37&\"/\"&Mes,Festes,2,FALSE)),\"\",VLOOKUP(AW37&\"/\"&Mes,Festes,2,FALSE))","v":""}]
[]
[null,{"$f":"IF(OR(ISERROR(VLOOKUP(H37&\"/\"&Mes,Festes,2,FALSE)),Mostrar_Festes=FALSE),\"\",VLOOKUP(H37&\"/\"&Mes,Festes,4,FALSE))","v":""},null,null,null,null,null,null,{"$f":"IF(OR(ISERROR(VLOOKUP(O37&\"/\"&Mes,Festes,2,FALSE)),Mostrar_Festes=FALSE),\"\",VLOOKUP(O37&\"/\"&Mes,Festes,4,FALSE))","v":""}]

{"sheet":"Taules","index":5,"n_rows":3002,"n_cols":21,"rows_kept":3002,"cut":false,"hidden":false,"merged":[[2,17,13,17],[14,17,29,17],[27,2,27,3],[28,2,28,3],[29,2,29,3],[20,1,20,2],[22,1,22,2],[23,2,23,3],[24,2,24,3],[32,2,32,3],[31,2,31,3],[33,2,33,3],[34,2,34,3],[25,2,25,3],[26,2,26,3],[30,2,30,3]]}
[]
[null,null,null,null,null,null,null,null,"Anys",null,"Mesos",null,null,"Data","Títol del dia destacat en negreta a la primera línia","És festiu?","Nota de text en segona línia"]
[null,"Any",2017,null,null,null,null,null,1,null,{"$f":"CHOOSE(Idioma,\"Gener\",\"Enero\",\"January\",\"Janvier\",\"Januar\")","v":"Gener"},null,1,"1/1","Cap d'Any",null,"Vacances de Nadal","Festes Fixes"]
[null,"Mes",9,null,null,null,null,null,2,null,{"$f":"CHOOSE(Idioma,\"Febrer\",\"Febrero\",\"February\",\"Février\",\"Februar\")","v":"Febrer"},null,2,"6/1","Reis",null,"Vacances de Nadal"]
[null,"AnyAnt",{"$f":"IF(Mes=1,Any-1,Any)","v":2017},null,null,null,null,null,3,null,{"$f":"CHOOSE(Idioma,\"Març\",\"Marzo\",\"March\",\"Mars\",\"März\")","v":"Març"},null,3,"1/5","Festa del Treball"]
[null,"MesAnt",{"$f":"IF(Mes=1,12,Mes-1)","v":8},null,null,null,null,null,4,null,{"$f":"CHOOSE(Idioma,\"Abril\",\"Abril\",\"April\",\"Avril\",\"April\")","v":"Abril"},null,4,"24/6","Sant Joan"]
[null,"AnySeg",{"$f":"IF(Mes=12,Any+1,Any)","v":2017},null,null,null,null,null,5,null,{"$f":"CHOOSE(Idioma,\"Maig\",\"Mayo\",\"May\",\"Mai\",\"Mai\")","v":"Maig"},null,5,"15/8","Mare de Déu d'Agost"]
[null,"MesSeg",{"$f":"IF(Mes=12,1,Mes+1)","v":10},null,null,null,null,null,6,null,{"$f":"CHOOSE(Idioma,\"Juny\",\"Junio\",\"June\",\"Juin\",\"Juni\")","v":"Juny"},null,6,"11/9","Diada Nacional de Catalunya",null,"La Diada"]
[null,null,null,null,null,null,null,null,7,null,{"$f":"CHOOSE(Idioma,\"Juliol\",\"Julio\",\"July\",\"Juillet\",\"Juli\")","v":"Juliol"},null,7,"12/10","Festa del Pilar ",null," la Hispanitat"]
[null,"Idioma",1,null,null,null,null,null,8,null,{"$f":"CHOOSE(Idioma,\"Agost\",\"Agosto\",\"August\",\"Août\",\"August\")","v":"Agost"},null,8,"1/11","Tots Sants"]
[null,null,null,null,null,null,null,null,9,null,{"$f":"CHOOSE(Idioma,\"Setembre\",\"Septiembre\",\"September\",\"Septembre\",\"September\")","v":"Setembre"},null,9,"6/12","Dia de la Constitució"]
[null,"Dies",null,null,null,null,null,null,10,null,{"$f":"CHOOSE(Idioma,\"Octubre\",\"Octubre\",\"October\",\"Octobre\",\"Oktober\")","v":"Octubre"},null,10,"8/12","La Immaculada"]
[null,{"$f":"CHOOSE(Idioma,\"Dilluns\",\"Lunes\",\"Monday\",\"Lundi\",\"Montag\")","v":"Dilluns"},{"$f":"CHOOSE(Idioma,\"Dl\",\"Lu\",\"Mo\",\"Lu\",\"Mo\")","v":"Dl"},{"$f":"CHOOSE(Idioma,\"Dll\",\"Lun\",\"Mon\",\"Lun\",\"Mon\")","v":"Dll"},null,null,null,null,11,null,{"$f":"CHOOSE(Idioma,\"Novembre\",\"Noviembre\",\"November\",\"Novembre\",\"November\")","v":"Novembre"},null,11,"25/12","Nadal",null,"Vacances de Nadal"]
[null,{"$f":"CHOOSE(Idioma,\"Dimarts\",\"Martes\",\"Tuesday\",\"Mardi\",\"Dienstag\")","v":"Dimarts"},{"$f":"CHOOSE(Idioma,\"Dt\",\"Ma\",\"Tu\",\"Ma\",\"Di\")","v":"Dt"},{"$f":"CHOOSE(Idioma,\"Dmt\",\"Mar\",\"Tue\",\"Mar\",\"Die\")","v":"Dmt"},null,null,null,null,12,null,{"$f":"CHOOSE(Idioma,\"Desembre\",\"Diciembre\",\"December\",\"Décembre\",\"Dezember\")","v":"Desembre"},null,12,"26/12","St. Esteve",null,"Vacances de Nadal"]
[null,{"$f":"CHOOSE(Idioma,\"Dimecres\",\"Miércoles\",\"Wednesday\",\"Mercredi\",\"Mittwoch\")","v":"Dimecres"},{"$f":"CHOOSE(Idioma,\"Dc\",\"Mi\",\"We\",\"Me\",\"Mi\")","v":"Dc"},{"$f":"CHOOSE(Idioma,\"Dmc\",\"Mié\",\"Wed\",\"Mer\",\"Mit\")","v":"Dmc"},null,null,null,null,13,null,null,null,13,{"$f":"T15 & \"/\" & U15","v":"26/2"},"Diumenge de Carnestoltes",null,null,"Setmana Santa",{"$f":"S18-42","v":"2017-02-26"},{"$f":"DAY(S15)","v":26},{"$f":"MONTH(S15)","v":2}]
[null,{"$f":"CHOOSE(Idioma,\"Dijous\",\"Jueves\",\"Thursday\",\"Jeudi\",\"Donnerstag\")","v":"Dijous"},{"$f":"CHOOSE(Idioma,\"Dj\",\"Ju\",\"Th\",\"Je\",\"Do\")","v":"Dj"},{"$f":"CHOOSE(Idioma,\"Djs\",\"Jue\",\"Thu\",\"Jeu\",\"Don\")","v":"Djs"},null,null,null,null,14,null,"Idiomes",null,14,"1/3",null,"N","Dimecres de Cendra",null,{"$f":"Pasqua(Any)-46","v":"2017-03-01"},1,3]
[null,{"$f":"CHOOSE(Idioma,\"Divendres\",\"Viernes\",\"Friday\",\"Vendredi\",\"Freitag\")","v":"Divendres"},{"$f":"CHOOSE(Idioma,\"Dv\",\"Vi\",\"Fr\",\"Ve\",\"Fr\")","v":"Dv"},{"$f":"CHOOSE(Idioma,\"Dvd\",\"Vie\",\"Fri\",\"Ven\",\"Fre\")","v":"Dvd"},null,null,null,null,15,null,"Català",null,15,"23/2",null,"N","Dijous Gras",null,{"$f":"S22-49","v":"2017-02-23"},23,2]
[null,{"$f":"CHOOSE(Idioma,\"Dissabte\",\"Sábado\",\"Saturday\",\"Samedi\",\"Samstag\")","v":"Dissabte"},{"$f":"CHOOSE(Idioma,\"Ds\",\"Sa\",\"Sa\",\"Sa\",\"Sa\")","v":"Ds"},{"$f":"CHOOSE(Idioma,\"Dss\",\"Sáb\",\"Sat\",\"Sam\",\"Sam\")","v":"Dss"},null,null,null,null,16,null,"Castellano",null,16,"9/4","Diumenge de Rams",null,"Vacances de Setmana Santa",null,{"$f":"Pasqua(Any)-7","v":"2017-04-09"},9,4]
[null,{"$f":"CHOOSE(Idioma,\"Diumenge\",\"Domingo\",\"Sunday\",\"Dimanche\",\"Sonntag\")","v":"Diumenge"},{"$f":"CHOOSE(Idioma,\"Dg\",\"Do\",\"Su\",\"Di\",\"So\")","v":"Dg"},{"$f":"CHOOSE(Idioma,\"Dmg\",\"Dom\",\"Sun\",\"Dim\",\"Son\")","v":"Dmg"},null,null,null,null,17,null,"English",null,17,"10/4",null,null,"Vacances de Setmana Santa",null,{"$f":"Pasqua(Any)-6","v":"2017-04-10"},10,4]
[null,null,null,null,null,null,null,null,18,null,"Français",null,18,"11/4",null,null,"Vacances de Setmana Santa",null,{"$f":"Pasqua(Any)-5","v":"2017-04-11"},11,4]
[null,"Mostrar Festes",null,true,null,null,null,null,19,null,"Deutsch",null,19,"12/4",null,null,"Vacances de Setmana Santa",null,{"$f":"Pasqua(Any)-4","v":"2017-04-12"},12,4]
[null,null,null,null,null,null,null,null,20,null,null,null,20,{"$f":"T22 & \"/\" & U22","v":"13/4"},"Dijous Sant",null,"Vacances de Setmana Santa",null,{"$f":"Pasqua(Any)-3","v":"2017-04-13"},{"$f":"DAY(S22)","v":13},4]
[null,"Fases de la lluna",null,true,null,null,null,null,21,null,null,null,21,"14/4","Divendres Sant",null,"Vacances de Setmana Santa",null,{"$f":"Pasqua(Any)-2","v":"2017-04-14"},14,4]
[null,"Q. Minv. Ant.",{"$f":"ROUND(+LNA-29.530588861/4,0)","v":"2017-08-15"},null,{"$f":"DAY(QMA)&\"/\"&MONTH(QMA)","v":"15/8"},"\u0083","Quart Minvant",null,22,null,null,null,22,"15/4","Dissabte Sant",null,"Vacances de Setmana Santa",null,{"$f":"Pasqua(Any)-1","v":"2017-04-15"},15,4]
[null,"Ll. Nov. Ant.",{"$f":"INT(5.597661+29.530588861*INT((+DATE(AnyAnt,MesAnt,IF(OR(MesAnt=1,MesAnt=3,MesAnt=5,MesAnt=7,MesAnt=8,MesAnt=10,MesAnt=12),31,30))-36526)/29.530588861)+(102.026*(10^-12))*INT((+DATE(AnyAnt,MesAnt,IF(OR(MesAnt=1,MesAnt=3,MesAnt=5,MesAnt=7,MesAnt=8,MesAnt=10,MesAnt=12),31,30))-36526)/29.530588861)^2)+36526","v":"2017-08-22"},null,{"$f":"DAY(LNA)&\"/\"&MONTH(LNA)","v":"22/8"},"\u0098","Lluna Nova",null,23,null,null,null,23,"16/4","Pasqua (Diumenge de Resurrecció)",null,"Vacances de Setmana Santa",null,{"$f":"DATE(YEAR(Pasqua(Any)),MONTH(Pasqua(Any)),DAY(Pasqua(Any)))","v":"2017-04-16"},16,4]
[null,"Q. Creix. Ant.",{"$f":"ROUND(+LNA+29.530588861/4,0)","v":"2017-08-29"},null,{"$f":"DAY(QCA)&\"/\"&MONTH(QCA)","v":"29/8"},"\u0082","Quart Creixent",null,24,null,null,null,24,"17/4","Dilluns de Pasqua (Pasqua Florida)",null,"Vacances de Setmana Santa",null,{"$f":"Pasqua(Any)+1","v":"2017-04-17"},17,4]
[null,"Ll. Ple. Ant.",{"$f":"ROUND(+LNA+29.530588861/2,0)","v":"2017-09-06"},null,{"$f":"DAY(LPA)&\"/\"&MONTH(LPA)","v":"6/9"},"\u0099","Lluna Plena",null,25,null,null,null,25,"1/6","Dijous de l'Ascensió","N",null,null,{"$f":"S26+45","v":"2017-06-01"},1,6]
[null,"Quart Minvant",{"$f":"ROUND(+LlN-29.530588861/4,0)","v":"2017-09-13"},null,{"$f":"DAY(QM)&\"/\"&MONTH(QM)","v":"13/9"},"\u0083","Quart Minvant",null,26,null,null,null,26,"5/6","Dilluns de Pentecosta (Segona Pasqua)",null,null,null,{"$f":"S26+49","v":"2017-06-05"},5,6]
[null,"Lluna nova",{"$f":"INT(5.597661+29.530588861*INT((+DATE(Any,Mes,IF(OR(Mes=1,Mes=3,Mes=5,Mes=7,Mes=8,Mes=10,Mes=12),31,30))-36526)/29.530588861)+(102.026*(10^-12))*INT((+DATE(Any,Mes,IF(OR(Mes=1,Mes=3,Mes=5,Mes=7,Mes=8,Mes=10,Mes=12),31,30))-36526)/29.530588861)^2)+36526","v":"2017-09-20"},null,{"$f":"DAY(LlN)&\"/\"&MONTH(LlN)","v":"20/9"},"\u0098","Lluna Nova",null,27,null,null,null,27,"15/6","Dijous de Corpus","N",null,null,{"$f":"Pasqua(Any)+60","v":"2017-06-15"},15,6]
[null,"Quart Creixent",{"$f":"ROUND(+LlN+29.530588861/4,0)","v":"2017-09-27"},null,{"$f":"DAY(QC)&\"/\"&MONTH(QC)","v":"27/9"},"\u0082","Quart Creixent",null,28,null,null,null,28,"18/6","Diumenge de Corpus",null,null,null,{"$f":"Pasqua(Any)+63","v":"2017-06-18"},18,6]
[null,"Lluna Plena",{"$f":"ROUND(+LlN+29.530588861/2,0)","v":"2017-10-05"},null,{"$f":"DAY(LlP)&\"/\"&MONTH(LlP)","v":"5/10"},"\u0099","Lluna Plena",null,29,null,null,null,29,{"$f":"T31 & \"/\" & U31","v":"25/3"},null,"N","Final de l'horari d'hivern",null,null,{"$f":"T32-1","v":25},{"$f":"U32","v":3}]
[null,"Q. Minv. Seg.",{"$f":"ROUND(+LNS-29.530588861/4,0)","v":"2017-10-13"},null,{"$f":"DAY(QMS)&\"/\"&MONTH(QMS)","v":"13/10"},"\u0083","Quart Minvant",null,30,null,null,null,30,{"$f":"T32 & \"/\" & U32","v":"26/3"},null,"N","Inici de l'horari d'estiu",{"$f":"DATE(Any,3,31)","v":"2017-03-31"},{"$f":"31-(WEEKDAY(DATE(Any,3,31),1)-1)","v":26},{"$f":"DAY(S32)","v":26},{"$f":"MONTH(R32)","v":3}]
[null,"Ll. Nov. Seg.",{"$f":"INT(5.597661+29.530588861*INT((+DATE(AnySeg,MesSeg,IF(OR(MesSeg=1,MesSeg=3,MesSeg=5,MesSeg=7,MesSeg=8,MesSeg=10,MesSeg=12),31,30))-36526)/29.530588861)+(102.026*(10^-12))*INT((+DATE(AnySeg,MesSeg,IF(OR(MesSeg=1,MesSeg=3,MesSeg=5,MesSeg=7,MesSeg=8,MesSeg=10,MesSeg=12),31,30))-36526)/29.530588861)^2)+36526","v":"2017-10-20"},null,{"$f":"DAY(LNS)&\"/\"&MONTH(LNS)","v":"20/10"},"\u0098","Lluna Nova",null,31,null,null,null,31,{"$f":"T33 & \"/\" & U33","v":"28/10"},null,"N","Final de l'horari d'estiu",null,null,{"$f":"T34-1","v":28},{"$f":"U34","v":10}]
[null,"Q. Creix. Seg.",{"$f":"ROUND(+LNS+29.530588861/4,0)","v":"2017-10-27"},null,{"$f":"DAY(QCS)&\"/\"&MONTH(QCS)","v":"27/10"},"\u0082","Quart Creixent",null,32,null,null,null,32,{"$f":"T34 & \"/\" & U34","v":"29/10"},null,"N","Inici de l'horari d'hivern",{"$f":"DATE(Any,10,31)","v":"2017-10-31"},{"$f":"31-(WEEKDAY(DATE(Any,10,31),1)-1)","v":29},{"$f":"DAY(S34)","v":29},{"$f":"MONTH(R34)","v":10}]
[null,"Ll. Ple. Seg.",{"$f":"ROUND(+LNS+29.530588861/2,0)","v":"2017-11-04"},null,{"$f":"DAY(LPS)&\"/\"&MONTH(LPS)","v":"4/11"},"\u0099","Lluna Plena",null,33,null,null,null,33,"6/5",null,"N","Aniversari Ramon"]
[null,null,null,null,null,null,null,null,34,null,null,null,34,"17/5",null,"N","Aniversari de noces Ramon i Lola"]
[null,null,null,null,null,null,null,null,35,null,null,null,35,"29/6",null,"N","Aniversari Júlia"]
[null,null,null,null,null,null,null,null,36,null,null,null,36,"4/7",null,"N","(Recordem l'avi Manolo)"]
[null,null,null,null,null,null,null,null,37,null,null,null,37,"14/7",null,"N","Aniversari Nati"]
[null,null,null,null,null,null,null,null,38,null,null,null,38,"7/8",null,"N","Cumpleaños Esperanza"]
[null,null,null,null,null,null,null,null,39,null,null,null,39,"22/8",null,"N","Aniversari Lola"]
[null,null,null,null,null,null,null,null,40,null,null,null,40]
[null,null,null,null,null,null,null,null,41,null,null,null,41]
[null,null,null,null,null,null,null,null,42,null,null,null,42]
[null,null,null,null,null,null,null,null,43,null,null,null,43]
[null,null,null,null,null,null,null,null,44,null,null,null,44]
[null,null,null,null,null,null,null,null,45,null,null,null,45]
[null,null,null,null,null,null,null,null,46,null,null,null,46]
[null,null,null,null,null,null,null,null,47,null,null,null,47]
[null,null,null,null,null,null,null,null,48,null,null,null,48]
[null,null,null,null,null,null,null,null,49,null,null,null,49]
[null,null,null,null,null,null,null,null,50,null,null,null,50]
[null,null,null,null,null,null,null,null,51,null,null,null,51]
[null,null,null,null,null,null,null,null,52,null,null,null,52]
[null,null,null,null,null,null,null,null,53,null,null,null,53]
[null,null,null,null,null,null,null,null,54,null,null,null,54]
[null,null,null,null,null,null,null,null,55,null,null,null,55]
[null,null,null,null,null,null,null,null,56,null,null,null,56]
[null,null,null,null,null,null,null,null,57,null,null,null,57]
[null,null,null,null,null,null,null,null,58,null,null,null,58]
[null,null,null,null,null,null,null,null,59,null,null,null,59]
[null,null,null,null,null,null,null,null,60,null,null,null,60]
[null,null,null,null,null,null,null,null,61,null,null,null,61]
[null,null,null,null,null,null,null,null,62,null,null,null,62]
[null,null,null,null,null,null,null,null,63,null,null,null,63]
[null,null,null,null,null,null,null,null,64,null,null,null,64]
[null,null,null,null,null,null,null,null,65,null,null,null,65]
[null,null,null,null,null,null,null,null,66,null,null,null,66]
[null,null,null,null,null,null,null,null,67,null,null,null,67]
[null,null,null,null,null,null,null,null,68,null,null,null,68]
[null,null,null,null,null,null,null,null,69,null,null,null,69]
[null,null,null,null,null,null,null,null,70,null,null,null,70]
[null,null,null,null,null,null,null,null,71,null,null,null,71]
[null,null,null,null,null,null,null,null,72,null,null,null,72]
[null,null,null,null,null,null,null,null,73,null,null,null,73]
[null,null,null,null,null,null,null,null,74,null,null,null,74]
[null,null,null,null,null,null,null,null,75,null,null,null,75]
[null,null,null,null,null,null,null,null,76,null,null,null,76]
[null,null,null,null,null,null,null,null,77,null,null,null,77]
[null,null,null,null,null,null,null,null,78,null,null,null,78]
[null,null,null,null,null,null,null,null,79,null,null,null,79]
[null,null,null,null,null,null,null,null,80,null,null,null,80]
[null,null,null,null,null,null,null,null,81,null,null,null,81]
[null,null,null,null,null,null,null,null,82,null,null,null,82]
[null,null,null,null,null,null,null,null,83,null,null,null,83]
[null,null,null,null,null,null,null,null,84,null,null,null,84]
[null,null,null,null,null,null,null,null,85,null,null,null,85]
[null,null,null,null,null,null,null,null,86,null,null,null,86]
[null,null,null,null,null,null,null,null,87,null,null,null,87]
[null,null,null,null,null,null,null,null,88,null,null,null,88]
[null,null,null,null,null,null,null,null,89,null,null,null,89]
[null,null,null,null,null,null,null,null,90,null,null,null,90]
[null,null,null,null,null,null,null,null,91,null,null,null,91]
[null,null,null,null,null,null,null,null,92,null,null,null,92]
[null,null,null,null,null,null,null,null,93,null,null,null,93]
[null,null,null,null,null,null,null,null,94,null,null,null,94]
[null,null,null,null,null,null,null,null,95,null,null,null,95]
[null,null,null,null,null,null,null,null,96,null,null,null,96]
[null,null,null,null,null,null,null,null,97,null,null,null,97]
[null,null,null,null,null,null,null,null,98,null,null,null,98]
[null,null,null,null,null,null,null,null,99,null,null,null,99]
[null,null,null,null,null,null,null,null,100,null,null,null,100]
[null,null,null,null,null,null,null,null,101,null,null,null,101]
[null,null,null,null,null,null,null,null,102,null,null,null,102]
[null,null,null,null,null,null,null,null,103,null,null,null,103]
[null,null,null,null,null,null,null,null,104,null,null,null,104]
[null,null,null,null,null,null,null,null,105,null,null,null,105]
[null,null,null,null,null,null,null,null,106,null,null,null,106]
[null,null,null,null,null,null,null,null,107,null,null,null,107]
[null,null,null,null,null,null,null,null,108,null,null,null,108]
[null,null,null,null,null,null,null,null,109,null,null,null,109]
[null,null,null,null,null,null,null,null,110,null,null,null,110]
[null,null,null,null,null,null,null,null,111,null,null,null,111]
[null,null,null,null,null,null,null,null,112,null,null,null,112]
[null,null,null,null,null,null,null,null,113,null,null,null,113]
[null,null,null,null,null,null,null,null,114,null,null,null,114]
[null,null,null,null,null,null,null,null,115,null,null,null,115]
[null,null,null,null,null,null,null,null,116,null,null,null,116]
[null,null,null,null,null,null,null,null,117,null,null,null,117]
[null,null,null,null,null,null,null,null,118,null,null,null,118]
[null,null,null,null,null,null,null,null,119,null,null,null,119]
[null,null,null,null,null,null,null,null,120,null,null,null,120]
[null,null,null,null,null,null,null,null,121,null,null,null,121]
[null,null,null,null,null,null,null,null,122,null,null,null,122]
[null,null,null,null,null,null,null,null,123,null,null,null,123]
[null,null,null,null,null,null,null,null,124,null,null,null,124]
[null,null,null,null,null,null,null,null,125,null,null,null,125]
[null,null,null,null,null,null,null,null,126,null,null,null,126]
[null,null,null,null,null,null,null,null,127,null,null,null,127]
[null,null,null,null,null,null,null,null,128,null,null,null,128]
[null,null,null,null,null,null,null,null,129,null,null,null,129]
[null,null,null,null,null,null,null,null,130,null,null,null,130]
[null,null,null,null,null,null,null,null,131,null,null,null,131]
[null,null,null,null,null,null,null,null,132,null,null,null,132]
[null,null,null,null,null,null,null,null,133,null,null,null,133]
[null,null,null,null,null,null,null,null,134,null,null,null,134]
[null,null,null,null,null,null,null,null,135,null,null,null,135]
[null,null,null,null,null,null,null,null,136,null,null,null,136]
[null,null,null,null,null,null,null,null,137,null,null,null,137]
[null,null,null,null,null,null,null,null,138,null,null,null,138]
[null,null,null,null,null,null,null,null,139,null,null,null,139]
[null,null,null,null,null,null,null,null,140,null,null,null,140]
[null,null,null,null,null,null,null,null,141,null,null,null,141]
[null,null,null,null,null,null,null,null,142,null,null,null,142]
[null,null,null,null,null,null,null,null,143,null,null,null,143]
[null,null,null,null,null,null,null,null,144,null,null,null,144]
[null,null,null,null,null,null,null,null,145,null,null,null,145]
[null,null,null,null,null,null,null,null,146,null,null,null,146]
[null,null,null,null,null,null,null,null,147,null,null,null,147]
[null,null,null,null,null,null,null,null,148,null,null,null,148]
[null,null,null,null,null,null,null,null,149,null,null,null,149]
[null,null,null,null,null,null,null,null,150,null,null,null,150]
[null,null,null,null,null,null,null,null,151,null,null,null,151]
[null,null,null,null,null,null,null,null,152,null,null,null,152]
[null,null,null,null,null,null,null,null,153,null,null,null,153]
[null,null,null,null,null,null,null,null,154,null,null,null,154]
[null,null,null,null,null,null,null,null,155,null,null,null,155]
[null,null,null,null,null,null,null,null,156,null,null,null,156]
[null,null,null,null,null,null,null,null,157,null,null,null,157]
[null,null,null,null,null,null,null,null,158,null,null,null,158]
[null,null,null,null,null,null,null,null,159,null,null,null,159]
[null,null,null,null,null,null,null,null,160,null,null,null,160]
[null,null,null,null,null,null,null,null,161,null,null,null,161]
[null,null,null,null,null,null,null,null,162,null,null,null,162]
[null,null,null,null,null,null,null,null,163,null,null,null,163]
[null,null,null,null,null,null,null,null,164,null,null,null,164]
[null,null,null,null,null,null,null,null,165,null,null,null,165]
[null,null,null,null,null,null,null,null,166,null,null,null,166]
[null,null,null,null,null,null,null,null,167,null,null,null,167]
[null,null,null,null,null,null,null,null,168,null,null,null,168]
[null,null,null,null,null,null,null,null,169,null,null,null,169]
[null,null,null,null,null,null,null,null,170,null,null,null,170]
[null,null,null,null,null,null,null,null,171,null,null,null,171]
[null,null,null,null,null,null,null,null,172,null,null,null,172]
[null,null,null,null,null,null,null,null,173,null,null,null,173]
[null,null,null,null,null,null,null,null,174,null,null,null,174]
[null,null,null,null,null,null,null,null,175,null,null,null,175]
[null,null,null,null,null,null,null,null,176,null,null,null,176]
[null,null,null,null,null,null,null,null,177,null,null,null,177]
[null,null,null,null,null,null,null,null,178,null,null,null,178]
[null,null,null,null,null,null,null,null,179,null,null,null,179]
[null,null,null,null,null,null,null,null,180,null,null,null,180]
[null,null,null,null,null,null,null,null,181,null,null,null,181]
[null,null,null,null,null,null,null,null,182,null,null,null,182]
[null,null,null,null,null,null,null,null,183,null,null,null,183]
[null,null,null,null,null,null,null,null,184,null,null,null,184]
[null,null,null,null,null,null,null,null,185,null,null,null,185]
[null,null,null,null,null,null,null,null,186,null,null,null,186]
[null,null,null,null,null,null,null,null,187,null,null,null,187]
[null,null,null,null,null,null,null,null,188,null,null,null,188]
[null,null,null,null,null,null,null,null,189,null,null,null,189]
[null,null,null,null,null,null,null,null,190,null,null,null,190]
[null,null,null,null,null,null,null,null,191,null,null,null,191]
[null,null,null,null,null,null,null,null,192,null,null,null,192]
[null,null,null,null,null,null,null,null,193,null,null,null,193]
[null,null,null,null,null,null,null,null,194,null,null,null,194]
[null,null,null,null,null,null,null,null,195,null,null,null,195]
[null,null,null,null,null,null,null,null,196,null,null,null,196]
[null,null,null,null,null,null,null,null,197,null,null,null,197]
[null,null,null,null,null,null,null,null,198,null,null,null,198]
[null,null,null,null,null,null,null,null,199,null,null,null,199]
[null,null,null,null,null,null,null,null,200,null,null,null,200]
[null,null,null,null,null,null,null,null,201,null,null,null,201]
[null,null,null,null,null,null,null,null,202,null,null,null,202]
[null,null,null,null,null,null,null,null,203,null,null,null,203]
[null,null,null,null,null,null,null,null,204,null,null,null,204]
[null,null,null,null,null,null,null,null,205,null,null,null,205]
[null,null,null,null,null,null,null,null,206,null,null,null,206]
[null,null,null,null,null,null,null,null,207,null,null,null,207]
[null,null,null,null,null,null,null,null,208,null,null,null,208]
[null,null,null,null,null,null,null,null,209,null,null,null,209]
[null,null,null,null,null,null,null,null,210,null,null,null,210]
[null,null,null,null,null,null,null,null,211,null,null,null,211]
[null,null,null,null,null,null,null,null,212,null,null,null,212]
[null,null,null,null,null,null,null,null,213,null,null,null,213]
[null,null,null,null,null,null,null,null,214,null,null,null,214]
[null,null,null,null,null,null,null,null,215,null,null,null,215]
[null,null,null,null,null,null,null,null,216,null,null,null,216]
[null,null,null,null,null,null,null,null,217,null,null,null,217]
[null,null,null,null,null,null,null,null,218,null,null,null,218]
[null,null,null,null,null,null,null,null,219,null,null,null,219]
[null,null,null,null,null,null,null,null,220,null,null,null,220]
[null,null,null,null,null,null,null,null,221,null,null,null,221]
[null,null,null,null,null,null,null,null,222,null,null,null,222]
[null,null,null,null,null,null,null,null,223,null,null,null,223]
[null,null,null,null,null,null,null,null,224,null,null,null,224]
[null,null,null,null,null,null,null,null,225,null,null,null,225]
[null,null,null,null,null,null,null,null,226,null,null,null,226]
[null,null,null,null,null,null,null,null,227,null,null,null,227]
[null,null,null,null,null,null,null,null,228,null,null,null,228]
[null,null,null,null,null,null,null,null,229,null,null,null,229]
[null,null,null,null,null,null,null,null,230,null,null,null,230]
[null,null,null,null,null,null,null,null,231,null,null,null,231]
[null,null,null,null,null,null,null,null,232,null,null,null,232]
[null,null,null,null,null,null,null,null,233,null,null,null,233]
[null,null,null,null,null,null,null,null,234,null,null,null,234]
[null,null,null,null,null,null,null,null,235,null,null,null,235]
[null,null,null,null,null,null,null,null,236,null,null,null,236]
[null,null,null,null,null,null,null,null,237,null,null,null,237]
[null,null,null,null,null,null,null,null,238,null,null,null,238]
[null,null,null,null,null,null,null,null,239,null,null,null,239]
[null,null,null,null,null,null,null,null,240,null,null,null,240]
[null,null,null,null,null,null,null,null,241,null,null,null,241]
[null,null,null,null,null,null,null,null,242,null,null,null,242]
[null,null,null,null,null,null,null,null,243,null,null,null,243]
[null,null,null,null,null,null,null,null,244,null,null,null,244]
[null,null,null,null,null,null,null,null,245,null,null,null,245]
[null,null,null,null,null,null,null,null,246,null,null,null,246]
[null,null,null,null,null,null,null,null,247,null,null,null,247]
[null,null,null,null,null,null,null,null,248,null,null,null,248]
[null,null,null,null,null,null,null,null,249,null,null,null,249]
[null,null,null,null,null,null,null,null,250,null,null,null,250]
[null,null,null,null,null,null,null,null,251,null,null,null,251]
[null,null,null,null,null,null,null,null,252,null,null,null,252]
[null,null,null,null,null,null,null,null,253,null,null,null,253]
[null,null,null,null,null,null,null,null,254,null,null,null,254]
[null,null,null,null,null,null,null,null,255,null,null,null,255]
[null,null,null,null,null,null,null,null,256,null,null,null,256]
[null,null,null,null,null,null,null,null,257,null,null,null,257]
[null,null,null,null,null,null,null,null,258,null,null,null,258]
[null,null,null,null,null,null,null,null,259,null,null,null,259]
[null,null,null,null,null,null,null,null,260,null,null,null,260]
[null,null,null,null,null,null,null,null,261,null,null,null,261]
[null,null,null,null,null,null,null,null,262,null,null,null,262]
[null,null,null,null,null,null,null,null,263,null,null,null,263]
[null,null,null,null,null,null,null,null,264,null,null,null,264]
[null,null,null,null,null,null,null,null,265,null,null,null,265]
[null,null,null,null,null,null,null,null,266,null,null,null,266]
[null,null,null,null,null,null,null,null,267,null,null,null,267]
[null,null,null,null,null,null,null,null,268,null,null,null,268]
[null,null,null,null,null,null,null,null,269,null,null,null,269]
[null,null,null,null,null,null,null,null,270,null,null,null,270]
[null,null,null,null,null,null,null,null,271,null,null,null,271]
[null,null,null,null,null,null,null,null,272,null,null,null,272]
[null,null,null,null,null,null,null,null,273,null,null,null,273]
[null,null,null,null,null,null,null,null,274,null,null,null,274]
[null,null,null,null,null,null,null,null,275,null,null,null,275]
[null,null,null,null,null,null,null,null,276,null,null,null,276]
[null,null,null,null,null,null,null,null,277,null,null,null,277]
[null,null,null,null,null,null,null,null,278,null,null,null,278]
[null,null,null,null,null,null,null,null,279,null,null,null,279]
[null,null,null,null,null,null,null,null,280,null,null,null,280]
[null,null,null,null,null,null,null,null,281,null,null,null,281]
[null,null,null,null,null,null,null,null,282,null,null,null,282]
[null,null,null,null,null,null,null,null,283,null,null,null,283]
[null,null,null,null,null,null,null,null,284,null,null,null,284]
[null,null,null,null,null,null,null,null,285,null,null,null,285]
[null,null,null,null,null,null,null,null,286,null,null,null,286]
[null,null,null,null,null,null,null,null,287,null,null,null,287]
[null,null,null,null,null,null,null,null,288,null,null,null,288]
[null,null,null,null,null,null,null,null,289,null,null,null,289]
[null,null,null,null,null,null,null,null,290,null,null,null,290]
[null,null,null,null,null,null,null,null,291,null,null,null,291]
[null,null,null,null,null,null,null,null,292,null,null,null,292]
[null,null,null,null,null,null,null,null,293,null,null,null,293]
[null,null,null,null,null,null,null,null,294,null,null,null,294]
[null,null,null,null,null,null,null,null,295,null,null,null,295]
[null,null,null,null,null,null,null,null,296,null,null,null,296]
[null,null,null,null,null,null,null,null,297,null,null,null,297]
[null,null,null,null,null,null,null,null,298,null,null,null,298]
[null,null,null,null,null,null,null,null,299,null,null,null,299]
[null,null,null,null,null,null,null,null,300,null,null,null,300]
[null,null,null,null,null,null,null,null,301,null,null,null,301]
[null,null,null,null,null,null,null,null,302,null,null,null,302]
[null,null,null,null,null,null,null,null,303,null,null,null,303]
[null,null,null,null,null,null,null,null,304,null,null,null,304]
[null,null,null,null,null,null,null,null,305,null,null,null,305]
[null,null,null,null,null,null,null,null,306,null,null,null,306]
[null,null,null,null,null,null,null,null,307,null,null,null,307]
[null,null,null,null,null,null,null,null,308,null,null,null,308]
[null,null,null,null,null,null,null,null,309,null,null,null,309]
[null,null,null,null,null,null,null,null,310,null,null,null,310]
[null,null,null,null,null,null,null,null,311,null,null,null,311]
[null,null,null,null,null,null,null,null,312,null,null,null,312]
[null,null,null,null,null,null,null,null,313,null,null,null,313]
[null,null,null,null,null,null,null,null,314,null,null,null,314]
[null,null,null,null,null,null,null,null,315,null,null,null,315]
[null,null,null,null,null,null,null,null,316,null,null,null,316]
[null,null,null,null,null,null,null,null,317,null,null,null,317]
[null,null,null,null,null,null,null,null,318,null,null,null,318]
[null,null,null,null,null,null,null,null,319,null,null,null,319]
[null,null,null,null,null,null,null,null,320,null,null,null,320]
[null,null,null,null,null,null,null,null,321,null,null,null,321]
[null,null,null,null,null,null,null,null,322,null,null,null,322]
[null,null,null,null,null,null,null,null,323,null,null,null,323]
[null,null,null,null,null,null,null,null,324,null,null,null,324]
[null,null,null,null,null,null,null,null,325,null,null,null,325]
[null,null,null,null,null,null,null,null,326,null,null,null,326]
[null,null,null,null,null,null,null,null,327,null,null,null,327]
[null,null,null,null,null,null,null,null,328,null,null,null,328]
[null,null,null,null,null,null,null,null,329,null,null,null,329]
[null,null,null,null,null,null,null,null,330,null,null,null,330]
[null,null,null,null,null,null,null,null,331,null,null,null,331]
[null,null,null,null,null,null,null,null,332,null,null,null,332]
[null,null,null,null,null,null,null,null,333,null,null,null,333]
[null,null,null,null,null,null,null,null,334,null,null,null,334]
[null,null,null,null,null,null,null,null,335,null,null,null,335]
[null,null,null,null,null,null,null,null,336,null,null,null,336]
[null,null,null,null,null,null,null,null,337,null,null,null,337]
[null,null,null,null,null,null,null,null,338,null,null,null,338]
[null,null,null,null,null,null,null,null,339,null,null,null,339]
[null,null,null,null,null,null,null,null,340,null,null,null,340]
[null,null,null,null,null,null,null,null,341,null,null,null,341]
[null,null,null,null,null,null,null,null,342,null,null,null,342]
[null,null,null,null,null,null,null,null,343,null,null,null,343]
[null,null,null,null,null,null,null,null,344,null,null,null,344]
[null,null,null,null,null,null,null,null,345,null,null,null,345]
[null,null,null,null,null,null,null,null,346,null,null,null,346]
[null,null,null,null,null,null,null,null,347,null,null,null,347]
[null,null,null,null,null,null,null,null,348,null,null,null,348]
[null,null,null,null,null,null,null,null,349,null,null,null,349]
[null,null,null,null,null,null,null,null,350,null,null,null,350]
[null,null,null,null,null,null,null,null,351,null,null,null,351]
[null,null,null,null,null,null,null,null,352,null,null,null,352]
[null,null,null,null,null,null,null,null,353,null,null,null,353]
[null,null,null,null,null,null,null,null,354,null,null,null,354]
[null,null,null,null,null,null,null,null,355,null,null,null,355]
[null,null,null,null,null,null,null,null,356,null,null,null,356]
[null,null,null,null,null,null,null,null,357,null,null,null,357]
[null,null,null,null,null,null,null,null,358,null,null,null,358]
[null,null,null,null,null,null,null,null,359,null,null,null,359]
[null,null,null,null,null,null,null,null,360,null,null,null,360]
[null,null,null,null,null,null,null,null,361,null,null,null,361]
[null,null,null,null,null,null,null,null,362,null,null,null,362]
[null,null,null,null,null,null,null,null,363,null,null,null,363]
[null,null,null,null,null,null,null,null,364,null,null,null,364]
[null,null,null,null,null,null,null,null,365,null,null,null,365]
[null,null,null,null,null,null,null,null,366,null,null,null,366]
[null,null,null,null,null,null,null,null,367,null,null,null,367]
[null,null,null,null,null,null,null,null,368,null,null,null,368]
[null,null,null,null,null,null,null,null,369,null,null,null,369]
[null,null,null,null,null,null,null,null,370,null,null,null,370]
[null,null,null,null,null,null,null,null,371,null,null,null,371]
[null,null,null,null,null,null,null,null,372]
[null,null,null,null,null,null,null,null,373]
[null,null,null,null,null,null,null,null,374]
[null,null,null,null,null,null,null,null,375]
[null,null,null,null,null,null,null,null,376]
[null,null,null,null,null,null,null,null,377]
[null,null,null,null,null,null,null,null,378]
[null,null,null,null,null,null,null,null,379]
[null,null,null,null,null,null,null,null,380]
[null,null,null,null,null,null,null,null,381]
[null,null,null,null,null,null,null,null,382]
[null,null,null,null,null,null,null,null,383]
[null,null,null,null,null,null,null,null,384]
[null,null,null,null,null,null,null,null,385]
[null,null,null,null,null,null,null,null,386]
[null,null,null,null,null,null,null,null,387]
[null,null,null,null,null,null,null,null,388]
[null,null,null,null,null,null,null,null,389]
[null,null,null,null,null,null,null,null,390]
[null,null,null,null,null,null,null,null,391]
[null,null,null,null,null,null,null,null,392]
[null,null,null,null,null,null,null,null,393]
[null,null,null,null,null,null,null,null,394]
[null,null,null,null,null,null,null,null,395]
[null,null,null,null,null,null,null,null,396]
[null,null,null,null,null,null,null,null,397]
[null,null,null,null,null,null,null,null,398]
[null,null,null,null,null,null,null,null,399]
[null,null,null,null,null,null,null,null,400]
[null,null,null,null,null,null,null,null,401]
[null,null,null,null,null,null,null,null,402]
[null,null,null,null,null,null,null,null,403]
[null,null,null,null,null,null,null,null,404]
[null,null,null,null,null,null,null,null,405]
[null,null,null,null,null,null,null,null,406]
[null,null,null,null,null,null,null,null,407]
[null,null,null,null,null,null,null,null,408]
[null,null,null,null,null,null,null,null,409]
[null,null,null,null,null,null,null,null,410]
[null,null,null,null,null,null,null,null,411]
[null,null,null,null,null,null,null,null,412]
[null,null,null,null,null,null,null,null,413]
[null,null,null,null,null,null,null,null,414]
[null,null,null,null,null,null,null,null,415]
[null,null,null,null,null,null,null,null,416]
[null,null,null,null,null,null,null,null,417]
[null,null,null,null,null,null,null,null,418]
[null,null,null,null,null,null,null,null,419]
[null,null,null,null,null,null,null,null,420]
[null,null,null,null,null,null,null,null,421]
[null,null,null,null,null,null,null,null,422]
[null,null,null,null,null,null,null,null,423]
[null,null,null,null,null,null,null,null,424]
[null,null,null,null,null,null,null,null,425]
[null,null,null,null,null,null,null,null,426]
[null,null,null,null,null,null,null,null,427]
[null,null,null,null,null,null,null,null,428]
[null,null,null,null,null,null,null,null,429]
[null,null,null,null,null,null,null,null,430]
[null,null,null,null,null,null,null,null,431]
[null,null,null,null,null,null,null,null,432]
[null,null,null,null,null,null,null,null,433]
[null,null,null,null,null,null,null,null,434]
[null,null,null,null,null,null,null,null,435]
[null,null,null,null,null,null,null,null,436]
[null,null,null,null,null,null,null,null,437]
[null,null,null,null,null,null,null,null,438]
[null,null,null,null,null,null,null,null,439]
[null,null,null,null,null,null,null,null,440]
[null,null,null,null,null,null,null,null,441]
[null,null,null,null,null,null,null,null,442]
[null,null,null,null,null,null,null,null,443]
[null,null,null,null,null,null,null,null,444]
[null,null,null,null,null,null,null,null,445]
[null,null,null,null,null,null,null,null,446]
[null,null,null,null,null,null,null,null,447]
[null,null,null,null,null,null,null,null,448]
[null,null,null,null,null,null,null,null,449]
[null,null,null,null,null,null,null,null,450]
[null,null,null,null,null,null,null,null,451]
[null,null,null,null,null,null,null,null,452]
[null,null,null,null,null,null,null,null,453]
[null,null,null,null,null,null,null,null,454]
[null,null,null,null,null,null,null,null,455]
[null,null,null,null,null,null,null,null,456]
[null,null,null,null,null,null,null,null,457]
[null,null,null,null,null,null,null,null,458]
[null,null,null,null,null,null,null,null,459]
[null,null,null,null,null,null,null,null,460]
[null,null,null,null,null,null,null,null,461]
[null,null,null,null,null,null,null,null,462]
[null,null,null,null,null,null,null,null,463]
[null,null,null,null,null,null,null,null,464]
[null,null,null,null,null,null,null,null,465]
[null,null,null,null,null,null,null,null,466]
[null,null,null,null,null,null,null,null,467]
[null,null,null,null,null,null,null,null,468]
[null,null,null,null,null,null,null,null,469]
[null,null,null,null,null,null,null,null,470]
[null,null,null,null,null,null,null,null,471]
[null,null,null,null,null,null,null,null,472]
[null,null,null,null,null,null,null,null,473]
[null,null,null,null,null,null,null,null,474]
[null,null,null,null,null,null,null,null,475]
[null,null,null,null,null,null,null,null,476]
[null,null,null,null,null,null,null,null,477]
[null,null,null,null,null,null,null,null,478]
[null,null,null,null,null,null,null,null,479]
[null,null,null,null,null,null,null,null,480]
[null,null,null,null,null,null,null,null,481]
[null,null,null,null,null,null,null,null,482]
[null,null,null,null,null,null,null,null,483]
[null,null,null,null,null,null,null,null,484]
[null,null,null,null,null,null,null,null,485]
[null,null,null,null,null,null,null,null,486]
[null,null,null,null,null,null,null,null,487]
[null,null,null,null,null,null,null,null,488]
[null,null,null,null,null,null,null,null,489]
[null,null,null,null,null,null,null,null,490]
[null,null,null,null,null,null,null,null,491]
[null,null,null,null,null,null,null,null,492]
[null,null,null,null,null,null,null,null,493]
[null,null,null,null,null,null,null,null,494]
[null,null,null,null,null,null,null,null,495]
[null,null,null,null,null,null,null,null,496]
[null,null,null,null,null,null,null,null,497]
[null,null,null,null,null,null,null,null,498]
[null,null,null,null,null,null,null,null,499]
[null,null,null,null,null,null,null,null,500]
[null,null,null,null,null,null,null,null,501]
[null,null,null,null,null,null,null,null,502]
[null,null,null,null,null,null,null,null,503]
[null,null,null,null,null,null,null,null,504]
[null,null,null,null,null,null,null,null,505]
[null,null,null,null,null,null,null,null,506]
[null,null,null,null,null,null,null,null,507]
[null,null,null,null,null,null,null,null,508]
[null,null,null,null,null,null,null,null,509]
[null,null,null,null,null,null,null,null,510]
[null,null,null,null,null,null,null,null,511]
[null,null,null,null,null,null,null,null,512]
[null,null,null,null,null,null,null,null,513]
[null,null,null,null,null,null,null,null,514]
[null,null,null,null,null,null,null,null,515]
[null,null,null,null,null,null,null,null,516]
[null,null,null,null,null,null,null,null,517]
[null,null,null,null,null,null,null,null,518]
[null,null,null,null,null,null,null,null,519]
[null,null,null,null,null,null,null,null,520]
[null,null,null,null,null,null,null,null,521]
[null,null,null,null,null,null,null,null,522]
[null,null,null,null,null,null,null,null,523]
[null,null,null,null,null,null,null,null,524]
[null,null,null,null,null,null,null,null,525]
[null,null,null,null,null,null,null,null,526]
[null,null,null,null,null,null,null,null,527]
[null,null,null,null,null,null,null,null,528]
[null,null,null,null,null,null,null,null,529]
[null,null,null,null,null,null,null,null,530]
[null,null,null,null,null,null,null,null,531]
[null,null,null,null,null,null,null,null,532]
[null,null,null,null,null,null,null,null,533]
[null,null,null,null,null,null,null,null,534]
[null,null,null,null,null,null,null,null,535]
[null,null,null,null,null,null,null,null,536]
[null,null,null,null,null,null,null,null,537]
[null,null,null,null,null,null,null,null,538]
[null,null,null,null,null,null,null,null,539]
[null,null,null,null,null,null,null,null,540]
[null,null,null,null,null,null,null,null,541]
[null,null,null,null,null,null,null,null,542]
[null,null,null,null,null,null,null,null,543]
[null,null,null,null,null,null,null,null,544]
[null,null,null,null,null,null,null,null,545]
[null,null,null,null,null,null,null,null,546]
[null,null,null,null,null,null,null,null,547]
[null,null,null,null,null,null,null,null,548]
[null,null,null,null,null,null,null,null,549]
[null,null,null,null,null,null,null,null,550]
[null,null,null,null,null,null,null,null,551]
[null,null,null,null,null,null,null,null,552]
[null,null,null,null,null,null,null,null,553]
[null,null,null,null,null,null,null,null,554]
[null,null,null,null,null,null,null,null,555]
[null,null,null,null,null,null,null,null,556]
[null,null,null,null,null,null,null,null,557]
[null,null,null,null,null,null,null,null,558]
[null,null,null,null,null,null,null,null,559]
[null,null,null,null,null,null,null,null,560]
[null,null,null,null,null,null,null,null,561]
[null,null,null,null,null,null,null,null,562]
[null,null,null,null,null,null,null,null,563]
[null,null,null,null,null,null,null,null,564]
[null,null,null,null,null,null,null,null,565]
[null,null,null,null,null,null,null,null,566]
[null,null,null,null,null,null,null,null,567]
[null,null,null,null,null,null,null,null,568]
[null,null,null,null,null,null,null,null,569]
[null,null,null,null,null,null,null,null,570]
[null,null,null,null,null,null,null,null,571]
[null,null,null,null,null,null,null,null,572]
[null,null,null,null,null,null,null,null,573]
[null,null,null,null,null,null,null,null,574]
[null,null,null,null,null,null,null,null,575]
[null,null,null,null,null,null,null,null,576]
[null,null,null,null,null,null,null,null,577]
[null,null,null,null,null,null,null,null,578]
[null,null,null,null,null,null,null,null,579]
[null,null,null,null,null,null,null,null,580]
[null,null,null,null,null,null,null,null,581]
[null,null,null,null,null,null,null,null,582]
[null,null,null,null,null,null,null,null,583]
[null,null,null,null,null,null,null,null,584]
[null,null,null,null,null,null,null,null,585]
[null,null,null,null,null,null,null,null,586]
[null,null,null,null,null,null,null,null,587]
[null,null,null,null,null,null,null,null,588]
[null,null,null,null,null,null,null,null,589]
[null,null,null,null,null,null,null,null,590]
[null,null,null,null,null,null,null,null,591]
[null,null,null,null,null,null,null,null,592]
[null,null,null,null,null,null,null,null,593]
[null,null,null,null,null,null,null,null,594]
[null,null,null,null,null,null,null,null,595]
[null,null,null,null,null,null,null,null,596]
[null,null,null,null,null,null,null,null,597]
[null,null,null,null,null,null,null,null,598]
[null,null,null,null,null,null,null,null,599]
[null,null,null,null,null,null,null,null,600]
[null,null,null,null,null,null,null,null,601]
[null,null,null,null,null,null,null,null,602]
[null,null,null,null,null,null,null,null,603]
[null,null,null,null,null,null,null,null,604]
[null,null,null,null,null,null,null,null,605]
[null,null,null,null,null,null,null,null,606]
[null,null,null,null,null,null,null,null,607]
[null,null,null,null,null,null,null,null,608]
[null,null,null,null,null,null,null,null,609]
[null,null,null,null,null,null,null,null,610]
[null,null,null,null,null,null,null,null,611]
[null,null,null,null,null,null,null,null,612]
[null,null,null,null,null,null,null,null,613]
[null,null,null,null,null,null,null,null,614]
[null,null,null,null,null,null,null,null,615]
[null,null,null,null,null,null,null,null,616]
[null,null,null,null,null,null,null,null,617]
[null,null,null,null,null,null,null,null,618]
[null,null,null,null,null,null,null,null,619]
[null,null,null,null,null,null,null,null,620]
[null,null,null,null,null,null,null,null,621]
[null,null,null,null,null,null,null,null,622]
[null,null,null,null,null,null,null,null,623]
[null,null,null,null,null,null,null,null,624]
[null,null,null,null,null,null,null,null,625]
[null,null,null,null,null,null,null,null,626]
[null,null,null,null,null,null,null,null,627]
[null,null,null,null,null,null,null,null,628]
[null,null,null,null,null,null,null,null,629]
[null,null,null,null,null,null,null,null,630]
[null,null,null,null,null,null,null,null,631]
[null,null,null,null,null,null,null,null,632]
[null,null,null,null,null,null,null,null,633]
[null,null,null,null,null,null,null,null,634]
[null,null,null,null,null,null,null,null,635]
[null,null,null,null,null,null,null,null,636]
[null,null,null,null,null,null,null,null,637]
[null,null,null,null,null,null,null,null,638]
[null,null,null,null,null,null,null,null,639]
[null,null,null,null,null,null,null,null,640]
[null,null,null,null,null,null,null,null,641]
[null,null,null,null,null,null,null,null,642]
[null,null,null,null,null,null,null,null,643]
[null,null,null,null,null,null,null,null,644]
[null,null,null,null,null,null,null,null,645]
[null,null,null,null,null,null,null,null,646]
[null,null,null,null,null,null,null,null,647]
[null,null,null,null,null,null,null,null,648]
[null,null,null,null,null,null,null,null,649]
[null,null,null,null,null,null,null,null,650]
[null,null,null,null,null,null,null,null,651]
[null,null,null,null,null,null,null,null,652]
[null,null,null,null,null,null,null,null,653]
[null,null,null,null,null,null,null,null,654]
[null,null,null,null,null,null,null,null,655]
[null,null,null,null,null,null,null,null,656]
[null,null,null,null,null,null,null,null,657]
[null,null,null,null,null,null,null,null,658]
[null,null,null,null,null,null,null,null,659]
[null,null,null,null,null,null,null,null,660]
[null,null,null,null,null,null,null,null,661]
[null,null,null,null,null,null,null,null,662]
[null,null,null,null,null,null,null,null,663]
[null,null,null,null,null,null,null,null,664]
[null,null,null,null,null,null,null,null,665]
[null,null,null,null,null,null,null,null,666]
[null,null,null,null,null,null,null,null,667]
[null,null,null,null,null,null,null,null,668]
[null,null,null,null,null,null,null,null,669]
[null,null,null,null,null,null,null,null,670]
[null,null,null,null,null,null,null,null,671]
[null,null,null,null,null,null,null,null,672]
[null,null,null,null,null,null,null,null,673]
[null,null,null,null,null,null,null,null,674]
[null,null,null,null,null,null,null,null,675]
[null,null,null,null,null,null,null,null,676]
[null,null,null,null,null,null,null,null,677]
[null,null,null,null,null,null,null,null,678]
[null,null,null,null,null,null,null,null,679]
[null,null,null,null,null,null,null,null,680]
[null,null,null,null,null,null,null,null,681]
[null,null,null,null,null,null,null,null,682]
[null,null,null,null,null,null,null,null,683]
[null,null,null,null,null,null,null,null,684]
[null,null,null,null,null,null,null,null,685]
[null,null,null,null,null,null,null,null,686]
[null,null,null,null,null,null,null,null,687]
[null,null,null,null,null,null,null,null,688]
[null,null,null,null,null,null,null,null,689]
[null,null,null,null,null,null,null,null,690]
[null,null,null,null,null,null,null,null,691]
[null,null,null,null,null,null,null,null,692]
[null,null,null,null,null,null,null,null,693]
[null,null,null,null,null,null,null,null,694]
[null,null,null,null,null,null,null,null,695]
[null,null,null,null,null,null,null,null,696]
[null,null,null,null,null,null,null,null,697]
[null,null,null,null,null,null,null,null,698]
[null,null,null,null,null,null,null,null,699]
[null,null,null,null,null,null,null,null,700]
[null,null,null,null,null,null,null,null,701]
[null,null,null,null,null,null,null,null,702]
[null,null,null,null,null,null,null,null,703]
[null,null,null,null,null,null,null,null,704]
[null,null,null,null,null,null,null,null,705]
[null,null,null,null,null,null,null,null,706]
[null,null,null,null,null,null,null,null,707]
[null,null,null,null,null,null,null,null,708]
[null,null,null,null,null,null,null,null,709]
[null,null,null,null,null,null,null,null,710]
[null,null,null,null,null,null,null,null,711]
[null,null,null,null,null,null,null,null,712]
[null,null,null,null,null,null,null,null,713]
[null,null,null,null,null,null,null,null,714]
[null,null,null,null,null,null,null,null,715]
[null,null,null,null,null,null,null,null,716]
[null,null,null,null,null,null,null,null,717]
[null,null,null,null,null,null,null,null,718]
[null,null,null,null,null,null,null,null,719]
[null,null,null,null,null,null,null,null,720]
[null,null,null,null,null,null,null,null,721]
[null,null,null,null,null,null,null,null,722]
[null,null,null,null,null,null,null,null,723]
[null,null,null,null,null,null,null,null,724]
[null,null,null,null,null,null,null,null,725]
[null,null,null,null,null,null,null,null,726]
[null,null,null,null,null,null,null,null,727]
[null,null,null,null,null,null,null,null,728]
[null,null,null,null,null,null,null,null,729]
[null,null,null,null,null,null,null,null,730]
[null,null,null,null,null,null,null,null,731]
[null,null,null,null,null,null,null,null,732]
[null,null,null,null,null,null,null,null,733]
[null,null,null,null,null,null,null,null,734]
[null,null,null,null,null,null,null,null,735]
[null,null,null,null,null,null,null,null,736]
[null,null,null,null,null,null,null,null,737]
[null,null,null,null,null,null,null,null,738]
[null,null,null,null,null,null,null,null,739]
[null,null,null,null,null,null,null,null,740]
[null,null,null,null,null,null,null,null,741]
[null,null,null,null,null,null,null,null,742]
[null,null,null,null,null,null,null,null,743]
[null,null,null,null,null,null,null,null,744]
[null,null,null,null,null,null,null,null,745]
[null,null,null,null,null,null,null,null,746]
[null,null,null,null,null,null,null,null,747]
[null,null,null,null,null,null,null,null,748]
[null,null,null,null,null,null,null,null,749]
[null,null,null,null,null,null,null,null,750]
[null,null,null,null,null,null,null,null,751]
[null,null,null,null,null,null,null,null,752]
[null,null,null,null,null,null,null,null,753]
[null,null,null,null,null,null,null,null,754]
[null,null,null,null,null,null,null,null,755]
[null,null,null,null,null,null,null,null,756]
[null,null,null,null,null,null,null,null,757]
[null,null,null,null,null,null,null,null,758]
[null,null,null,null,null,null,null,null,759]
[null,null,null,null,null,null,null,null,760]
[null,null,null,null,null,null,null,null,761]
[null,null,null,null,null,null,null,null,762]
[null,null,null,null,null,null,null,null,763]
[null,null,null,null,null,null,null,null,764]
[null,null,null,null,null,null,null,null,765]
[null,null,null,null,null,null,null,null,766]
[null,null,null,null,null,null,null,null,767]
[null,null,null,null,null,null,null,null,768]
[null,null,null,null,null,null,null,null,769]
[null,null,null,null,null,null,null,null,770]
[null,null,null,null,null,null,null,null,771]
[null,null,null,null,null,null,null,null,772]
[null,null,null,null,null,null,null,null,773]
[null,null,null,null,null,null,null,null,774]
[null,null,null,null,null,null,null,null,775]
[null,null,null,null,null,null,null,null,776]
[null,null,null,null,null,null,null,null,777]
[null,null,null,null,null,null,null,null,778]
[null,null,null,null,null,null,null,null,779]
[null,null,null,null,null,null,null,null,780]
[null,null,null,null,null,null,null,null,781]
[null,null,null,null,null,null,null,null,782]
[null,null,null,null,null,null,null,null,783]
[null,null,null,null,null,null,null,null,784]
[null,null,null,null,null,null,null,null,785]
[null,null,null,null,null,null,null,null,786]
[null,null,null,null,null,null,null,null,787]
[null,null,null,null,null,null,null,null,788]
[null,null,null,null,null,null,null,null,789]
[null,null,null,null,null,null,null,null,790]
[null,null,null,null,null,null,null,null,791]
[null,null,null,null,null,null,null,null,792]
[null,null,null,null,null,null,null,null,793]
[null,null,null,null,null,null,null,null,794]
[null,null,null,null,null,null,null,null,795]
[null,null,null,null,null,null,null,null,796]
[null,null,null,null,null,null,null,null,797]
[null,null,null,null,null,null,null,null,798]
[null,null,null,null,null,null,null,null,799]
[null,null,null,null,null,null,null,null,800]
[null,null,null,null,null,null,null,null,801]
[null,null,null,null,null,null,null,null,802]
[null,null,null,null,null,null,null,null,803]
[null,null,null,null,null,null,null,null,804]
[null,null,null,null,null,null,null,null,805]
[null,null,null,null,null,null,null,null,806]
[null,null,null,null,null,null,null,null,807]
[null,null,null,null,null,null,null,null,808]
[null,null,null,null,null,null,null,null,809]
[null,null,null,null,null,null,null,null,810]
[null,null,null,null,null,null,null,null,811]
[null,null,null,null,null,null,null,null,812]
[null,null,null,null,null,null,null,null,813]
[null,null,null,null,null,null,null,null,814]
[null,null,null,null,null,null,null,null,815]
[null,null,null,null,null,null,null,null,816]
[null,null,null,null,null,null,null,null,817]
[null,null,null,null,null,null,null,null,818]
[null,null,null,null,null,null,null,null,819]
[null,null,null,null,null,null,null,null,820]
[null,null,null,null,null,null,null,null,821]
[null,null,null,null,null,null,null,null,822]
[null,null,null,null,null,null,null,null,823]
[null,null,null,null,null,null,null,null,824]
[null,null,null,null,null,null,null,null,825]
[null,null,null,null,null,null,null,null,826]
[null,null,null,null,null,null,null,null,827]
[null,null,null,null,null,null,null,null,828]
[null,null,null,null,null,null,null,null,829]
[null,null,null,null,null,null,null,null,830]
[null,null,null,null,null,null,null,null,831]
[null,null,null,null,null,null,null,null,832]
[null,null,null,null,null,null,null,null,833]
[null,null,null,null,null,null,null,null,834]
[null,null,null,null,null,null,null,null,835]
[null,null,null,null,null,null,null,null,836]
[null,null,null,null,null,null,null,null,837]
[null,null,null,null,null,null,null,null,838]
[null,null,null,null,null,null,null,null,839]
[null,null,null,null,null,null,null,null,840]
[null,null,null,null,null,null,null,null,841]
[null,null,null,null,null,null,null,null,842]
[null,null,null,null,null,null,null,null,843]
[null,null,null,null,null,null,null,null,844]
[null,null,null,null,null,null,null,null,845]
[null,null,null,null,null,null,null,null,846]
[null,null,null,null,null,null,null,null,847]
[null,null,null,null,null,null,null,null,848]
[null,null,null,null,null,null,null,null,849]
[null,null,null,null,null,null,null,null,850]
[null,null,null,null,null,null,null,null,851]
[null,null,null,null,null,null,null,null,852]
[null,null,null,null,null,null,null,null,853]
[null,null,null,null,null,null,null,null,854]
[null,null,null,null,null,null,null,null,855]
[null,null,null,null,null,null,null,null,856]
[null,null,null,null,null,null,null,null,857]
[null,null,null,null,null,null,null,null,858]
[null,null,null,null,null,null,null,null,859]
[null,null,null,null,null,null,null,null,860]
[null,null,null,null,null,null,null,null,861]
[null,null,null,null,null,null,null,null,862]
[null,null,null,null,null,null,null,null,863]
[null,null,null,null,null,null,null,null,864]
[null,null,null,null,null,null,null,null,865]
[null,null,null,null,null,null,null,null,866]
[null,null,null,null,null,null,null,null,867]
[null,null,null,null,null,null,null,null,868]
[null,null,null,null,null,null,null,null,869]
[null,null,null,null,null,null,null,null,870]
[null,null,null,null,null,null,null,null,871]
[null,null,null,null,null,null,null,null,872]
[null,null,null,null,null,null,null,null,873]
[null,null,null,null,null,null,null,null,874]
[null,null,null,null,null,null,null,null,875]
[null,null,null,null,null,null,null,null,876]
[null,null,null,null,null,null,null,null,877]
[null,null,null,null,null,null,null,null,878]
[null,null,null,null,null,null,null,null,879]
[null,null,null,null,null,null,null,null,880]
[null,null,null,null,null,null,null,null,881]
[null,null,null,null,null,null,null,null,882]
[null,null,null,null,null,null,null,null,883]
[null,null,null,null,null,null,null,null,884]
[null,null,null,null,null,null,null,null,885]
[null,null,null,null,null,null,null,null,886]
[null,null,null,null,null,null,null,null,887]
[null,null,null,null,null,null,null,null,888]
[null,null,null,null,null,null,null,null,889]
[null,null,null,null,null,null,null,null,890]
[null,null,null,null,null,null,null,null,891]
[null,null,null,null,null,null,null,null,892]
[null,null,null,null,null,null,null,null,893]
[null,null,null,null,null,null,null,null,894]
[null,null,null,null,null,null,null,null,895]
[null,null,null,null,null,null,null,null,896]
[null,null,null,null,null,null,null,null,897]
[null,null,null,null,null,null,null,null,898]
[null,null,null,null,null,null,null,null,899]
[null,null,null,null,null,null,null,null,900]
[null,null,null,null,null,null,null,null,901]
[null,null,null,null,null,null,null,null,902]
[null,null,null,null,null,null,null,null,903]
[null,null,null,null,null,null,null,null,904]
[null,null,null,null,null,null,null,null,905]
[null,null,null,null,null,null,null,null,906]
[null,null,null,null,null,null,null,null,907]
[null,null,null,null,null,null,null,null,908]
[null,null,null,null,null,null,null,null,909]
[null,null,null,null,null,null,null,null,910]
[null,null,null,null,null,null,null,null,911]
[null,null,null,null,null,null,null,null,912]
[null,null,null,null,null,null,null,null,913]
[null,null,null,null,null,null,null,null,914]
[null,null,null,null,null,null,null,null,915]
[null,null,null,null,null,null,null,null,916]
[null,null,null,null,null,null,null,null,917]
[null,null,null,null,null,null,null,null,918]
[null,null,null,null,null,null,null,null,919]
[null,null,null,null,null,null,null,null,920]
[null,null,null,null,null,null,null,null,921]
[null,null,null,null,null,null,null,null,922]
[null,null,null,null,null,null,null,null,923]
[null,null,null,null,null,null,null,null,924]
[null,null,null,null,null,null,null,null,925]
[null,null,null,null,null,null,null,null,926]
[null,null,null,null,null,null,null,null,927]
[null,null,null,null,null,null,null,null,928]
[null,null,null,null,null,null,null,null,929]
[null,null,null,null,null,null,null,null,930]
[null,null,null,null,null,null,null,null,931]
[null,null,null,null,null,null,null,null,932]
[null,null,null,null,null,null,null,null,933]
[null,null,null,null,null,null,null,null,934]
[null,null,null,null,null,null,null,null,935]
[null,null,null,null,null,null,null,null,936]
[null,null,null,null,null,null,null,null,937]
[null,null,null,null,null,null,null,null,938]
[null,null,null,null,null,null,null,null,939]
[null,null,null,null,null,null,null,null,940]
[null,null,null,null,null,null,null,null,941]
[null,null,null,null,null,null,null,null,942]
[null,null,null,null,null,null,null,null,943]
[null,null,null,null,null,null,null,null,944]
[null,null,null,null,null,null,null,null,945]
[null,null,null,null,null,null,null,null,946]
[null,null,null,null,null,null,null,null,947]
[null,null,null,null,null,null,null,null,948]
[null,null,null,null,null,null,null,null,949]
[null,null,null,null,null,null,null,null,950]
[null,null,null,null,null,null,null,null,951]
[null,null,null,null,null,null,null,null,952]
[null,null,null,null,null,null,null,null,953]
[null,null,null,null,null,null,null,null,954]
[null,null,null,null,null,null,null,null,955]
[null,null,null,null,null,null,null,null,956]
[null,null,null,null,null,null,null,null,957]
[null,null,null,null,null,null,null,null,958]
[null,null,null,null,null,null,null,null,959]
[null,null,null,null,null,null,null,null,960]
[null,null,null,null,null,null,null,null,961]
[null,null,null,null,null,null,null,null,962]
[null,null,null,null,null,null,null,null,963]
[null,null,null,null,null,null,null,null,964]
[null,null,null,null,null,null,null,null,965]
[null,null,null,null,null,null,null,null,966]
[null,null,null,null,null,null,null,null,967]
[null,null,null,null,null,null,null,null,968]
[null,null,null,null,null,null,null,null,969]
[null,null,null,null,null,null,null,null,970]
[null,null,null,null,null,null,null,null,971]
[null,null,null,null,null,null,null,null,972]
[null,null,null,null,null,null,null,null,973]
[null,null,null,null,null,null,null,null,974]
[null,null,null,null,null,null,null,null,975]
[null,null,null,null,null,null,null,null,976]
[null,null,null,null,null,null,null,null,977]
[null,null,null,null,null,null,null,null,978]
[null,null,null,null,null,null,null,null,979]
[null,null,null,null,null,null,null,null,980]
[null,null,null,null,null,null,null,null,981]
[null,null,null,null,null,null,null,null,982]
[null,null,null,null,null,null,null,null,983]
[null,null,null,null,null,null,null,null,984]
[null,null,null,null,null,null,null,null,985]
[null,null,null,null,null,null,null,null,986]
[null,null,null,null,null,null,null,null,987]
[null,null,null,null,null,null,null,null,988]
[null,null,null,null,null,null,null,null,989]
[null,null,null,null,null,null,null,null,990]
[null,null,null,null,null,null,null,null,991]
[null,null,null,null,null,null,null,null,992]
[null,null,null,null,null,null,null,null,993]
[null,null,null,null,null,null,null,null,994]
[null,null,null,null,null,null,null,null,995]
[null,null,null,null,null,null,null,null,996]
[null,null,null,null,null,null,null,null,997]
[null,null,null,null,null,null,null,null,998]
[null,null,null,null,null,null,null,null,999]
[null,null,null,null,null,null,null,null,1000]
[null,null,null,null,null,null,null,null,1001]
[null,null,null,null,null,null,null,null,1002]
[null,null,null,null,null,null,null,null,1003]
[null,null,null,null,null,null,null,null,1004]
[null,null,null,null,null,null,null,null,1005]
[null,null,null,null,null,null,null,null,1006]
[null,null,null,null,null,null,null,null,1007]
[null,null,null,null,null,null,null,null,1008]
[null,null,null,null,null,null,null,null,1009]
[null,null,null,null,null,null,null,null,1010]
[null,null,null,null,null,null,null,null,1011]
[null,null,null,null,null,null,null,null,1012]
[null,null,null,null,null,null,null,null,1013]
[null,null,null,null,null,null,null,null,1014]
[null,null,null,null,null,null,null,null,1015]
[null,null,null,null,null,null,null,null,1016]
[null,null,null,null,null,null,null,null,1017]
[null,null,null,null,null,null,null,null,1018]
[null,null,null,null,null,null,null,null,1019]
[null,null,null,null,null,null,null,null,1020]
[null,null,null,null,null,null,null,null,1021]
[null,null,null,null,null,null,null,null,1022]
[null,null,null,null,null,null,null,null,1023]
[null,null,null,null,null,null,null,null,1024]
[null,null,null,null,null,null,null,null,1025]
[null,null,null,null,null,null,null,null,1026]
[null,null,null,null,null,null,null,null,1027]
[null,null,null,null,null,null,null,null,1028]
[null,null,null,null,null,null,null,null,1029]
[null,null,null,null,null,null,null,null,1030]
[null,null,null,null,null,null,null,null,1031]
[null,null,null,null,null,null,null,null,1032]
[null,null,null,null,null,null,null,null,1033]
[null,null,null,null,null,null,null,null,1034]
[null,null,null,null,null,null,null,null,1035]
[null,null,null,null,null,null,null,null,1036]
[null,null,null,null,null,null,null,null,1037]
[null,null,null,null,null,null,null,null,1038]
[null,null,null,null,null,null,null,null,1039]
[null,null,null,null,null,null,null,null,1040]
[null,null,null,null,null,null,null,null,1041]
[null,null,null,null,null,null,null,null,1042]
[null,null,null,null,null,null,null,null,1043]
[null,null,null,null,null,null,null,null,1044]
[null,null,null,null,null,null,null,null,1045]
[null,null,null,null,null,null,null,null,1046]
[null,null,null,null,null,null,null,null,1047]
[null,null,null,null,null,null,null,null,1048]
[null,null,null,null,null,null,null,null,1049]
[null,null,null,null,null,null,null,null,1050]
[null,null,null,null,null,null,null,null,1051]
[null,null,null,null,null,null,null,null,1052]
[null,null,null,null,null,null,null,null,1053]
[null,null,null,null,null,null,null,null,1054]
[null,null,null,null,null,null,null,null,1055]
[null,null,null,null,null,null,null,null,1056]
[null,null,null,null,null,null,null,null,1057]
[null,null,null,null,null,null,null,null,1058]
[null,null,null,null,null,null,null,null,1059]
[null,null,null,null,null,null,null,null,1060]
[null,null,null,null,null,null,null,null,1061]
[null,null,null,null,null,null,null,null,1062]
[null,null,null,null,null,null,null,null,1063]
[null,null,null,null,null,null,null,null,1064]
[null,null,null,null,null,null,null,null,1065]
[null,null,null,null,null,null,null,null,1066]
[null,null,null,null,null,null,null,null,1067]
[null,null,null,null,null,null,null,null,1068]
[null,null,null,null,null,null,null,null,1069]
[null,null,null,null,null,null,null,null,1070]
[null,null,null,null,null,null,null,null,1071]
[null,null,null,null,null,null,null,null,1072]
[null,null,null,null,null,null,null,null,1073]
[null,null,null,null,null,null,null,null,1074]
[null,null,null,null,null,null,null,null,1075]
[null,null,null,null,null,null,null,null,1076]
[null,null,null,null,null,null,null,null,1077]
[null,null,null,null,null,null,null,null,1078]
[null,null,null,null,null,null,null,null,1079]
[null,null,null,null,null,null,null,null,1080]
[null,null,null,null,null,null,null,null,1081]
[null,null,null,null,null,null,null,null,1082]
[null,null,null,null,null,null,null,null,1083]
[null,null,null,null,null,null,null,null,1084]
[null,null,null,null,null,null,null,null,1085]
[null,null,null,null,null,null,null,null,1086]
[null,null,null,null,null,null,null,null,1087]
[null,null,null,null,null,null,null,null,1088]
[null,null,null,null,null,null,null,null,1089]
[null,null,null,null,null,null,null,null,1090]
[null,null,null,null,null,null,null,null,1091]
[null,null,null,null,null,null,null,null,1092]
[null,null,null,null,null,null,null,null,1093]
[null,null,null,null,null,null,null,null,1094]
[null,null,null,null,null,null,null,null,1095]
[null,null,null,null,null,null,null,null,1096]
[null,null,null,null,null,null,null,null,1097]
[null,null,null,null,null,null,null,null,1098]
[null,null,null,null,null,null,null,null,1099]
[null,null,null,null,null,null,null,null,1100]
[null,null,null,null,null,null,null,null,1101]
[null,null,null,null,null,null,null,null,1102]
[null,null,null,null,null,null,null,null,1103]
[null,null,null,null,null,null,null,null,1104]
[null,null,null,null,null,null,null,null,1105]
[null,null,null,null,null,null,null,null,1106]
[null,null,null,null,null,null,null,null,1107]
[null,null,null,null,null,null,null,null,1108]
[null,null,null,null,null,null,null,null,1109]
[null,null,null,null,null,null,null,null,1110]
[null,null,null,null,null,null,null,null,1111]
[null,null,null,null,null,null,null,null,1112]
[null,null,null,null,null,null,null,null,1113]
[null,null,null,null,null,null,null,null,1114]
[null,null,null,null,null,null,null,null,1115]
[null,null,null,null,null,null,null,null,1116]
[null,null,null,null,null,null,null,null,1117]
[null,null,null,null,null,null,null,null,1118]
[null,null,null,null,null,null,null,null,1119]
[null,null,null,null,null,null,null,null,1120]
[null,null,null,null,null,null,null,null,1121]
[null,null,null,null,null,null,null,null,1122]
[null,null,null,null,null,null,null,null,1123]
[null,null,null,null,null,null,null,null,1124]
[null,null,null,null,null,null,null,null,1125]
[null,null,null,null,null,null,null,null,1126]
[null,null,null,null,null,null,null,null,1127]
[null,null,null,null,null,null,null,null,1128]
[null,null,null,null,null,null,null,null,1129]
[null,null,null,null,null,null,null,null,1130]
[null,null,null,null,null,null,null,null,1131]
[null,null,null,null,null,null,null,null,1132]
[null,null,null,null,null,null,null,null,1133]
[null,null,null,null,null,null,null,null,1134]
[null,null,null,null,null,null,null,null,1135]
[null,null,null,null,null,null,null,null,1136]
[null,null,null,null,null,null,null,null,1137]
[null,null,null,null,null,null,null,null,1138]
[null,null,null,null,null,null,null,null,1139]
[null,null,null,null,null,null,null,null,1140]
[null,null,null,null,null,null,null,null,1141]
[null,null,null,null,null,null,null,null,1142]
[null,null,null,null,null,null,null,null,1143]
[null,null,null,null,null,null,null,null,1144]
[null,null,null,null,null,null,null,null,1145]
[null,null,null,null,null,null,null,null,1146]
[null,null,null,null,null,null,null,null,1147]
[null,null,null,null,null,null,null,null,1148]
[null,null,null,null,null,null,null,null,1149]
[null,null,null,null,null,null,null,null,1150]
[null,null,null,null,null,null,null,null,1151]
[null,null,null,null,null,null,null,null,1152]
[null,null,null,null,null,null,null,null,1153]
[null,null,null,null,null,null,null,null,1154]
[null,null,null,null,null,null,null,null,1155]
[null,null,null,null,null,null,null,null,1156]
[null,null,null,null,null,null,null,null,1157]
[null,null,null,null,null,null,null,null,1158]
[null,null,null,null,null,null,null,null,1159]
[null,null,null,null,null,null,null,null,1160]
[null,null,null,null,null,null,null,null,1161]
[null,null,null,null,null,null,null,null,1162]
[null,null,null,null,null,null,null,null,1163]
[null,null,null,null,null,null,null,null,1164]
[null,null,null,null,null,null,null,null,1165]
[null,null,null,null,null,null,null,null,1166]
[null,null,null,null,null,null,null,null,1167]
[null,null,null,null,null,null,null,null,1168]
[null,null,null,null,null,null,null,null,1169]
[null,null,null,null,null,null,null,null,1170]
[null,null,null,null,null,null,null,null,1171]
[null,null,null,null,null,null,null,null,1172]
[null,null,null,null,null,null,null,null,1173]
[null,null,null,null,null,null,null,null,1174]
[null,null,null,null,null,null,null,null,1175]
[null,null,null,null,null,null,null,null,1176]
[null,null,null,null,null,null,null,null,1177]
[null,null,null,null,null,null,null,null,1178]
[null,null,null,null,null,null,null,null,1179]
[null,null,null,null,null,null,null,null,1180]
[null,null,null,null,null,null,null,null,1181]
[null,null,null,null,null,null,null,null,1182]
[null,null,null,null,null,null,null,null,1183]
[null,null,null,null,null,null,null,null,1184]
[null,null,null,null,null,null,null,null,1185]
[null,null,null,null,null,null,null,null,1186]
[null,null,null,null,null,null,null,null,1187]
[null,null,null,null,null,null,null,null,1188]
[null,null,null,null,null,null,null,null,1189]
[null,null,null,null,null,null,null,null,1190]
[null,null,null,null,null,null,null,null,1191]
[null,null,null,null,null,null,null,null,1192]
[null,null,null,null,null,null,null,null,1193]
[null,null,null,null,null,null,null,null,1194]
[null,null,null,null,null,null,null,null,1195]
[null,null,null,null,null,null,null,null,1196]
[null,null,null,null,null,null,null,null,1197]
[null,null,null,null,null,null,null,null,1198]
[null,null,null,null,null,null,null,null,1199]
[null,null,null,null,null,null,null,null,1200]
[null,null,null,null,null,null,null,null,1201]
[null,null,null,null,null,null,null,null,1202]
[null,null,null,null,null,null,null,null,1203]
[null,null,null,null,null,null,null,null,1204]
[null,null,null,null,null,null,null,null,1205]
[null,null,null,null,null,null,null,null,1206]
[null,null,null,null,null,null,null,null,1207]
[null,null,null,null,null,null,null,null,1208]
[null,null,null,null,null,null,null,null,1209]
[null,null,null,null,null,null,null,null,1210]
[null,null,null,null,null,null,null,null,1211]
[null,null,null,null,null,null,null,null,1212]
[null,null,null,null,null,null,null,null,1213]
[null,null,null,null,null,null,null,null,1214]
[null,null,null,null,null,null,null,null,1215]
[null,null,null,null,null,null,null,null,1216]
[null,null,null,null,null,null,null,null,1217]
[null,null,null,null,null,null,null,null,1218]
[null,null,null,null,null,null,null,null,1219]
[null,null,null,null,null,null,null,null,1220]
[null,null,null,null,null,null,null,null,1221]
[null,null,null,null,null,null,null,null,1222]
[null,null,null,null,null,null,null,null,1223]
[null,null,null,null,null,null,null,null,1224]
[null,null,null,null,null,null,null,null,1225]
[null,null,null,null,null,null,null,null,1226]
[null,null,null,null,null,null,null,null,1227]
[null,null,null,null,null,null,null,null,1228]
[null,null,null,null,null,null,null,null,1229]
[null,null,null,null,null,null,null,null,1230]
[null,null,null,null,null,null,null,null,1231]
[null,null,null,null,null,null,null,null,1232]
[null,null,null,null,null,null,null,null,1233]
[null,null,null,null,null,null,null,null,1234]
[null,null,null,null,null,null,null,null,1235]
[null,null,null,null,null,null,null,null,1236]
[null,null,null,null,null,null,null,null,1237]
[null,null,null,null,null,null,null,null,1238]
[null,null,null,null,null,null,null,null,1239]
[null,null,null,null,null,null,null,null,1240]
[null,null,null,null,null,null,null,null,1241]
[null,null,null,null,null,null,null,null,1242]
[null,null,null,null,null,null,null,null,1243]
[null,null,null,null,null,null,null,null,1244]
[null,null,null,null,null,null,null,null,1245]
[null,null,null,null,null,null,null,null,1246]
[null,null,null,null,null,null,null,null,1247]
[null,null,null,null,null,null,null,null,1248]
[null,null,null,null,null,null,null,null,1249]
[null,null,null,null,null,null,null,null,1250]
[null,null,null,null,null,null,null,null,1251]
[null,null,null,null,null,null,null,null,1252]
[null,null,null,null,null,null,null,null,1253]
[null,null,null,null,null,null,null,null,1254]
[null,null,null,null,null,null,null,null,1255]
[null,null,null,null,null,null,null,null,1256]
[null,null,null,null,null,null,null,null,1257]
[null,null,null,null,null,null,null,null,1258]
[null,null,null,null,null,null,null,null,1259]
[null,null,null,null,null,null,null,null,1260]
[null,null,null,null,null,null,null,null,1261]
[null,null,null,null,null,null,null,null,1262]
[null,null,null,null,null,null,null,null,1263]
[null,null,null,null,null,null,null,null,1264]
[null,null,null,null,null,null,null,null,1265]
[null,null,null,null,null,null,null,null,1266]
[null,null,null,null,null,null,null,null,1267]
[null,null,null,null,null,null,null,null,1268]
[null,null,null,null,null,null,null,null,1269]
[null,null,null,null,null,null,null,null,1270]
[null,null,null,null,null,null,null,null,1271]
[null,null,null,null,null,null,null,null,1272]
[null,null,null,null,null,null,null,null,1273]
[null,null,null,null,null,null,null,null,1274]
[null,null,null,null,null,null,null,null,1275]
[null,null,null,null,null,null,null,null,1276]
[null,null,null,null,null,null,null,null,1277]
[null,null,null,null,null,null,null,null,1278]
[null,null,null,null,null,null,null,null,1279]
[null,null,null,null,null,null,null,null,1280]
[null,null,null,null,null,null,null,null,1281]
[null,null,null,null,null,null,null,null,1282]
[null,null,null,null,null,null,null,null,1283]
[null,null,null,null,null,null,null,null,1284]
[null,null,null,null,null,null,null,null,1285]
[null,null,null,null,null,null,null,null,1286]
[null,null,null,null,null,null,null,null,1287]
[null,null,null,null,null,null,null,null,1288]
[null,null,null,null,null,null,null,null,1289]
[null,null,null,null,null,null,null,null,1290]
[null,null,null,null,null,null,null,null,1291]
[null,null,null,null,null,null,null,null,1292]
[null,null,null,null,null,null,null,null,1293]
[null,null,null,null,null,null,null,null,1294]
[null,null,null,null,null,null,null,null,1295]
[null,null,null,null,null,null,null,null,1296]
[null,null,null,null,null,null,null,null,1297]
[null,null,null,null,null,null,null,null,1298]
[null,null,null,null,null,null,null,null,1299]
[null,null,null,null,null,null,null,null,1300]
[null,null,null,null,null,null,null,null,1301]
[null,null,null,null,null,null,null,null,1302]
[null,null,null,null,null,null,null,null,1303]
[null,null,null,null,null,null,null,null,1304]
[null,null,null,null,null,null,null,null,1305]
[null,null,null,null,null,null,null,null,1306]
[null,null,null,null,null,null,null,null,1307]
[null,null,null,null,null,null,null,null,1308]
[null,null,null,null,null,null,null,null,1309]
[null,null,null,null,null,null,null,null,1310]
[null,null,null,null,null,null,null,null,1311]
[null,null,null,null,null,null,null,null,1312]
[null,null,null,null,null,null,null,null,1313]
[null,null,null,null,null,null,null,null,1314]
[null,null,null,null,null,null,null,null,1315]
[null,null,null,null,null,null,null,null,1316]
[null,null,null,null,null,null,null,null,1317]
[null,null,null,null,null,null,null,null,1318]
[null,null,null,null,null,null,null,null,1319]
[null,null,null,null,null,null,null,null,1320]
[null,null,null,null,null,null,null,null,1321]
[null,null,null,null,null,null,null,null,1322]
[null,null,null,null,null,null,null,null,1323]
[null,null,null,null,null,null,null,null,1324]
[null,null,null,null,null,null,null,null,1325]
[null,null,null,null,null,null,null,null,1326]
[null,null,null,null,null,null,null,null,1327]
[null,null,null,null,null,null,null,null,1328]
[null,null,null,null,null,null,null,null,1329]
[null,null,null,null,null,null,null,null,1330]
[null,null,null,null,null,null,null,null,1331]
[null,null,null,null,null,null,null,null,1332]
[null,null,null,null,null,null,null,null,1333]
[null,null,null,null,null,null,null,null,1334]
[null,null,null,null,null,null,null,null,1335]
[null,null,null,null,null,null,null,null,1336]
[null,null,null,null,null,null,null,null,1337]
[null,null,null,null,null,null,null,null,1338]
[null,null,null,null,null,null,null,null,1339]
[null,null,null,null,null,null,null,null,1340]
[null,null,null,null,null,null,null,null,1341]
[null,null,null,null,null,null,null,null,1342]
[null,null,null,null,null,null,null,null,1343]
[null,null,null,null,null,null,null,null,1344]
[null,null,null,null,null,null,null,null,1345]
[null,null,null,null,null,null,null,null,1346]
[null,null,null,null,null,null,null,null,1347]
[null,null,null,null,null,null,null,null,1348]
[null,null,null,null,null,null,null,null,1349]
[null,null,null,null,null,null,null,null,1350]
[null,null,null,null,null,null,null,null,1351]
[null,null,null,null,null,null,null,null,1352]
[null,null,null,null,null,null,null,null,1353]
[null,null,null,null,null,null,null,null,1354]
[null,null,null,null,null,null,null,null,1355]
[null,null,null,null,null,null,null,null,1356]
[null,null,null,null,null,null,null,null,1357]
[null,null,null,null,null,null,null,null,1358]
[null,null,null,null,null,null,null,null,1359]
[null,null,null,null,null,null,null,null,1360]
[null,null,null,null,null,null,null,null,1361]
[null,null,null,null,null,null,null,null,1362]
[null,null,null,null,null,null,null,null,1363]
[null,null,null,null,null,null,null,null,1364]
[null,null,null,null,null,null,null,null,1365]
[null,null,null,null,null,null,null,null,1366]
[null,null,null,null,null,null,null,null,1367]
[null,null,null,null,null,null,null,null,1368]
[null,null,null,null,null,null,null,null,1369]
[null,null,null,null,null,null,null,null,1370]
[null,null,null,null,null,null,null,null,1371]
[null,null,null,null,null,null,null,null,1372]
[null,null,null,null,null,null,null,null,1373]
[null,null,null,null,null,null,null,null,1374]
[null,null,null,null,null,null,null,null,1375]
[null,null,null,null,null,null,null,null,1376]
[null,null,null,null,null,null,null,null,1377]
[null,null,null,null,null,null,null,null,1378]
[null,null,null,null,null,null,null,null,1379]
[null,null,null,null,null,null,null,null,1380]
[null,null,null,null,null,null,null,null,1381]
[null,null,null,null,null,null,null,null,1382]
[null,null,null,null,null,null,null,null,1383]
[null,null,null,null,null,null,null,null,1384]
[null,null,null,null,null,null,null,null,1385]
[null,null,null,null,null,null,null,null,1386]
[null,null,null,null,null,null,null,null,1387]
[null,null,null,null,null,null,null,null,1388]
[null,null,null,null,null,null,null,null,1389]
[null,null,null,null,null,null,null,null,1390]
[null,null,null,null,null,null,null,null,1391]
[null,null,null,null,null,null,null,null,1392]
[null,null,null,null,null,null,null,null,1393]
[null,null,null,null,null,null,null,null,1394]
[null,null,null,null,null,null,null,null,1395]
[null,null,null,null,null,null,null,null,1396]
[null,null,null,null,null,null,null,null,1397]
[null,null,null,null,null,null,null,null,1398]
[null,null,null,null,null,null,null,null,1399]
[null,null,null,null,null,null,null,null,1400]
[null,null,null,null,null,null,null,null,1401]
[null,null,null,null,null,null,null,null,1402]
[null,null,null,null,null,null,null,null,1403]
[null,null,null,null,null,null,null,null,1404]
[null,null,null,null,null,null,null,null,1405]
[null,null,null,null,null,null,null,null,1406]
[null,null,null,null,null,null,null,null,1407]
[null,null,null,null,null,null,null,null,1408]
[null,null,null,null,null,null,null,null,1409]
[null,null,null,null,null,null,null,null,1410]
[null,null,null,null,null,null,null,null,1411]
[null,null,null,null,null,null,null,null,1412]
[null,null,null,null,null,null,null,null,1413]
[null,null,null,null,null,null,null,null,1414]
[null,null,null,null,null,null,null,null,1415]
[null,null,null,null,null,null,null,null,1416]
[null,null,null,null,null,null,null,null,1417]
[null,null,null,null,null,null,null,null,1418]
[null,null,null,null,null,null,null,null,1419]
[null,null,null,null,null,null,null,null,1420]
[null,null,null,null,null,null,null,null,1421]
[null,null,null,null,null,null,null,null,1422]
[null,null,null,null,null,null,null,null,1423]
[null,null,null,null,null,null,null,null,1424]
[null,null,null,null,null,null,null,null,1425]
[null,null,null,null,null,null,null,null,1426]
[null,null,null,null,null,null,null,null,1427]
[null,null,null,null,null,null,null,null,1428]
[null,null,null,null,null,null,null,null,1429]
[null,null,null,null,null,null,null,null,1430]
[null,null,null,null,null,null,null,null,1431]
[null,null,null,null,null,null,null,null,1432]
[null,null,null,null,null,null,null,null,1433]
[null,null,null,null,null,null,null,null,1434]
[null,null,null,null,null,null,null,null,1435]
[null,null,null,null,null,null,null,null,1436]
[null,null,null,null,null,null,null,null,1437]
[null,null,null,null,null,null,null,null,1438]
[null,null,null,null,null,null,null,null,1439]
[null,null,null,null,null,null,null,null,1440]
[null,null,null,null,null,null,null,null,1441]
[null,null,null,null,null,null,null,null,1442]
[null,null,null,null,null,null,null,null,1443]
[null,null,null,null,null,null,null,null,1444]
[null,null,null,null,null,null,null,null,1445]
[null,null,null,null,null,null,null,null,1446]
[null,null,null,null,null,null,null,null,1447]
[null,null,null,null,null,null,null,null,1448]
[null,null,null,null,null,null,null,null,1449]
[null,null,null,null,null,null,null,null,1450]
[null,null,null,null,null,null,null,null,1451]
[null,null,null,null,null,null,null,null,1452]
[null,null,null,null,null,null,null,null,1453]
[null,null,null,null,null,null,null,null,1454]
[null,null,null,null,null,null,null,null,1455]
[null,null,null,null,null,null,null,null,1456]
[null,null,null,null,null,null,null,null,1457]
[null,null,null,null,null,null,null,null,1458]
[null,null,null,null,null,null,null,null,1459]
[null,null,null,null,null,null,null,null,1460]
[null,null,null,null,null,null,null,null,1461]
[null,null,null,null,null,null,null,null,1462]
[null,null,null,null,null,null,null,null,1463]
[null,null,null,null,null,null,null,null,1464]
[null,null,null,null,null,null,null,null,1465]
[null,null,null,null,null,null,null,null,1466]
[null,null,null,null,null,null,null,null,1467]
[null,null,null,null,null,null,null,null,1468]
[null,null,null,null,null,null,null,null,1469]
[null,null,null,null,null,null,null,null,1470]
[null,null,null,null,null,null,null,null,1471]
[null,null,null,null,null,null,null,null,1472]
[null,null,null,null,null,null,null,null,1473]
[null,null,null,null,null,null,null,null,1474]
[null,null,null,null,null,null,null,null,1475]
[null,null,null,null,null,null,null,null,1476]
[null,null,null,null,null,null,null,null,1477]
[null,null,null,null,null,null,null,null,1478]
[null,null,null,null,null,null,null,null,1479]
[null,null,null,null,null,null,null,null,1480]
[null,null,null,null,null,null,null,null,1481]
[null,null,null,null,null,null,null,null,1482]
[null,null,null,null,null,null,null,null,1483]
[null,null,null,null,null,null,null,null,1484]
[null,null,null,null,null,null,null,null,1485]
[null,null,null,null,null,null,null,null,1486]
[null,null,null,null,null,null,null,null,1487]
[null,null,null,null,null,null,null,null,1488]
[null,null,null,null,null,null,null,null,1489]
[null,null,null,null,null,null,null,null,1490]
[null,null,null,null,null,null,null,null,1491]
[null,null,null,null,null,null,null,null,1492]
[null,null,null,null,null,null,null,null,1493]
[null,null,null,null,null,null,null,null,1494]
[null,null,null,null,null,null,null,null,1495]
[null,null,null,null,null,null,null,null,1496]
[null,null,null,null,null,null,null,null,1497]
[null,null,null,null,null,null,null,null,1498]
[null,null,null,null,null,null,null,null,1499]
[null,null,null,null,null,null,null,null,1500]
[null,null,null,null,null,null,null,null,1501]
[null,null,null,null,null,null,null,null,1502]
[null,null,null,null,null,null,null,null,1503]
[null,null,null,null,null,null,null,null,1504]
[null,null,null,null,null,null,null,null,1505]
[null,null,null,null,null,null,null,null,1506]
[null,null,null,null,null,null,null,null,1507]
[null,null,null,null,null,null,null,null,1508]
[null,null,null,null,null,null,null,null,1509]
[null,null,null,null,null,null,null,null,1510]
[null,null,null,null,null,null,null,null,1511]
[null,null,null,null,null,null,null,null,1512]
[null,null,null,null,null,null,null,null,1513]
[null,null,null,null,null,null,null,null,1514]
[null,null,null,null,null,null,null,null,1515]
[null,null,null,null,null,null,null,null,1516]
[null,null,null,null,null,null,null,null,1517]
[null,null,null,null,null,null,null,null,1518]
[null,null,null,null,null,null,null,null,1519]
[null,null,null,null,null,null,null,null,1520]
[null,null,null,null,null,null,null,null,1521]
[null,null,null,null,null,null,null,null,1522]
[null,null,null,null,null,null,null,null,1523]
[null,null,null,null,null,null,null,null,1524]
[null,null,null,null,null,null,null,null,1525]
[null,null,null,null,null,null,null,null,1526]
[null,null,null,null,null,null,null,null,1527]
[null,null,null,null,null,null,null,null,1528]
[null,null,null,null,null,null,null,null,1529]
[null,null,null,null,null,null,null,null,1530]
[null,null,null,null,null,null,null,null,1531]
[null,null,null,null,null,null,null,null,1532]
[null,null,null,null,null,null,null,null,1533]
[null,null,null,null,null,null,null,null,1534]
[null,null,null,null,null,null,null,null,1535]
[null,null,null,null,null,null,null,null,1536]
[null,null,null,null,null,null,null,null,1537]
[null,null,null,null,null,null,null,null,1538]
[null,null,null,null,null,null,null,null,1539]
[null,null,null,null,null,null,null,null,1540]
[null,null,null,null,null,null,null,null,1541]
[null,null,null,null,null,null,null,null,1542]
[null,null,null,null,null,null,null,null,1543]
[null,null,null,null,null,null,null,null,1544]
[null,null,null,null,null,null,null,null,1545]
[null,null,null,null,null,null,null,null,1546]
[null,null,null,null,null,null,null,null,1547]
[null,null,null,null,null,null,null,null,1548]
[null,null,null,null,null,null,null,null,1549]
[null,null,null,null,null,null,null,null,1550]
[null,null,null,null,null,null,null,null,1551]
[null,null,null,null,null,null,null,null,1552]
[null,null,null,null,null,null,null,null,1553]
[null,null,null,null,null,null,null,null,1554]
[null,null,null,null,null,null,null,null,1555]
[null,null,null,null,null,null,null,null,1556]
[null,null,null,null,null,null,null,null,1557]
[null,null,null,null,null,null,null,null,1558]
[null,null,null,null,null,null,null,null,1559]
[null,null,null,null,null,null,null,null,1560]
[null,null,null,null,null,null,null,null,1561]
[null,null,null,null,null,null,null,null,1562]
[null,null,null,null,null,null,null,null,1563]
[null,null,null,null,null,null,null,null,1564]
[null,null,null,null,null,null,null,null,1565]
[null,null,null,null,null,null,null,null,1566]
[null,null,null,null,null,null,null,null,1567]
[null,null,null,null,null,null,null,null,1568]
[null,null,null,null,null,null,null,null,1569]
[null,null,null,null,null,null,null,null,1570]
[null,null,null,null,null,null,null,null,1571]
[null,null,null,null,null,null,null,null,1572]
[null,null,null,null,null,null,null,null,1573]
[null,null,null,null,null,null,null,null,1574]
[null,null,null,null,null,null,null,null,1575]
[null,null,null,null,null,null,null,null,1576]
[null,null,null,null,null,null,null,null,1577]
[null,null,null,null,null,null,null,null,1578]
[null,null,null,null,null,null,null,null,1579]
[null,null,null,null,null,null,null,null,1580]
[null,null,null,null,null,null,null,null,1581]
[null,null,null,null,null,null,null,null,1582]
[null,null,null,null,null,null,null,null,1583]
[null,null,null,null,null,null,null,null,1584]
[null,null,null,null,null,null,null,null,1585]
[null,null,null,null,null,null,null,null,1586]
[null,null,null,null,null,null,null,null,1587]
[null,null,null,null,null,null,null,null,1588]
[null,null,null,null,null,null,null,null,1589]
[null,null,null,null,null,null,null,null,1590]
[null,null,null,null,null,null,null,null,1591]
[null,null,null,null,null,null,null,null,1592]
[null,null,null,null,null,null,null,null,1593]
[null,null,null,null,null,null,null,null,1594]
[null,null,null,null,null,null,null,null,1595]
[null,null,null,null,null,null,null,null,1596]
[null,null,null,null,null,null,null,null,1597]
[null,null,null,null,null,null,null,null,1598]
[null,null,null,null,null,null,null,null,1599]
[null,null,null,null,null,null,null,null,1600]
[null,null,null,null,null,null,null,null,1601]
[null,null,null,null,null,null,null,null,1602]
[null,null,null,null,null,null,null,null,1603]
[null,null,null,null,null,null,null,null,1604]
[null,null,null,null,null,null,null,null,1605]
[null,null,null,null,null,null,null,null,1606]
[null,null,null,null,null,null,null,null,1607]
[null,null,null,null,null,null,null,null,1608]
[null,null,null,null,null,null,null,null,1609]
[null,null,null,null,null,null,null,null,1610]
[null,null,null,null,null,null,null,null,1611]
[null,null,null,null,null,null,null,null,1612]
[null,null,null,null,null,null,null,null,1613]
[null,null,null,null,null,null,null,null,1614]
[null,null,null,null,null,null,null,null,1615]
[null,null,null,null,null,null,null,null,1616]
[null,null,null,null,null,null,null,null,1617]
[null,null,null,null,null,null,null,null,1618]
[null,null,null,null,null,null,null,null,1619]
[null,null,null,null,null,null,null,null,1620]
[null,null,null,null,null,null,null,null,1621]
[null,null,null,null,null,null,null,null,1622]
[null,null,null,null,null,null,null,null,1623]
[null,null,null,null,null,null,null,null,1624]
[null,null,null,null,null,null,null,null,1625]
[null,null,null,null,null,null,null,null,1626]
[null,null,null,null,null,null,null,null,1627]
[null,null,null,null,null,null,null,null,1628]
[null,null,null,null,null,null,null,null,1629]
[null,null,null,null,null,null,null,null,1630]
[null,null,null,null,null,null,null,null,1631]
[null,null,null,null,null,null,null,null,1632]
[null,null,null,null,null,null,null,null,1633]
[null,null,null,null,null,null,null,null,1634]
[null,null,null,null,null,null,null,null,1635]
[null,null,null,null,null,null,null,null,1636]
[null,null,null,null,null,null,null,null,1637]
[null,null,null,null,null,null,null,null,1638]
[null,null,null,null,null,null,null,null,1639]
[null,null,null,null,null,null,null,null,1640]
[null,null,null,null,null,null,null,null,1641]
[null,null,null,null,null,null,null,null,1642]
[null,null,null,null,null,null,null,null,1643]
[null,null,null,null,null,null,null,null,1644]
[null,null,null,null,null,null,null,null,1645]
[null,null,null,null,null,null,null,null,1646]
[null,null,null,null,null,null,null,null,1647]
[null,null,null,null,null,null,null,null,1648]
[null,null,null,null,null,null,null,null,1649]
[null,null,null,null,null,null,null,null,1650]
[null,null,null,null,null,null,null,null,1651]
[null,null,null,null,null,null,null,null,1652]
[null,null,null,null,null,null,null,null,1653]
[null,null,null,null,null,null,null,null,1654]
[null,null,null,null,null,null,null,null,1655]
[null,null,null,null,null,null,null,null,1656]
[null,null,null,null,null,null,null,null,1657]
[null,null,null,null,null,null,null,null,1658]
[null,null,null,null,null,null,null,null,1659]
[null,null,null,null,null,null,null,null,1660]
[null,null,null,null,null,null,null,null,1661]
[null,null,null,null,null,null,null,null,1662]
[null,null,null,null,null,null,null,null,1663]
[null,null,null,null,null,null,null,null,1664]
[null,null,null,null,null,null,null,null,1665]
[null,null,null,null,null,null,null,null,1666]
[null,null,null,null,null,null,null,null,1667]
[null,null,null,null,null,null,null,null,1668]
[null,null,null,null,null,null,null,null,1669]
[null,null,null,null,null,null,null,null,1670]
[null,null,null,null,null,null,null,null,1671]
[null,null,null,null,null,null,null,null,1672]
[null,null,null,null,null,null,null,null,1673]
[null,null,null,null,null,null,null,null,1674]
[null,null,null,null,null,null,null,null,1675]
[null,null,null,null,null,null,null,null,1676]
[null,null,null,null,null,null,null,null,1677]
[null,null,null,null,null,null,null,null,1678]
[null,null,null,null,null,null,null,null,1679]
[null,null,null,null,null,null,null,null,1680]
[null,null,null,null,null,null,null,null,1681]
[null,null,null,null,null,null,null,null,1682]
[null,null,null,null,null,null,null,null,1683]
[null,null,null,null,null,null,null,null,1684]
[null,null,null,null,null,null,null,null,1685]
[null,null,null,null,null,null,null,null,1686]
[null,null,null,null,null,null,null,null,1687]
[null,null,null,null,null,null,null,null,1688]
[null,null,null,null,null,null,null,null,1689]
[null,null,null,null,null,null,null,null,1690]
[null,null,null,null,null,null,null,null,1691]
[null,null,null,null,null,null,null,null,1692]
[null,null,null,null,null,null,null,null,1693]
[null,null,null,null,null,null,null,null,1694]
[null,null,null,null,null,null,null,null,1695]
[null,null,null,null,null,null,null,null,1696]
[null,null,null,null,null,null,null,null,1697]
[null,null,null,null,null,null,null,null,1698]
[null,null,null,null,null,null,null,null,1699]
[null,null,null,null,null,null,null,null,1700]
[null,null,null,null,null,null,null,null,1701]
[null,null,null,null,null,null,null,null,1702]
[null,null,null,null,null,null,null,null,1703]
[null,null,null,null,null,null,null,null,1704]
[null,null,null,null,null,null,null,null,1705]
[null,null,null,null,null,null,null,null,1706]
[null,null,null,null,null,null,null,null,1707]
[null,null,null,null,null,null,null,null,1708]
[null,null,null,null,null,null,null,null,1709]
[null,null,null,null,null,null,null,null,1710]
[null,null,null,null,null,null,null,null,1711]
[null,null,null,null,null,null,null,null,1712]
[null,null,null,null,null,null,null,null,1713]
[null,null,null,null,null,null,null,null,1714]
[null,null,null,null,null,null,null,null,1715]
[null,null,null,null,null,null,null,null,1716]
[null,null,null,null,null,null,null,null,1717]
[null,null,null,null,null,null,null,null,1718]
[null,null,null,null,null,null,null,null,1719]
[null,null,null,null,null,null,null,null,1720]
[null,null,null,null,null,null,null,null,1721]
[null,null,null,null,null,null,null,null,1722]
[null,null,null,null,null,null,null,null,1723]
[null,null,null,null,null,null,null,null,1724]
[null,null,null,null,null,null,null,null,1725]
[null,null,null,null,null,null,null,null,1726]
[null,null,null,null,null,null,null,null,1727]
[null,null,null,null,null,null,null,null,1728]
[null,null,null,null,null,null,null,null,1729]
[null,null,null,null,null,null,null,null,1730]
[null,null,null,null,null,null,null,null,1731]
[null,null,null,null,null,null,null,null,1732]
[null,null,null,null,null,null,null,null,1733]
[null,null,null,null,null,null,null,null,1734]
[null,null,null,null,null,null,null,null,1735]
[null,null,null,null,null,null,null,null,1736]
[null,null,null,null,null,null,null,null,1737]
[null,null,null,null,null,null,null,null,1738]
[null,null,null,null,null,null,null,null,1739]
[null,null,null,null,null,null,null,null,1740]
[null,null,null,null,null,null,null,null,1741]
[null,null,null,null,null,null,null,null,1742]
[null,null,null,null,null,null,null,null,1743]
[null,null,null,null,null,null,null,null,1744]
[null,null,null,null,null,null,null,null,1745]
[null,null,null,null,null,null,null,null,1746]
[null,null,null,null,null,null,null,null,1747]
[null,null,null,null,null,null,null,null,1748]
[null,null,null,null,null,null,null,null,1749]
[null,null,null,null,null,null,null,null,1750]
[null,null,null,null,null,null,null,null,1751]
[null,null,null,null,null,null,null,null,1752]
[null,null,null,null,null,null,null,null,1753]
[null,null,null,null,null,null,null,null,1754]
[null,null,null,null,null,null,null,null,1755]
[null,null,null,null,null,null,null,null,1756]
[null,null,null,null,null,null,null,null,1757]
[null,null,null,null,null,null,null,null,1758]
[null,null,null,null,null,null,null,null,1759]
[null,null,null,null,null,null,null,null,1760]
[null,null,null,null,null,null,null,null,1761]
[null,null,null,null,null,null,null,null,1762]
[null,null,null,null,null,null,null,null,1763]
[null,null,null,null,null,null,null,null,1764]
[null,null,null,null,null,null,null,null,1765]
[null,null,null,null,null,null,null,null,1766]
[null,null,null,null,null,null,null,null,1767]
[null,null,null,null,null,null,null,null,1768]
[null,null,null,null,null,null,null,null,1769]
[null,null,null,null,null,null,null,null,1770]
[null,null,null,null,null,null,null,null,1771]
[null,null,null,null,null,null,null,null,1772]
[null,null,null,null,null,null,null,null,1773]
[null,null,null,null,null,null,null,null,1774]
[null,null,null,null,null,null,null,null,1775]
[null,null,null,null,null,null,null,null,1776]
[null,null,null,null,null,null,null,null,1777]
[null,null,null,null,null,null,null,null,1778]
[null,null,null,null,null,null,null,null,1779]
[null,null,null,null,null,null,null,null,1780]
[null,null,null,null,null,null,null,null,1781]
[null,null,null,null,null,null,null,null,1782]
[null,null,null,null,null,null,null,null,1783]
[null,null,null,null,null,null,null,null,1784]
[null,null,null,null,null,null,null,null,1785]
[null,null,null,null,null,null,null,null,1786]
[null,null,null,null,null,null,null,null,1787]
[null,null,null,null,null,null,null,null,1788]
[null,null,null,null,null,null,null,null,1789]
[null,null,null,null,null,null,null,null,1790]
[null,null,null,null,null,null,null,null,1791]
[null,null,null,null,null,null,null,null,1792]
[null,null,null,null,null,null,null,null,1793]
[null,null,null,null,null,null,null,null,1794]
[null,null,null,null,null,null,null,null,1795]
[null,null,null,null,null,null,null,null,1796]
[null,null,null,null,null,null,null,null,1797]
[null,null,null,null,null,null,null,null,1798]
[null,null,null,null,null,null,null,null,1799]
[null,null,null,null,null,null,null,null,1800]
[null,null,null,null,null,null,null,null,1801]
[null,null,null,null,null,null,null,null,1802]
[null,null,null,null,null,null,null,null,1803]
[null,null,null,null,null,null,null,null,1804]
[null,null,null,null,null,null,null,null,1805]
[null,null,null,null,null,null,null,null,1806]
[null,null,null,null,null,null,null,null,1807]
[null,null,null,null,null,null,null,null,1808]
[null,null,null,null,null,null,null,null,1809]
[null,null,null,null,null,null,null,null,1810]
[null,null,null,null,null,null,null,null,1811]
[null,null,null,null,null,null,null,null,1812]
[null,null,null,null,null,null,null,null,1813]
[null,null,null,null,null,null,null,null,1814]
[null,null,null,null,null,null,null,null,1815]
[null,null,null,null,null,null,null,null,1816]
[null,null,null,null,null,null,null,null,1817]
[null,null,null,null,null,null,null,null,1818]
[null,null,null,null,null,null,null,null,1819]
[null,null,null,null,null,null,null,null,1820]
[null,null,null,null,null,null,null,null,1821]
[null,null,null,null,null,null,null,null,1822]
[null,null,null,null,null,null,null,null,1823]
[null,null,null,null,null,null,null,null,1824]
[null,null,null,null,null,null,null,null,1825]
[null,null,null,null,null,null,null,null,1826]
[null,null,null,null,null,null,null,null,1827]
[null,null,null,null,null,null,null,null,1828]
[null,null,null,null,null,null,null,null,1829]
[null,null,null,null,null,null,null,null,1830]
[null,null,null,null,null,null,null,null,1831]
[null,null,null,null,null,null,null,null,1832]
[null,null,null,null,null,null,null,null,1833]
[null,null,null,null,null,null,null,null,1834]
[null,null,null,null,null,null,null,null,1835]
[null,null,null,null,null,null,null,null,1836]
[null,null,null,null,null,null,null,null,1837]
[null,null,null,null,null,null,null,null,1838]
[null,null,null,null,null,null,null,null,1839]
[null,null,null,null,null,null,null,null,1840]
[null,null,null,null,null,null,null,null,1841]
[null,null,null,null,null,null,null,null,1842]
[null,null,null,null,null,null,null,null,1843]
[null,null,null,null,null,null,null,null,1844]
[null,null,null,null,null,null,null,null,1845]
[null,null,null,null,null,null,null,null,1846]
[null,null,null,null,null,null,null,null,1847]
[null,null,null,null,null,null,null,null,1848]
[null,null,null,null,null,null,null,null,1849]
[null,null,null,null,null,null,null,null,1850]
[null,null,null,null,null,null,null,null,1851]
[null,null,null,null,null,null,null,null,1852]
[null,null,null,null,null,null,null,null,1853]
[null,null,null,null,null,null,null,null,1854]
[null,null,null,null,null,null,null,null,1855]
[null,null,null,null,null,null,null,null,1856]
[null,null,null,null,null,null,null,null,1857]
[null,null,null,null,null,null,null,null,1858]
[null,null,null,null,null,null,null,null,1859]
[null,null,null,null,null,null,null,null,1860]
[null,null,null,null,null,null,null,null,1861]
[null,null,null,null,null,null,null,null,1862]
[null,null,null,null,null,null,null,null,1863]
[null,null,null,null,null,null,null,null,1864]
[null,null,null,null,null,null,null,null,1865]
[null,null,null,null,null,null,null,null,1866]
[null,null,null,null,null,null,null,null,1867]
[null,null,null,null,null,null,null,null,1868]
[null,null,null,null,null,null,null,null,1869]
[null,null,null,null,null,null,null,null,1870]
[null,null,null,null,null,null,null,null,1871]
[null,null,null,null,null,null,null,null,1872]
[null,null,null,null,null,null,null,null,1873]
[null,null,null,null,null,null,null,null,1874]
[null,null,null,null,null,null,null,null,1875]
[null,null,null,null,null,null,null,null,1876]
[null,null,null,null,null,null,null,null,1877]
[null,null,null,null,null,null,null,null,1878]
[null,null,null,null,null,null,null,null,1879]
[null,null,null,null,null,null,null,null,1880]
[null,null,null,null,null,null,null,null,1881]
[null,null,null,null,null,null,null,null,1882]
[null,null,null,null,null,null,null,null,1883]
[null,null,null,null,null,null,null,null,1884]
[null,null,null,null,null,null,null,null,1885]
[null,null,null,null,null,null,null,null,1886]
[null,null,null,null,null,null,null,null,1887]
[null,null,null,null,null,null,null,null,1888]
[null,null,null,null,null,null,null,null,1889]
[null,null,null,null,null,null,null,null,1890]
[null,null,null,null,null,null,null,null,1891]
[null,null,null,null,null,null,null,null,1892]
[null,null,null,null,null,null,null,null,1893]
[null,null,null,null,null,null,null,null,1894]
[null,null,null,null,null,null,null,null,1895]
[null,null,null,null,null,null,null,null,1896]
[null,null,null,null,null,null,null,null,1897]
[null,null,null,null,null,null,null,null,1898]
[null,null,null,null,null,null,null,null,1899]
[null,null,null,null,null,null,null,null,1900]
[null,null,null,null,null,null,null,null,1901]
[null,null,null,null,null,null,null,null,1902]
[null,null,null,null,null,null,null,null,1903]
[null,null,null,null,null,null,null,null,1904]
[null,null,null,null,null,null,null,null,1905]
[null,null,null,null,null,null,null,null,1906]
[null,null,null,null,null,null,null,null,1907]
[null,null,null,null,null,null,null,null,1908]
[null,null,null,null,null,null,null,null,1909]
[null,null,null,null,null,null,null,null,1910]
[null,null,null,null,null,null,null,null,1911]
[null,null,null,null,null,null,null,null,1912]
[null,null,null,null,null,null,null,null,1913]
[null,null,null,null,null,null,null,null,1914]
[null,null,null,null,null,null,null,null,1915]
[null,null,null,null,null,null,null,null,1916]
[null,null,null,null,null,null,null,null,1917]
[null,null,null,null,null,null,null,null,1918]
[null,null,null,null,null,null,null,null,1919]
[null,null,null,null,null,null,null,null,1920]
[null,null,null,null,null,null,null,null,1921]
[null,null,null,null,null,null,null,null,1922]
[null,null,null,null,null,null,null,null,1923]
[null,null,null,null,null,null,null,null,1924]
[null,null,null,null,null,null,null,null,1925]
[null,null,null,null,null,null,null,null,1926]
[null,null,null,null,null,null,null,null,1927]
[null,null,null,null,null,null,null,null,1928]
[null,null,null,null,null,null,null,null,1929]
[null,null,null,null,null,null,null,null,1930]
[null,null,null,null,null,null,null,null,1931]
[null,null,null,null,null,null,null,null,1932]
[null,null,null,null,null,null,null,null,1933]
[null,null,null,null,null,null,null,null,1934]
[null,null,null,null,null,null,null,null,1935]
[null,null,null,null,null,null,null,null,1936]
[null,null,null,null,null,null,null,null,1937]
[null,null,null,null,null,null,null,null,1938]
[null,null,null,null,null,null,null,null,1939]
[null,null,null,null,null,null,null,null,1940]
[null,null,null,null,null,null,null,null,1941]
[null,null,null,null,null,null,null,null,1942]
[null,null,null,null,null,null,null,null,1943]
[null,null,null,null,null,null,null,null,1944]
[null,null,null,null,null,null,null,null,1945]
[null,null,null,null,null,null,null,null,1946]
[null,null,null,null,null,null,null,null,1947]
[null,null,null,null,null,null,null,null,1948]
[null,null,null,null,null,null,null,null,1949]
[null,null,null,null,null,null,null,null,1950]
[null,null,null,null,null,null,null,null,1951]
[null,null,null,null,null,null,null,null,1952]
[null,null,null,null,null,null,null,null,1953]
[null,null,null,null,null,null,null,null,1954]
[null,null,null,null,null,null,null,null,1955]
[null,null,null,null,null,null,null,null,1956]
[null,null,null,null,null,null,null,null,1957]
[null,null,null,null,null,null,null,null,1958]
[null,null,null,null,null,null,null,null,1959]
[null,null,null,null,null,null,null,null,1960]
[null,null,null,null,null,null,null,null,1961]
[null,null,null,null,null,null,null,null,1962]
[null,null,null,null,null,null,null,null,1963]
[null,null,null,null,null,null,null,null,1964]
[null,null,null,null,null,null,null,null,1965]
[null,null,null,null,null,null,null,null,1966]
[null,null,null,null,null,null,null,null,1967]
[null,null,null,null,null,null,null,null,1968]
[null,null,null,null,null,null,null,null,1969]
[null,null,null,null,null,null,null,null,1970]
[null,null,null,null,null,null,null,null,1971]
[null,null,null,null,null,null,null,null,1972]
[null,null,null,null,null,null,null,null,1973]
[null,null,null,null,null,null,null,null,1974]
[null,null,null,null,null,null,null,null,1975]
[null,null,null,null,null,null,null,null,1976]
[null,null,null,null,null,null,null,null,1977]
[null,null,null,null,null,null,null,null,1978]
[null,null,null,null,null,null,null,null,1979]
[null,null,null,null,null,null,null,null,1980]
[null,null,null,null,null,null,null,null,1981]
[null,null,null,null,null,null,null,null,1982]
[null,null,null,null,null,null,null,null,1983]
[null,null,null,null,null,null,null,null,1984]
[null,null,null,null,null,null,null,null,1985]
[null,null,null,null,null,null,null,null,1986]
[null,null,null,null,null,null,null,null,1987]
[null,null,null,null,null,null,null,null,1988]
[null,null,null,null,null,null,null,null,1989]
[null,null,null,null,null,null,null,null,1990]
[null,null,null,null,null,null,null,null,1991]
[null,null,null,null,null,null,null,null,1992]
[null,null,null,null,null,null,null,null,1993]
[null,null,null,null,null,null,null,null,1994]
[null,null,null,null,null,null,null,null,1995]
[null,null,null,null,null,null,null,null,1996]
[null,null,null,null,null,null,null,null,1997]
[null,null,null,null,null,null,null,null,1998]
[null,null,null,null,null,null,null,null,1999]
[null,null,null,null,null,null,null,null,2000]
[null,null,null,null,null,null,null,null,2001]
[null,null,null,null,null,null,null,null,2002]
[null,null,null,null,null,null,null,null,2003]
[null,null,null,null,null,null,null,null,2004]
[null,null,null,null,null,null,null,null,2005]
[null,null,null,null,null,null,null,null,2006]
[null,null,null,null,null,null,null,null,2007]
[null,null,null,null,null,null,null,null,2008]
[null,null,null,null,null,null,null,null,2009]
[null,null,null,null,null,null,null,null,2010]
[null,null,null,null,null,null,null,null,2011]
[null,null,null,null,null,null,null,null,2012]
[null,null,null,null,null,null,null,null,2013]
[null,null,null,null,null,null,null,null,2014]
[null,null,null,null,null,null,null,null,2015]
[null,null,null,null,null,null,null,null,2016]
[null,null,null,null,null,null,null,null,2017]
[null,null,null,null,null,null,null,null,2018]
[null,null,null,null,null,null,null,null,2019]
[null,null,null,null,null,null,null,null,2020]
[null,null,null,null,null,null,null,null,2021]
[null,null,null,null,null,null,null,null,2022]
[null,null,null,null,null,null,null,null,2023]
[null,null,null,null,null,null,null,null,2024]
[null,null,null,null,null,null,null,null,2025]
[null,null,null,null,null,null,null,null,2026]
[null,null,null,null,null,null,null,null,2027]
[null,null,null,null,null,null,null,null,2028]
[null,null,null,null,null,null,null,null,2029]
[null,null,null,null,null,null,null,null,2030]
[null,null,null,null,null,null,null,null,2031]
[null,null,null,null,null,null,null,null,2032]
[null,null,null,null,null,null,null,null,2033]
[null,null,null,null,null,null,null,null,2034]
[null,null,null,null,null,null,null,null,2035]
[null,null,null,null,null,null,null,null,2036]
[null,null,null,null,null,null,null,null,2037]
[null,null,null,null,null,null,null,null,2038]
[null,null,null,null,null,null,null,null,2039]
[null,null,null,null,null,null,null,null,2040]
[null,null,null,null,null,null,null,null,2041]
[null,null,null,null,null,null,null,null,2042]
[null,null,null,null,null,null,null,null,2043]
[null,null,null,null,null,null,null,null,2044]
[null,null,null,null,null,null,null,null,2045]
[null,null,null,null,null,null,null,null,2046]
[null,null,null,null,null,null,null,null,2047]
[null,null,null,null,null,null,null,null,2048]
[null,null,null,null,null,null,null,null,2049]
[null,null,null,null,null,null,null,null,2050]
[null,null,null,null,null,null,null,null,2051]
[null,null,null,null,null,null,null,null,2052]
[null,null,null,null,null,null,null,null,2053]
[null,null,null,null,null,null,null,null,2054]
[null,null,null,null,null,null,null,null,2055]
[null,null,null,null,null,null,null,null,2056]
[null,null,null,null,null,null,null,null,2057]
[null,null,null,null,null,null,null,null,2058]
[null,null,null,null,null,null,null,null,2059]
[null,null,null,null,null,null,null,null,2060]
[null,null,null,null,null,null,null,null,2061]
[null,null,null,null,null,null,null,null,2062]
[null,null,null,null,null,null,null,null,2063]
[null,null,null,null,null,null,null,null,2064]
[null,null,null,null,null,null,null,null,2065]
[null,null,null,null,null,null,null,null,2066]
[null,null,null,null,null,null,null,null,2067]
[null,null,null,null,null,null,null,null,2068]
[null,null,null,null,null,null,null,null,2069]
[null,null,null,null,null,null,null,null,2070]
[null,null,null,null,null,null,null,null,2071]
[null,null,null,null,null,null,null,null,2072]
[null,null,null,null,null,null,null,null,2073]
[null,null,null,null,null,null,null,null,2074]
[null,null,null,null,null,null,null,null,2075]
[null,null,null,null,null,null,null,null,2076]
[null,null,null,null,null,null,null,null,2077]
[null,null,null,null,null,null,null,null,2078]
[null,null,null,null,null,null,null,null,2079]
[null,null,null,null,null,null,null,null,2080]
[null,null,null,null,null,null,null,null,2081]
[null,null,null,null,null,null,null,null,2082]
[null,null,null,null,null,null,null,null,2083]
[null,null,null,null,null,null,null,null,2084]
[null,null,null,null,null,null,null,null,2085]
[null,null,null,null,null,null,null,null,2086]
[null,null,null,null,null,null,null,null,2087]
[null,null,null,null,null,null,null,null,2088]
[null,null,null,null,null,null,null,null,2089]
[null,null,null,null,null,null,null,null,2090]
[null,null,null,null,null,null,null,null,2091]
[null,null,null,null,null,null,null,null,2092]
[null,null,null,null,null,null,null,null,2093]
[null,null,null,null,null,null,null,null,2094]
[null,null,null,null,null,null,null,null,2095]
[null,null,null,null,null,null,null,null,2096]
[null,null,null,null,null,null,null,null,2097]
[null,null,null,null,null,null,null,null,2098]
[null,null,null,null,null,null,null,null,2099]
[null,null,null,null,null,null,null,null,2100]
[null,null,null,null,null,null,null,null,2101]
[null,null,null,null,null,null,null,null,2102]
[null,null,null,null,null,null,null,null,2103]
[null,null,null,null,null,null,null,null,2104]
[null,null,null,null,null,null,null,null,2105]
[null,null,null,null,null,null,null,null,2106]
[null,null,null,null,null,null,null,null,2107]
[null,null,null,null,null,null,null,null,2108]
[null,null,null,null,null,null,null,null,2109]
[null,null,null,null,null,null,null,null,2110]
[null,null,null,null,null,null,null,null,2111]
[null,null,null,null,null,null,null,null,2112]
[null,null,null,null,null,null,null,null,2113]
[null,null,null,null,null,null,null,null,2114]
[null,null,null,null,null,null,null,null,2115]
[null,null,null,null,null,null,null,null,2116]
[null,null,null,null,null,null,null,null,2117]
[null,null,null,null,null,null,null,null,2118]
[null,null,null,null,null,null,null,null,2119]
[null,null,null,null,null,null,null,null,2120]
[null,null,null,null,null,null,null,null,2121]
[null,null,null,null,null,null,null,null,2122]
[null,null,null,null,null,null,null,null,2123]
[null,null,null,null,null,null,null,null,2124]
[null,null,null,null,null,null,null,null,2125]
[null,null,null,null,null,null,null,null,2126]
[null,null,null,null,null,null,null,null,2127]
[null,null,null,null,null,null,null,null,2128]
[null,null,null,null,null,null,null,null,2129]
[null,null,null,null,null,null,null,null,2130]
[null,null,null,null,null,null,null,null,2131]
[null,null,null,null,null,null,null,null,2132]
[null,null,null,null,null,null,null,null,2133]
[null,null,null,null,null,null,null,null,2134]
[null,null,null,null,null,null,null,null,2135]
[null,null,null,null,null,null,null,null,2136]
[null,null,null,null,null,null,null,null,2137]
[null,null,null,null,null,null,null,null,2138]
[null,null,null,null,null,null,null,null,2139]
[null,null,null,null,null,null,null,null,2140]
[null,null,null,null,null,null,null,null,2141]
[null,null,null,null,null,null,null,null,2142]
[null,null,null,null,null,null,null,null,2143]
[null,null,null,null,null,null,null,null,2144]
[null,null,null,null,null,null,null,null,2145]
[null,null,null,null,null,null,null,null,2146]
[null,null,null,null,null,null,null,null,2147]
[null,null,null,null,null,null,null,null,2148]
[null,null,null,null,null,null,null,null,2149]
[null,null,null,null,null,null,null,null,2150]
[null,null,null,null,null,null,null,null,2151]
[null,null,null,null,null,null,null,null,2152]
[null,null,null,null,null,null,null,null,2153]
[null,null,null,null,null,null,null,null,2154]
[null,null,null,null,null,null,null,null,2155]
[null,null,null,null,null,null,null,null,2156]
[null,null,null,null,null,null,null,null,2157]
[null,null,null,null,null,null,null,null,2158]
[null,null,null,null,null,null,null,null,2159]
[null,null,null,null,null,null,null,null,2160]
[null,null,null,null,null,null,null,null,2161]
[null,null,null,null,null,null,null,null,2162]
[null,null,null,null,null,null,null,null,2163]
[null,null,null,null,null,null,null,null,2164]
[null,null,null,null,null,null,null,null,2165]
[null,null,null,null,null,null,null,null,2166]
[null,null,null,null,null,null,null,null,2167]
[null,null,null,null,null,null,null,null,2168]
[null,null,null,null,null,null,null,null,2169]
[null,null,null,null,null,null,null,null,2170]
[null,null,null,null,null,null,null,null,2171]
[null,null,null,null,null,null,null,null,2172]
[null,null,null,null,null,null,null,null,2173]
[null,null,null,null,null,null,null,null,2174]
[null,null,null,null,null,null,null,null,2175]
[null,null,null,null,null,null,null,null,2176]
[null,null,null,null,null,null,null,null,2177]
[null,null,null,null,null,null,null,null,2178]
[null,null,null,null,null,null,null,null,2179]
[null,null,null,null,null,null,null,null,2180]
[null,null,null,null,null,null,null,null,2181]
[null,null,null,null,null,null,null,null,2182]
[null,null,null,null,null,null,null,null,2183]
[null,null,null,null,null,null,null,null,2184]
[null,null,null,null,null,null,null,null,2185]
[null,null,null,null,null,null,null,null,2186]
[null,null,null,null,null,null,null,null,2187]
[null,null,null,null,null,null,null,null,2188]
[null,null,null,null,null,null,null,null,2189]
[null,null,null,null,null,null,null,null,2190]
[null,null,null,null,null,null,null,null,2191]
[null,null,null,null,null,null,null,null,2192]
[null,null,null,null,null,null,null,null,2193]
[null,null,null,null,null,null,null,null,2194]
[null,null,null,null,null,null,null,null,2195]
[null,null,null,null,null,null,null,null,2196]
[null,null,null,null,null,null,null,null,2197]
[null,null,null,null,null,null,null,null,2198]
[null,null,null,null,null,null,null,null,2199]
[null,null,null,null,null,null,null,null,2200]
[null,null,null,null,null,null,null,null,2201]
[null,null,null,null,null,null,null,null,2202]
[null,null,null,null,null,null,null,null,2203]
[null,null,null,null,null,null,null,null,2204]
[null,null,null,null,null,null,null,null,2205]
[null,null,null,null,null,null,null,null,2206]
[null,null,null,null,null,null,null,null,2207]
[null,null,null,null,null,null,null,null,2208]
[null,null,null,null,null,null,null,null,2209]
[null,null,null,null,null,null,null,null,2210]
[null,null,null,null,null,null,null,null,2211]
[null,null,null,null,null,null,null,null,2212]
[null,null,null,null,null,null,null,null,2213]
[null,null,null,null,null,null,null,null,2214]
[null,null,null,null,null,null,null,null,2215]
[null,null,null,null,null,null,null,null,2216]
[null,null,null,null,null,null,null,null,2217]
[null,null,null,null,null,null,null,null,2218]
[null,null,null,null,null,null,null,null,2219]
[null,null,null,null,null,null,null,null,2220]
[null,null,null,null,null,null,null,null,2221]
[null,null,null,null,null,null,null,null,2222]
[null,null,null,null,null,null,null,null,2223]
[null,null,null,null,null,null,null,null,2224]
[null,null,null,null,null,null,null,null,2225]
[null,null,null,null,null,null,null,null,2226]
[null,null,null,null,null,null,null,null,2227]
[null,null,null,null,null,null,null,null,2228]
[null,null,null,null,null,null,null,null,2229]
[null,null,null,null,null,null,null,null,2230]
[null,null,null,null,null,null,null,null,2231]
[null,null,null,null,null,null,null,null,2232]
[null,null,null,null,null,null,null,null,2233]
[null,null,null,null,null,null,null,null,2234]
[null,null,null,null,null,null,null,null,2235]
[null,null,null,null,null,null,null,null,2236]
[null,null,null,null,null,null,null,null,2237]
[null,null,null,null,null,null,null,null,2238]
[null,null,null,null,null,null,null,null,2239]
[null,null,null,null,null,null,null,null,2240]
[null,null,null,null,null,null,null,null,2241]
[null,null,null,null,null,null,null,null,2242]
[null,null,null,null,null,null,null,null,2243]
[null,null,null,null,null,null,null,null,2244]
[null,null,null,null,null,null,null,null,2245]
[null,null,null,null,null,null,null,null,2246]
[null,null,null,null,null,null,null,null,2247]
[null,null,null,null,null,null,null,null,2248]
[null,null,null,null,null,null,null,null,2249]
[null,null,null,null,null,null,null,null,2250]
[null,null,null,null,null,null,null,null,2251]
[null,null,null,null,null,null,null,null,2252]
[null,null,null,null,null,null,null,null,2253]
[null,null,null,null,null,null,null,null,2254]
[null,null,null,null,null,null,null,null,2255]
[null,null,null,null,null,null,null,null,2256]
[null,null,null,null,null,null,null,null,2257]
[null,null,null,null,null,null,null,null,2258]
[null,null,null,null,null,null,null,null,2259]
[null,null,null,null,null,null,null,null,2260]
[null,null,null,null,null,null,null,null,2261]
[null,null,null,null,null,null,null,null,2262]
[null,null,null,null,null,null,null,null,2263]
[null,null,null,null,null,null,null,null,2264]
[null,null,null,null,null,null,null,null,2265]
[null,null,null,null,null,null,null,null,2266]
[null,null,null,null,null,null,null,null,2267]
[null,null,null,null,null,null,null,null,2268]
[null,null,null,null,null,null,null,null,2269]
[null,null,null,null,null,null,null,null,2270]
[null,null,null,null,null,null,null,null,2271]
[null,null,null,null,null,null,null,null,2272]
[null,null,null,null,null,null,null,null,2273]
[null,null,null,null,null,null,null,null,2274]
[null,null,null,null,null,null,null,null,2275]
[null,null,null,null,null,null,null,null,2276]
[null,null,null,null,null,null,null,null,2277]
[null,null,null,null,null,null,null,null,2278]
[null,null,null,null,null,null,null,null,2279]
[null,null,null,null,null,null,null,null,2280]
[null,null,null,null,null,null,null,null,2281]
[null,null,null,null,null,null,null,null,2282]
[null,null,null,null,null,null,null,null,2283]
[null,null,null,null,null,null,null,null,2284]
[null,null,null,null,null,null,null,null,2285]
[null,null,null,null,null,null,null,null,2286]
[null,null,null,null,null,null,null,null,2287]
[null,null,null,null,null,null,null,null,2288]
[null,null,null,null,null,null,null,null,2289]
[null,null,null,null,null,null,null,null,2290]
[null,null,null,null,null,null,null,null,2291]
[null,null,null,null,null,null,null,null,2292]
[null,null,null,null,null,null,null,null,2293]
[null,null,null,null,null,null,null,null,2294]
[null,null,null,null,null,null,null,null,2295]
[null,null,null,null,null,null,null,null,2296]
[null,null,null,null,null,null,null,null,2297]
[null,null,null,null,null,null,null,null,2298]
[null,null,null,null,null,null,null,null,2299]
[null,null,null,null,null,null,null,null,2300]
[null,null,null,null,null,null,null,null,2301]
[null,null,null,null,null,null,null,null,2302]
[null,null,null,null,null,null,null,null,2303]
[null,null,null,null,null,null,null,null,2304]
[null,null,null,null,null,null,null,null,2305]
[null,null,null,null,null,null,null,null,2306]
[null,null,null,null,null,null,null,null,2307]
[null,null,null,null,null,null,null,null,2308]
[null,null,null,null,null,null,null,null,2309]
[null,null,null,null,null,null,null,null,2310]
[null,null,null,null,null,null,null,null,2311]
[null,null,null,null,null,null,null,null,2312]
[null,null,null,null,null,null,null,null,2313]
[null,null,null,null,null,null,null,null,2314]
[null,null,null,null,null,null,null,null,2315]
[null,null,null,null,null,null,null,null,2316]
[null,null,null,null,null,null,null,null,2317]
[null,null,null,null,null,null,null,null,2318]
[null,null,null,null,null,null,null,null,2319]
[null,null,null,null,null,null,null,null,2320]
[null,null,null,null,null,null,null,null,2321]
[null,null,null,null,null,null,null,null,2322]
[null,null,null,null,null,null,null,null,2323]
[null,null,null,null,null,null,null,null,2324]
[null,null,null,null,null,null,null,null,2325]
[null,null,null,null,null,null,null,null,2326]
[null,null,null,null,null,null,null,null,2327]
[null,null,null,null,null,null,null,null,2328]
[null,null,null,null,null,null,null,null,2329]
[null,null,null,null,null,null,null,null,2330]
[null,null,null,null,null,null,null,null,2331]
[null,null,null,null,null,null,null,null,2332]
[null,null,null,null,null,null,null,null,2333]
[null,null,null,null,null,null,null,null,2334]
[null,null,null,null,null,null,null,null,2335]
[null,null,null,null,null,null,null,null,2336]
[null,null,null,null,null,null,null,null,2337]
[null,null,null,null,null,null,null,null,2338]
[null,null,null,null,null,null,null,null,2339]
[null,null,null,null,null,null,null,null,2340]
[null,null,null,null,null,null,null,null,2341]
[null,null,null,null,null,null,null,null,2342]
[null,null,null,null,null,null,null,null,2343]
[null,null,null,null,null,null,null,null,2344]
[null,null,null,null,null,null,null,null,2345]
[null,null,null,null,null,null,null,null,2346]
[null,null,null,null,null,null,null,null,2347]
[null,null,null,null,null,null,null,null,2348]
[null,null,null,null,null,null,null,null,2349]
[null,null,null,null,null,null,null,null,2350]
[null,null,null,null,null,null,null,null,2351]
[null,null,null,null,null,null,null,null,2352]
[null,null,null,null,null,null,null,null,2353]
[null,null,null,null,null,null,null,null,2354]
[null,null,null,null,null,null,null,null,2355]
[null,null,null,null,null,null,null,null,2356]
[null,null,null,null,null,null,null,null,2357]
[null,null,null,null,null,null,null,null,2358]
[null,null,null,null,null,null,null,null,2359]
[null,null,null,null,null,null,null,null,2360]
[null,null,null,null,null,null,null,null,2361]
[null,null,null,null,null,null,null,null,2362]
[null,null,null,null,null,null,null,null,2363]
[null,null,null,null,null,null,null,null,2364]
[null,null,null,null,null,null,null,null,2365]
[null,null,null,null,null,null,null,null,2366]
[null,null,null,null,null,null,null,null,2367]
[null,null,null,null,null,null,null,null,2368]
[null,null,null,null,null,null,null,null,2369]
[null,null,null,null,null,null,null,null,2370]
[null,null,null,null,null,null,null,null,2371]
[null,null,null,null,null,null,null,null,2372]
[null,null,null,null,null,null,null,null,2373]
[null,null,null,null,null,null,null,null,2374]
[null,null,null,null,null,null,null,null,2375]
[null,null,null,null,null,null,null,null,2376]
[null,null,null,null,null,null,null,null,2377]
[null,null,null,null,null,null,null,null,2378]
[null,null,null,null,null,null,null,null,2379]
[null,null,null,null,null,null,null,null,2380]
[null,null,null,null,null,null,null,null,2381]
[null,null,null,null,null,null,null,null,2382]
[null,null,null,null,null,null,null,null,2383]
[null,null,null,null,null,null,null,null,2384]
[null,null,null,null,null,null,null,null,2385]
[null,null,null,null,null,null,null,null,2386]
[null,null,null,null,null,null,null,null,2387]
[null,null,null,null,null,null,null,null,2388]
[null,null,null,null,null,null,null,null,2389]
[null,null,null,null,null,null,null,null,2390]
[null,null,null,null,null,null,null,null,2391]
[null,null,null,null,null,null,null,null,2392]
[null,null,null,null,null,null,null,null,2393]
[null,null,null,null,null,null,null,null,2394]
[null,null,null,null,null,null,null,null,2395]
[null,null,null,null,null,null,null,null,2396]
[null,null,null,null,null,null,null,null,2397]
[null,null,null,null,null,null,null,null,2398]
[null,null,null,null,null,null,null,null,2399]
[null,null,null,null,null,null,null,null,2400]
[null,null,null,null,null,null,null,null,2401]
[null,null,null,null,null,null,null,null,2402]
[null,null,null,null,null,null,null,null,2403]
[null,null,null,null,null,null,null,null,2404]
[null,null,null,null,null,null,null,null,2405]
[null,null,null,null,null,null,null,null,2406]
[null,null,null,null,null,null,null,null,2407]
[null,null,null,null,null,null,null,null,2408]
[null,null,null,null,null,null,null,null,2409]
[null,null,null,null,null,null,null,null,2410]
[null,null,null,null,null,null,null,null,2411]
[null,null,null,null,null,null,null,null,2412]
[null,null,null,null,null,null,null,null,2413]
[null,null,null,null,null,null,null,null,2414]
[null,null,null,null,null,null,null,null,2415]
[null,null,null,null,null,null,null,null,2416]
[null,null,null,null,null,null,null,null,2417]
[null,null,null,null,null,null,null,null,2418]
[null,null,null,null,null,null,null,null,2419]
[null,null,null,null,null,null,null,null,2420]
[null,null,null,null,null,null,null,null,2421]
[null,null,null,null,null,null,null,null,2422]
[null,null,null,null,null,null,null,null,2423]
[null,null,null,null,null,null,null,null,2424]
[null,null,null,null,null,null,null,null,2425]
[null,null,null,null,null,null,null,null,2426]
[null,null,null,null,null,null,null,null,2427]
[null,null,null,null,null,null,null,null,2428]
[null,null,null,null,null,null,null,null,2429]
[null,null,null,null,null,null,null,null,2430]
[null,null,null,null,null,null,null,null,2431]
[null,null,null,null,null,null,null,null,2432]
[null,null,null,null,null,null,null,null,2433]
[null,null,null,null,null,null,null,null,2434]
[null,null,null,null,null,null,null,null,2435]
[null,null,null,null,null,null,null,null,2436]
[null,null,null,null,null,null,null,null,2437]
[null,null,null,null,null,null,null,null,2438]
[null,null,null,null,null,null,null,null,2439]
[null,null,null,null,null,null,null,null,2440]
[null,null,null,null,null,null,null,null,2441]
[null,null,null,null,null,null,null,null,2442]
[null,null,null,null,null,null,null,null,2443]
[null,null,null,null,null,null,null,null,2444]
[null,null,null,null,null,null,null,null,2445]
[null,null,null,null,null,null,null,null,2446]
[null,null,null,null,null,null,null,null,2447]
[null,null,null,null,null,null,null,null,2448]
[null,null,null,null,null,null,null,null,2449]
[null,null,null,null,null,null,null,null,2450]
[null,null,null,null,null,null,null,null,2451]
[null,null,null,null,null,null,null,null,2452]
[null,null,null,null,null,null,null,null,2453]
[null,null,null,null,null,null,null,null,2454]
[null,null,null,null,null,null,null,null,2455]
[null,null,null,null,null,null,null,null,2456]
[null,null,null,null,null,null,null,null,2457]
[null,null,null,null,null,null,null,null,2458]
[null,null,null,null,null,null,null,null,2459]
[null,null,null,null,null,null,null,null,2460]
[null,null,null,null,null,null,null,null,2461]
[null,null,null,null,null,null,null,null,2462]
[null,null,null,null,null,null,null,null,2463]
[null,null,null,null,null,null,null,null,2464]
[null,null,null,null,null,null,null,null,2465]
[null,null,null,null,null,null,null,null,2466]
[null,null,null,null,null,null,null,null,2467]
[null,null,null,null,null,null,null,null,2468]
[null,null,null,null,null,null,null,null,2469]
[null,null,null,null,null,null,null,null,2470]
[null,null,null,null,null,null,null,null,2471]
[null,null,null,null,null,null,null,null,2472]
[null,null,null,null,null,null,null,null,2473]
[null,null,null,null,null,null,null,null,2474]
[null,null,null,null,null,null,null,null,2475]
[null,null,null,null,null,null,null,null,2476]
[null,null,null,null,null,null,null,null,2477]
[null,null,null,null,null,null,null,null,2478]
[null,null,null,null,null,null,null,null,2479]
[null,null,null,null,null,null,null,null,2480]
[null,null,null,null,null,null,null,null,2481]
[null,null,null,null,null,null,null,null,2482]
[null,null,null,null,null,null,null,null,2483]
[null,null,null,null,null,null,null,null,2484]
[null,null,null,null,null,null,null,null,2485]
[null,null,null,null,null,null,null,null,2486]
[null,null,null,null,null,null,null,null,2487]
[null,null,null,null,null,null,null,null,2488]
[null,null,null,null,null,null,null,null,2489]
[null,null,null,null,null,null,null,null,2490]
[null,null,null,null,null,null,null,null,2491]
[null,null,null,null,null,null,null,null,2492]
[null,null,null,null,null,null,null,null,2493]
[null,null,null,null,null,null,null,null,2494]
[null,null,null,null,null,null,null,null,2495]
[null,null,null,null,null,null,null,null,2496]
[null,null,null,null,null,null,null,null,2497]
[null,null,null,null,null,null,null,null,2498]
[null,null,null,null,null,null,null,null,2499]
[null,null,null,null,null,null,null,null,2500]
[null,null,null,null,null,null,null,null,2501]
[null,null,null,null,null,null,null,null,2502]
[null,null,null,null,null,null,null,null,2503]
[null,null,null,null,null,null,null,null,2504]
[null,null,null,null,null,null,null,null,2505]
[null,null,null,null,null,null,null,null,2506]
[null,null,null,null,null,null,null,null,2507]
[null,null,null,null,null,null,null,null,2508]
[null,null,null,null,null,null,null,null,2509]
[null,null,null,null,null,null,null,null,2510]
[null,null,null,null,null,null,null,null,2511]
[null,null,null,null,null,null,null,null,2512]
[null,null,null,null,null,null,null,null,2513]
[null,null,null,null,null,null,null,null,2514]
[null,null,null,null,null,null,null,null,2515]
[null,null,null,null,null,null,null,null,2516]
[null,null,null,null,null,null,null,null,2517]
[null,null,null,null,null,null,null,null,2518]
[null,null,null,null,null,null,null,null,2519]
[null,null,null,null,null,null,null,null,2520]
[null,null,null,null,null,null,null,null,2521]
[null,null,null,null,null,null,null,null,2522]
[null,null,null,null,null,null,null,null,2523]
[null,null,null,null,null,null,null,null,2524]
[null,null,null,null,null,null,null,null,2525]
[null,null,null,null,null,null,null,null,2526]
[null,null,null,null,null,null,null,null,2527]
[null,null,null,null,null,null,null,null,2528]
[null,null,null,null,null,null,null,null,2529]
[null,null,null,null,null,null,null,null,2530]
[null,null,null,null,null,null,null,null,2531]
[null,null,null,null,null,null,null,null,2532]
[null,null,null,null,null,null,null,null,2533]
[null,null,null,null,null,null,null,null,2534]
[null,null,null,null,null,null,null,null,2535]
[null,null,null,null,null,null,null,null,2536]
[null,null,null,null,null,null,null,null,2537]
[null,null,null,null,null,null,null,null,2538]
[null,null,null,null,null,null,null,null,2539]
[null,null,null,null,null,null,null,null,2540]
[null,null,null,null,null,null,null,null,2541]
[null,null,null,null,null,null,null,null,2542]
[null,null,null,null,null,null,null,null,2543]
[null,null,null,null,null,null,null,null,2544]
[null,null,null,null,null,null,null,null,2545]
[null,null,null,null,null,null,null,null,2546]
[null,null,null,null,null,null,null,null,2547]
[null,null,null,null,null,null,null,null,2548]
[null,null,null,null,null,null,null,null,2549]
[null,null,null,null,null,null,null,null,2550]
[null,null,null,null,null,null,null,null,2551]
[null,null,null,null,null,null,null,null,2552]
[null,null,null,null,null,null,null,null,2553]
[null,null,null,null,null,null,null,null,2554]
[null,null,null,null,null,null,null,null,2555]
[null,null,null,null,null,null,null,null,2556]
[null,null,null,null,null,null,null,null,2557]
[null,null,null,null,null,null,null,null,2558]
[null,null,null,null,null,null,null,null,2559]
[null,null,null,null,null,null,null,null,2560]
[null,null,null,null,null,null,null,null,2561]
[null,null,null,null,null,null,null,null,2562]
[null,null,null,null,null,null,null,null,2563]
[null,null,null,null,null,null,null,null,2564]
[null,null,null,null,null,null,null,null,2565]
[null,null,null,null,null,null,null,null,2566]
[null,null,null,null,null,null,null,null,2567]
[null,null,null,null,null,null,null,null,2568]
[null,null,null,null,null,null,null,null,2569]
[null,null,null,null,null,null,null,null,2570]
[null,null,null,null,null,null,null,null,2571]
[null,null,null,null,null,null,null,null,2572]
[null,null,null,null,null,null,null,null,2573]
[null,null,null,null,null,null,null,null,2574]
[null,null,null,null,null,null,null,null,2575]
[null,null,null,null,null,null,null,null,2576]
[null,null,null,null,null,null,null,null,2577]
[null,null,null,null,null,null,null,null,2578]
[null,null,null,null,null,null,null,null,2579]
[null,null,null,null,null,null,null,null,2580]
[null,null,null,null,null,null,null,null,2581]
[null,null,null,null,null,null,null,null,2582]
[null,null,null,null,null,null,null,null,2583]
[null,null,null,null,null,null,null,null,2584]
[null,null,null,null,null,null,null,null,2585]
[null,null,null,null,null,null,null,null,2586]
[null,null,null,null,null,null,null,null,2587]
[null,null,null,null,null,null,null,null,2588]
[null,null,null,null,null,null,null,null,2589]
[null,null,null,null,null,null,null,null,2590]
[null,null,null,null,null,null,null,null,2591]
[null,null,null,null,null,null,null,null,2592]
[null,null,null,null,null,null,null,null,2593]
[null,null,null,null,null,null,null,null,2594]
[null,null,null,null,null,null,null,null,2595]
[null,null,null,null,null,null,null,null,2596]
[null,null,null,null,null,null,null,null,2597]
[null,null,null,null,null,null,null,null,2598]
[null,null,null,null,null,null,null,null,2599]
[null,null,null,null,null,null,null,null,2600]
[null,null,null,null,null,null,null,null,2601]
[null,null,null,null,null,null,null,null,2602]
[null,null,null,null,null,null,null,null,2603]
[null,null,null,null,null,null,null,null,2604]
[null,null,null,null,null,null,null,null,2605]
[null,null,null,null,null,null,null,null,2606]
[null,null,null,null,null,null,null,null,2607]
[null,null,null,null,null,null,null,null,2608]
[null,null,null,null,null,null,null,null,2609]
[null,null,null,null,null,null,null,null,2610]
[null,null,null,null,null,null,null,null,2611]
[null,null,null,null,null,null,null,null,2612]
[null,null,null,null,null,null,null,null,2613]
[null,null,null,null,null,null,null,null,2614]
[null,null,null,null,null,null,null,null,2615]
[null,null,null,null,null,null,null,null,2616]
[null,null,null,null,null,null,null,null,2617]
[null,null,null,null,null,null,null,null,2618]
[null,null,null,null,null,null,null,null,2619]
[null,null,null,null,null,null,null,null,2620]
[null,null,null,null,null,null,null,null,2621]
[null,null,null,null,null,null,null,null,2622]
[null,null,null,null,null,null,null,null,2623]
[null,null,null,null,null,null,null,null,2624]
[null,null,null,null,null,null,null,null,2625]
[null,null,null,null,null,null,null,null,2626]
[null,null,null,null,null,null,null,null,2627]
[null,null,null,null,null,null,null,null,2628]
[null,null,null,null,null,null,null,null,2629]
[null,null,null,null,null,null,null,null,2630]
[null,null,null,null,null,null,null,null,2631]
[null,null,null,null,null,null,null,null,2632]
[null,null,null,null,null,null,null,null,2633]
[null,null,null,null,null,null,null,null,2634]
[null,null,null,null,null,null,null,null,2635]
[null,null,null,null,null,null,null,null,2636]
[null,null,null,null,null,null,null,null,2637]
[null,null,null,null,null,null,null,null,2638]
[null,null,null,null,null,null,null,null,2639]
[null,null,null,null,null,null,null,null,2640]
[null,null,null,null,null,null,null,null,2641]
[null,null,null,null,null,null,null,null,2642]
[null,null,null,null,null,null,null,null,2643]
[null,null,null,null,null,null,null,null,2644]
[null,null,null,null,null,null,null,null,2645]
[null,null,null,null,null,null,null,null,2646]
[null,null,null,null,null,null,null,null,2647]
[null,null,null,null,null,null,null,null,2648]
[null,null,null,null,null,null,null,null,2649]
[null,null,null,null,null,null,null,null,2650]
[null,null,null,null,null,null,null,null,2651]
[null,null,null,null,null,null,null,null,2652]
[null,null,null,null,null,null,null,null,2653]
[null,null,null,null,null,null,null,null,2654]
[null,null,null,null,null,null,null,null,2655]
[null,null,null,null,null,null,null,null,2656]
[null,null,null,null,null,null,null,null,2657]
[null,null,null,null,null,null,null,null,2658]
[null,null,null,null,null,null,null,null,2659]
[null,null,null,null,null,null,null,null,2660]
[null,null,null,null,null,null,null,null,2661]
[null,null,null,null,null,null,null,null,2662]
[null,null,null,null,null,null,null,null,2663]
[null,null,null,null,null,null,null,null,2664]
[null,null,null,null,null,null,null,null,2665]
[null,null,null,null,null,null,null,null,2666]
[null,null,null,null,null,null,null,null,2667]
[null,null,null,null,null,null,null,null,2668]
[null,null,null,null,null,null,null,null,2669]
[null,null,null,null,null,null,null,null,2670]
[null,null,null,null,null,null,null,null,2671]
[null,null,null,null,null,null,null,null,2672]
[null,null,null,null,null,null,null,null,2673]
[null,null,null,null,null,null,null,null,2674]
[null,null,null,null,null,null,null,null,2675]
[null,null,null,null,null,null,null,null,2676]
[null,null,null,null,null,null,null,null,2677]
[null,null,null,null,null,null,null,null,2678]
[null,null,null,null,null,null,null,null,2679]
[null,null,null,null,null,null,null,null,2680]
[null,null,null,null,null,null,null,null,2681]
[null,null,null,null,null,null,null,null,2682]
[null,null,null,null,null,null,null,null,2683]
[null,null,null,null,null,null,null,null,2684]
[null,null,null,null,null,null,null,null,2685]
[null,null,null,null,null,null,null,null,2686]
[null,null,null,null,null,null,null,null,2687]
[null,null,null,null,null,null,null,null,2688]
[null,null,null,null,null,null,null,null,2689]
[null,null,null,null,null,null,null,null,2690]
[null,null,null,null,null,null,null,null,2691]
[null,null,null,null,null,null,null,null,2692]
[null,null,null,null,null,null,null,null,2693]
[null,null,null,null,null,null,null,null,2694]
[null,null,null,null,null,null,null,null,2695]
[null,null,null,null,null,null,null,null,2696]
[null,null,null,null,null,null,null,null,2697]
[null,null,null,null,null,null,null,null,2698]
[null,null,null,null,null,null,null,null,2699]
[null,null,null,null,null,null,null,null,2700]
[null,null,null,null,null,null,null,null,2701]
[null,null,null,null,null,null,null,null,2702]
[null,null,null,null,null,null,null,null,2703]
[null,null,null,null,null,null,null,null,2704]
[null,null,null,null,null,null,null,null,2705]
[null,null,null,null,null,null,null,null,2706]
[null,null,null,null,null,null,null,null,2707]
[null,null,null,null,null,null,null,null,2708]
[null,null,null,null,null,null,null,null,2709]
[null,null,null,null,null,null,null,null,2710]
[null,null,null,null,null,null,null,null,2711]
[null,null,null,null,null,null,null,null,2712]
[null,null,null,null,null,null,null,null,2713]
[null,null,null,null,null,null,null,null,2714]
[null,null,null,null,null,null,null,null,2715]
[null,null,null,null,null,null,null,null,2716]
[null,null,null,null,null,null,null,null,2717]
[null,null,null,null,null,null,null,null,2718]
[null,null,null,null,null,null,null,null,2719]
[null,null,null,null,null,null,null,null,2720]
[null,null,null,null,null,null,null,null,2721]
[null,null,null,null,null,null,null,null,2722]
[null,null,null,null,null,null,null,null,2723]
[null,null,null,null,null,null,null,null,2724]
[null,null,null,null,null,null,null,null,2725]
[null,null,null,null,null,null,null,null,2726]
[null,null,null,null,null,null,null,null,2727]
[null,null,null,null,null,null,null,null,2728]
[null,null,null,null,null,null,null,null,2729]
[null,null,null,null,null,null,null,null,2730]
[null,null,null,null,null,null,null,null,2731]
[null,null,null,null,null,null,null,null,2732]
[null,null,null,null,null,null,null,null,2733]
[null,null,null,null,null,null,null,null,2734]
[null,null,null,null,null,null,null,null,2735]
[null,null,null,null,null,null,null,null,2736]
[null,null,null,null,null,null,null,null,2737]
[null,null,null,null,null,null,null,null,2738]
[null,null,null,null,null,null,null,null,2739]
[null,null,null,null,null,null,null,null,2740]
[null,null,null,null,null,null,null,null,2741]
[null,null,null,null,null,null,null,null,2742]
[null,null,null,null,null,null,null,null,2743]
[null,null,null,null,null,null,null,null,2744]
[null,null,null,null,null,null,null,null,2745]
[null,null,null,null,null,null,null,null,2746]
[null,null,null,null,null,null,null,null,2747]
[null,null,null,null,null,null,null,null,2748]
[null,null,null,null,null,null,null,null,2749]
[null,null,null,null,null,null,null,null,2750]
[null,null,null,null,null,null,null,null,2751]
[null,null,null,null,null,null,null,null,2752]
[null,null,null,null,null,null,null,null,2753]
[null,null,null,null,null,null,null,null,2754]
[null,null,null,null,null,null,null,null,2755]
[null,null,null,null,null,null,null,null,2756]
[null,null,null,null,null,null,null,null,2757]
[null,null,null,null,null,null,null,null,2758]
[null,null,null,null,null,null,null,null,2759]
[null,null,null,null,null,null,null,null,2760]
[null,null,null,null,null,null,null,null,2761]
[null,null,null,null,null,null,null,null,2762]
[null,null,null,null,null,null,null,null,2763]
[null,null,null,null,null,null,null,null,2764]
[null,null,null,null,null,null,null,null,2765]
[null,null,null,null,null,null,null,null,2766]
[null,null,null,null,null,null,null,null,2767]
[null,null,null,null,null,null,null,null,2768]
[null,null,null,null,null,null,null,null,2769]
[null,null,null,null,null,null,null,null,2770]
[null,null,null,null,null,null,null,null,2771]
[null,null,null,null,null,null,null,null,2772]
[null,null,null,null,null,null,null,null,2773]
[null,null,null,null,null,null,null,null,2774]
[null,null,null,null,null,null,null,null,2775]
[null,null,null,null,null,null,null,null,2776]
[null,null,null,null,null,null,null,null,2777]
[null,null,null,null,null,null,null,null,2778]
[null,null,null,null,null,null,null,null,2779]
[null,null,null,null,null,null,null,null,2780]
[null,null,null,null,null,null,null,null,2781]
[null,null,null,null,null,null,null,null,2782]
[null,null,null,null,null,null,null,null,2783]
[null,null,null,null,null,null,null,null,2784]
[null,null,null,null,null,null,null,null,2785]
[null,null,null,null,null,null,null,null,2786]
[null,null,null,null,null,null,null,null,2787]
[null,null,null,null,null,null,null,null,2788]
[null,null,null,null,null,null,null,null,2789]
[null,null,null,null,null,null,null,null,2790]
[null,null,null,null,null,null,null,null,2791]
[null,null,null,null,null,null,null,null,2792]
[null,null,null,null,null,null,null,null,2793]
[null,null,null,null,null,null,null,null,2794]
[null,null,null,null,null,null,null,null,2795]
[null,null,null,null,null,null,null,null,2796]
[null,null,null,null,null,null,null,null,2797]
[null,null,null,null,null,null,null,null,2798]
[null,null,null,null,null,null,null,null,2799]
[null,null,null,null,null,null,null,null,2800]
[null,null,null,null,null,null,null,null,2801]
[null,null,null,null,null,null,null,null,2802]
[null,null,null,null,null,null,null,null,2803]
[null,null,null,null,null,null,null,null,2804]
[null,null,null,null,null,null,null,null,2805]
[null,null,null,null,null,null,null,null,2806]
[null,null,null,null,null,null,null,null,2807]
[null,null,null,null,null,null,null,null,2808]
[null,null,null,null,null,null,null,null,2809]
[null,null,null,null,null,null,null,null,2810]
[null,null,null,null,null,null,null,null,2811]
[null,null,null,null,null,null,null,null,2812]
[null,null,null,null,null,null,null,null,2813]
[null,null,null,null,null,null,null,null,2814]
[null,null,null,null,null,null,null,null,2815]
[null,null,null,null,null,null,null,null,2816]
[null,null,null,null,null,null,null,null,2817]
[null,null,null,null,null,null,null,null,2818]
[null,null,null,null,null,null,null,null,2819]
[null,null,null,null,null,null,null,null,2820]
[null,null,null,null,null,null,null,null,2821]
[null,null,null,null,null,null,null,null,2822]
[null,null,null,null,null,null,null,null,2823]
[null,null,null,null,null,null,null,null,2824]
[null,null,null,null,null,null,null,null,2825]
[null,null,null,null,null,null,null,null,2826]
[null,null,null,null,null,null,null,null,2827]
[null,null,null,null,null,null,null,null,2828]
[null,null,null,null,null,null,null,null,2829]
[null,null,null,null,null,null,null,null,2830]
[null,null,null,null,null,null,null,null,2831]
[null,null,null,null,null,null,null,null,2832]
[null,null,null,null,null,null,null,null,2833]
[null,null,null,null,null,null,null,null,2834]
[null,null,null,null,null,null,null,null,2835]
[null,null,null,null,null,null,null,null,2836]
[null,null,null,null,null,null,null,null,2837]
[null,null,null,null,null,null,null,null,2838]
[null,null,null,null,null,null,null,null,2839]
[null,null,null,null,null,null,null,null,2840]
[null,null,null,null,null,null,null,null,2841]
[null,null,null,null,null,null,null,null,2842]
[null,null,null,null,null,null,null,null,2843]
[null,null,null,null,null,null,null,null,2844]
[null,null,null,null,null,null,null,null,2845]
[null,null,null,null,null,null,null,null,2846]
[null,null,null,null,null,null,null,null,2847]
[null,null,null,null,null,null,null,null,2848]
[null,null,null,null,null,null,null,null,2849]
[null,null,null,null,null,null,null,null,2850]
[null,null,null,null,null,null,null,null,2851]
[null,null,null,null,null,null,null,null,2852]
[null,null,null,null,null,null,null,null,2853]
[null,null,null,null,null,null,null,null,2854]
[null,null,null,null,null,null,null,null,2855]
[null,null,null,null,null,null,null,null,2856]
[null,null,null,null,null,null,null,null,2857]
[null,null,null,null,null,null,null,null,2858]
[null,null,null,null,null,null,null,null,2859]
[null,null,null,null,null,null,null,null,2860]
[null,null,null,null,null,null,null,null,2861]
[null,null,null,null,null,null,null,null,2862]
[null,null,null,null,null,null,null,null,2863]
[null,null,null,null,null,null,null,null,2864]
[null,null,null,null,null,null,null,null,2865]
[null,null,null,null,null,null,null,null,2866]
[null,null,null,null,null,null,null,null,2867]
[null,null,null,null,null,null,null,null,2868]
[null,null,null,null,null,null,null,null,2869]
[null,null,null,null,null,null,null,null,2870]
[null,null,null,null,null,null,null,null,2871]
[null,null,null,null,null,null,null,null,2872]
[null,null,null,null,null,null,null,null,2873]
[null,null,null,null,null,null,null,null,2874]
[null,null,null,null,null,null,null,null,2875]
[null,null,null,null,null,null,null,null,2876]
[null,null,null,null,null,null,null,null,2877]
[null,null,null,null,null,null,null,null,2878]
[null,null,null,null,null,null,null,null,2879]
[null,null,null,null,null,null,null,null,2880]
[null,null,null,null,null,null,null,null,2881]
[null,null,null,null,null,null,null,null,2882]
[null,null,null,null,null,null,null,null,2883]
[null,null,null,null,null,null,null,null,2884]
[null,null,null,null,null,null,null,null,2885]
[null,null,null,null,null,null,null,null,2886]
[null,null,null,null,null,null,null,null,2887]
[null,null,null,null,null,null,null,null,2888]
[null,null,null,null,null,null,null,null,2889]
[null,null,null,null,null,null,null,null,2890]
[null,null,null,null,null,null,null,null,2891]
[null,null,null,null,null,null,null,null,2892]
[null,null,null,null,null,null,null,null,2893]
[null,null,null,null,null,null,null,null,2894]
[null,null,null,null,null,null,null,null,2895]
[null,null,null,null,null,null,null,null,2896]
[null,null,null,null,null,null,null,null,2897]
[null,null,null,null,null,null,null,null,2898]
[null,null,null,null,null,null,null,null,2899]
[null,null,null,null,null,null,null,null,2900]
[null,null,null,null,null,null,null,null,2901]
[null,null,null,null,null,null,null,null,2902]
[null,null,null,null,null,null,null,null,2903]
[null,null,null,null,null,null,null,null,2904]
[null,null,null,null,null,null,null,null,2905]
[null,null,null,null,null,null,null,null,2906]
[null,null,null,null,null,null,null,null,2907]
[null,null,null,null,null,null,null,null,2908]
[null,null,null,null,null,null,null,null,2909]
[null,null,null,null,null,null,null,null,2910]
[null,null,null,null,null,null,null,null,2911]
[null,null,null,null,null,null,null,null,2912]
[null,null,null,null,null,null,null,null,2913]
[null,null,null,null,null,null,null,null,2914]
[null,null,null,null,null,null,null,null,2915]
[null,null,null,null,null,null,null,null,2916]
[null,null,null,null,null,null,null,null,2917]
[null,null,null,null,null,null,null,null,2918]
[null,null,null,null,null,null,null,null,2919]
[null,null,null,null,null,null,null,null,2920]
[null,null,null,null,null,null,null,null,2921]
[null,null,null,null,null,null,null,null,2922]
[null,null,null,null,null,null,null,null,2923]
[null,null,null,null,null,null,null,null,2924]
[null,null,null,null,null,null,null,null,2925]
[null,null,null,null,null,null,null,null,2926]
[null,null,null,null,null,null,null,null,2927]
[null,null,null,null,null,null,null,null,2928]
[null,null,null,null,null,null,null,null,2929]
[null,null,null,null,null,null,null,null,2930]
[null,null,null,null,null,null,null,null,2931]
[null,null,null,null,null,null,null,null,2932]
[null,null,null,null,null,null,null,null,2933]
[null,null,null,null,null,null,null,null,2934]
[null,null,null,null,null,null,null,null,2935]
[null,null,null,null,null,null,null,null,2936]
[null,null,null,null,null,null,null,null,2937]
[null,null,null,null,null,null,null,null,2938]
[null,null,null,null,null,null,null,null,2939]
[null,null,null,null,null,null,null,null,2940]
[null,null,null,null,null,null,null,null,2941]
[null,null,null,null,null,null,null,null,2942]
[null,null,null,null,null,null,null,null,2943]
[null,null,null,null,null,null,null,null,2944]
[null,null,null,null,null,null,null,null,2945]
[null,null,null,null,null,null,null,null,2946]
[null,null,null,null,null,null,null,null,2947]
[null,null,null,null,null,null,null,null,2948]
[null,null,null,null,null,null,null,null,2949]
[null,null,null,null,null,null,null,null,2950]
[null,null,null,null,null,null,null,null,2951]
[null,null,null,null,null,null,null,null,2952]
[null,null,null,null,null,null,null,null,2953]
[null,null,null,null,null,null,null,null,2954]
[null,null,null,null,null,null,null,null,2955]
[null,null,null,null,null,null,null,null,2956]
[null,null,null,null,null,null,null,null,2957]
[null,null,null,null,null,null,null,null,2958]
[null,null,null,null,null,null,null,null,2959]
[null,null,null,null,null,null,null,null,2960]
[null,null,null,null,null,null,null,null,2961]
[null,null,null,null,null,null,null,null,2962]
[null,null,null,null,null,null,null,null,2963]
[null,null,null,null,null,null,null,null,2964]
[null,null,null,null,null,null,null,null,2965]
[null,null,null,null,null,null,null,null,2966]
[null,null,null,null,null,null,null,null,2967]
[null,null,null,null,null,null,null,null,2968]
[null,null,null,null,null,null,null,null,2969]
[null,null,null,null,null,null,null,null,2970]
[null,null,null,null,null,null,null,null,2971]
[null,null,null,null,null,null,null,null,2972]
[null,null,null,null,null,null,null,null,2973]
[null,null,null,null,null,null,null,null,2974]
[null,null,null,null,null,null,null,null,2975]
[null,null,null,null,null,null,null,null,2976]
[null,null,null,null,null,null,null,null,2977]
[null,null,null,null,null,null,null,null,2978]
[null,null,null,null,null,null,null,null,2979]
[null,null,null,null,null,null,null,null,2980]
[null,null,null,null,null,null,null,null,2981]
[null,null,null,null,null,null,null,null,2982]
[null,null,null,null,null,null,null,null,2983]
[null,null,null,null,null,null,null,null,2984]
[null,null,null,null,null,null,null,null,2985]
[null,null,null,null,null,null,null,null,2986]
[null,null,null,null,null,null,null,null,2987]
[null,null,null,null,null,null,null,null,2988]
[null,null,null,null,null,null,null,null,2989]
[null,null,null,null,null,null,null,null,2990]
[null,null,null,null,null,null,null,null,2991]
[null,null,null,null,null,null,null,null,2992]
[null,null,null,null,null,null,null,null,2993]
[null,null,null,null,null,null,null,null,2994]
[null,null,null,null,null,null,null,null,2995]
[null,null,null,null,null,null,null,null,2996]
[null,null,null,null,null,null,null,null,2997]
[null,null,null,null,null,null,null,null,2998]
[null,null,null,null,null,null,null,null,2999]
[null,null,null,null,null,null,null,null,3000]

{"sheet":"Documentació","index":6,"n_rows":133,"n_cols":21,"rows_kept":133,"cut":false,"hidden":false,"merged":[[46,7,47,8],[44,5,45,6],[42,3,43,4],[42,5,43,6],[42,7,43,8],[36,13,37,14],[38,1,39,2],[38,3,39,4],[38,5,39,6],[38,7,39,8],[38,9,39,10],[38,11,39,12],[38,13,39,14],[36,1,37,2],[36,11,37,12],[3,2,20,49],[1,1,1,18],[33,1,33,18],[62,1,63,4],[24,2,24,9],[26,2,26,9],[33,20,33,50],[44,9,45,10],[44,11,45,12],[44,13,45,14],[46,9,47,10],[46,11,47,12],[46,13,47,14],[44,7,45,8],[44,1,45,2],[36,9,37,10],[36,3,37,4],[36,5,37,6],[36,7,37,8],[44,3,45,4],[40,11,41,12],[40,13,41,14],[42,9,43,10],[42,11,43,12],[42,17,43,18],[36,20,40,51],[42,20,46,51],[58,17,59,18],[58,20,62,51],[36,17,37,18],[48,17,49,18],[48,20,50,51],[52,17,53,18],[52,20,56,51],[79,9,80,10],[79,11,80,12],[79,13,80,14],[40,1,41,2],[40,3,41,4],[40,5,41,6],[40,7,41,8],[42,1,43,2],[75,1,76,2],[75,3,76,4],[75,5,76,6],[75,7,76,8],[46,1,47,2],[73,9,74,10],[66,1,70,14],[73,11,74,12],[73,13,74,14],[73,3,74,4],[73,5,74,6],[73,7,74,8],[42,13,43,14],[40,9,41,10],[46,3,47,4],[46,5,47,6],[81,3,82,4],[96,1,97,4],[24,10,24,19],[73,17,74,18],[73,20,77,51],[79,17,80,18],[79,20,81,51],[83,17,84,18],[83,20,85,51],[81,9,82,10],[81,11,82,12],[77,1,78,2],[77,3,78,4],[77,9,78,10],[77,11,78,12],[77,5,78,6],[77,7,78,8],[75,9,76,10],[75,11,76,12],[75,13,76,14],[73,1,74,2],[77,13,78,14],[79,5,80,6],[79,7,80,8],[110,1,111,2],[110,3,111,4],[110,5,111,6],[110,7,111,8],[112,1,113,2],[81,5,82,6],[81,7,82,8],[79,1,80,2],[79,3,80,4],[101,1,105,14],[108,1,109,2],[108,3,109,4],[108,5,109,6],[108,7,109,8],[108,9,109,10],[81,13,82,14],[83,1,84,2],[83,3,84,4],[83,5,84,6],[83,7,84,8],[83,9,84,10],[83,11,84,12],[83,13,84,14],[81,1,82,2],[132,1,133,4],[118,1,119,2],[118,3,119,4],[118,5,119,6],[118,7,119,8],[114,3,115,4],[114,5,115,6],[114,7,115,8],[112,3,113,4],[112,5,113,6],[112,7,113,8],[116,1,117,2],[116,3,117,4],[116,5,117,6],[116,7,117,8],[114,1,115,2],[116,9,117,10],[116,11,117,12],[116,13,117,14],[114,9,115,10],[108,17,109,18],[108,20,115,52],[118,9,119,10],[118,11,119,12],[118,13,119,14],[110,9,111,10],[110,11,111,12],[110,13,111,14],[112,9,113,10],[112,11,113,12],[108,11,109,12],[108,13,109,14],[114,11,115,12],[114,13,115,14],[112,13,113,14],[116,20,123,52]]}
[]
[null,"Generador de calendaris"]
[]
[null,null,"Aquest full de càlcul genera i imprimeix fulls mensuals de calendari per a qualsevol mes i any en el rang de dates vàlides de l'Excel. L'any màxim disponible a la llista desplegable del full Configuració és el 3000 però pot modificar-se fàcilment variant el rang anys ($I$3:$I$3002) en el full de taules.\n\nTambé pot mostrar, amb una trama de color i l'anotació escrita, els dies festius indicats en el rang festes a $N$3:$Q$373 en el full Taules. Aquestes festes poden modificar-se lliurement i treure'n o afegir-ne fins a tenir un màxim d'una per dia de l'any.\n\nS'utilitza una graella de sis setmanes, que és el màxim que un mes pot arribar a 'tocar' en el pitjor dels casos (de 31 dies començant en diumenge). La sisena setmana només fa servir els dos primers dies, quedant els cinc darrers permanentment inhabilitats.\n\nLa resta dels dies que poden ser inhabilitats o no en funció de l'any i mes a mostrar apareixen automàticament amb una trama grisa.\n\nEs basa en determinar en quin dia de la setmana comença el mes indicat. Després cal incrementar en 1 cada dia fins arribar al dilluns de\nla cinquena setmana que és el primer que pot no existir. A partir d'aquí es comprova per a cada dia si el mes ja s'ha acabat el dia anterior.\nEn cas negatiu es comprova si en incrementar en 1 el seu dia anterior encara estem en el mes indicat. Si és així es fa la suma, si no\nsignifica que l'anterior va ser el darrer dia del mes.\n\nEl càlcul de les fases lunars és només aproximat i sovint l'indicador apareixerà amb un desfase d'un dia de més o de menys.\n"]
[]
[]
[]
[]
[]
[]
[]
[]
[]
[]
[]
[]
[]
[]
[]
[]
[]
[]
[null,null,"Fer clic en els següents víncles per veure més detalls sobre la construcció"]
[]
[null,null,"Càlcul de les dates",null,null,null,null,null,null,null,"Càlcul dels dies inexistents"]
[]
[null,null,"Càlcul dels dies festius"]
[]
[]
[]
[]
[]
[]
[null,"Càlcul de les dates",null,null,null,null,null,null,null,null,null,null,null,null,null,null,null,null,null,null,"Per efectuar-lo cal utilitzar cinc tipus diferents de fòrmules"]
[]
[]
[null,1,null,2,null,2,null,2,null,2,null,2,null,2,null,null,null,1,null,null,"=si(diasetm(data(any;mes;1);2)=1;1;\"\")\nDetermina si el dia 1 del mes i l'any indicats es correspon amb un dilluns (1 comptant la setmana de la manera 2). En cas afirmatiu situa un 1 a la cel·la. En cas contrari posa un caràcter nul (\"\") a la cel·la."]
[]
[null,3,null,3,null,3,null,3,null,3,null,3,null,3]
[]
[null,3,null,3,null,3,null,3,null,3,null,3,null,3]
[]
[null,3,null,3,null,3,null,3,null,3,null,3,null,3,null,null,null,2,null,null,"=si(ahir=\"\";si(diasetm(data(any;mes;1);2)=diasetmana;1;\"\");ahir+1)\nDetermina si la cel·la corresponent al dia anterior està en blanc (o sigui que el mes no ha començat encara). En cas afirmatiu fa la mateixa comprovació anterior per el dia de la setmana que correspongui. En cas contrari es limita a sumar 1 al dia anterior."]
[]
[null,4,null,5,null,5,null,5,null,5,null,5,null,5]
[]
[null,5,null,5]
[]
[null,null,null,null,null,null,null,null,null,null,null,null,null,null,null,null,null,3,null,null,"=ahir+1\nNo necessita fer cap comprovació. Símplement incrementa en 1 el dia anterior"]
[]
[]
[]
[null,null,null,null,null,null,null,null,null,null,null,null,null,null,null,null,null,4,null,null,"=si(mes(data(any;mes;ahir+1))=mes;ahir+1;\"\")\nDetermina si sumant 1 al dia anterior el mes de la data obtinguda coincideix amb el mes actual (o sigui que el mes no s'ha acabat encara). En cas afirmatiu efectua la suma. En cas contrari posa a la cel·la un caràcter nul."]
[]
[]
[]
[]
[]
[null,null,null,null,null,null,null,null,null,null,null,null,null,null,null,null,null,5,null,null,"=si(ahir=\"\";\"\";si(mes(data(any;mes;ahir+1))=mes;ahir+1;\"\"))\nDetermina si la cel·la corresponent al dia anterior està en blanc (o sigui que el mes ja s'ha acabat). En cas afirmatiu posa un caràcter nul a la cel·la. En cas contrari fa la mateixa comprovació anterior per el dia d'ahir corresponent en cada cas."]
[]
[]
[]
[null,"Tornar a l'inici"]
[]
[]
[]
[null,"Càlcul dels dies inexistents"]
[]
[]
[]
[]
[]
[]
[null,null,null,null,null,null,null,null,null,null,null,null,null,null,null,null,null,null,null,null,"Aquestes cel·les poden contenir o no un dia del mes indicat en funció, precisament, de quin mes i quin any es tracti en concret. Per mostrar-les amb fons blanc o amb una trama grisa, segons el cas, es fa servir l'opció format condicional del menú format amb la següent condició: Cel·la_numeració=\"\""]
[]
[]
[]
[]
[]
[null,null,null,null,null,null,null,null,null,null,null,null,null,null,null,null,null,null,null,null,"Aquestes cel·les existeixen en tots els casos i per a qualsevol mes i any per la qual cosa no necessiten incloure l'opció d'inhabilitar-se automàticament."]
[]
[]
[]
[null,null,null,null,null,null,null,null,null,null,null,null,null,null,null,null,null,null,null,null,"Aquestes cel·les mai no poden arribar a contenir un dia del mes. En tots els casos i per a qualsevol mes i any poden deixar-se buides i inhabilitades directament."]
[]
[]
[]
[]
[]
[]
[]
[]
[]
[]
[]
[]
[null,"Tornar a l'inici"]
[]
[]
[]
[]
[null,"Càlcul dels dies festius"]
[]
[]
[]
[]
[]
[]
[null,null,null,null,null,null,null,null,null,null,null,null,null,null,null,null,null,null,null,null,"=si(o(eserror(consulv(ahir&\"/\"&mes;festes;2;FALS));\nmostrar_festes=FALS);\"\";consulv(ahir&\"/\"&mes;festes;2;FALS))\nPer tots els possibles dies del mes es busca l'entrada corresponent a la taula de festius -si no es troba s'obté un error- Cas d'obtenir-se error o que el booleà mostrar_festes sigui fals la cel·la es deixa amb un caràcter null, en cas contrari s'escriu l'anotació corresponent.\n"]
[]
[]
[]
[]
[]
[]
[]
[null,null,null,null,null,null,null,null,null,null,null,null,null,null,null,null,null,null,null,null,"La taula de festius es correspon amb el rang Festes (=Taules!$N$3:$Q$373)\nS'han marcat amb colors diferents les festes fixes, les mòbils que segueixen el calendari lunar, i els dies especials de canvi d'horari. Poden afegir-se, si es desitja, les festes locals o qualsevol altre. Hi ha previstes dues línees diferents per escriure anotacions a les columnes O i Q i si es marca una (N)ota a la columna P el dia no es pintarà com a festiu"]
[]
[]
[]
[]
[]
[]
[]
[]
[]
[]
[]
[]
[]
[]
[]
[null,"Tornar a l'inici"]